Workbook

Sheet 表紙
B11: 【中川・綾瀬川流域（埼玉県版）】調整池容量計算システム
G45: 令和７年３月 中川・綾瀬川流域水害対策協議会

Sheet 判別法

Sheet 事前相談入力シート
B2: 事前相談入力シート | E2: 法第３０条の対策の対象とする面積に対して入力してください（※） | X2: 【提出様式】
B3: 現況土地利用(ha) 【行為前】
B4: エリアNo | C4: 宅地等 | N4: 舗装された土地 | P4: その他土地からの流出雨水量を増加させるおそれのある行為に係る土地 | S4: 左記以外の土地
C6: 宅地 | D6: 池沼 | E6: 水路 | F6: ため池 | G6: 道路（法面を有しないものに限る。） | H6: 道路（法面を有するものに限る。） | I6: 鉄道線路（法面を有しないものに限る。） | J6: 鉄道線路（法面を有するものに限る。） | K6: 飛行場（法面を有しないものに限る。） | L6: 飛行場（法面を有するものに限る。） | M6: 太陽光 パネル | N6: コンクリート等の不浸透性の材料により覆われた土地（法面を除く） | O6: コンクリート等の不浸透性の材料により覆われた法面 | P6: ゴルフ場（雨水を排除するための排水施設を伴うもの） | Q6: 運動場その他これに類する施設（雨水を排除するための排水施設を伴うものに限る） | R6: ローラーその他これに類する建設機械を用いて締め固められた土地 | S6: 山地 | T6: 人工的に造成された植生に覆われた法面 | U6: 林地、耕地、原野その他ローラーその他これに類する建設機械を用いていない土地
B13: ①
B14: ②
B15: ③
B16: ④
B17: ⑤
B18: ⑥
B19: ⑦
B20: ⑧
B21: ⑨
B22: ⑩
B23: 小計 | C23: =SUM(C13:C22) -> 0 | D23: 0 | E23: 0 | F23: 0 | G23: 0 | H23: 0 | I23: 0 | J23: 0 | K23: 0 | L23: 0 | M23: 0 | N23: 0 | O23: 0 | P23: 0 | Q23: 0 | R23: 0 | S23: 0 | T23: 0 | U23: 0
B24: 合 計 | C24: =SUM(C23:U23) -> 0
B26: 計画土地利用(ha) 【行為後】
B27: エリアNo | C27: 宅地等 | N27: 舗装された土地 | P27: その他土地からの流出雨水量を増加させるおそれのある行為に係る土地 | S27: 左記以外の土地 | V27: 埼玉県雨水流出抑制施設の設置等に関する条例に関する除外区域
C29: 宅地 | D29: 池沼 | E29: 水路 | F29: ため池 | G29: 道路（法面を有しないものに限る。） | H29: 道路（法面を有するものに限る。） | I29: 鉄道線路（法面を有しないものに限る。） | J29: 鉄道線路（法面を有するものに限る。） | K29: 飛行場（法面を有しないものに限る。） | L29: 飛行場（法面を有するものに限る。） | M29: 太陽光 パネル | N29: コンクリート等の不浸透性の材料により覆われた土地（法面を除く） | O29: コンクリート等の不浸透性の材料により覆われた法面 | P29: ゴルフ場（雨水を排除するための排水施設を伴うもの） | Q29: 運動場その他これに類する施設（雨水を排除するための排水施設を伴うものに限る） | R29: ローラーその他これに類する建設機械を用いて締め固められた土地 | S29: 山地 | T29: 人工的に造成された植生に覆われた法面 | U29: 林地、耕地、原野その他ローラーその他これに類する建設機械を用いていない土地 | V29: 生産緑地法に基づく緑地 | W29: 森林法に基づく残置森林
B36: ①
B37: ②
B38: ③
B39: ④
B40: ⑤
B41: ⑥
B42: ⑦
B43: ⑧
B44: ⑨
B45: ⑩
B46: 小計 | C46: =SUM(C36:C45) -> 0 | D46: 0 | E46: 0 | F46: 0 | G46: 0 | H46: 0 | I46: 0 | J46: 0 | K46: 0 | L46: 0 | M46: 0 | N46: 0 | O46: 0 | P46: 0 | Q46: 0 | R46: 0 | S46: 0 | T46: 0 | U46: 0 | V46: =SUM(V36:V45) -> 0 | W46: =SUM(W36:W45) -> 0
B47: 合 計 | C47: =SUM(C46:U46) -> 0 | V47: =SUM(V46:W46) -> 0
Q51: 入力データの整合チェック
Q52: =IF(C24=C47,IF(C24<>0,"OK","NG"),"NG") -> NG
Q54: =IF(Q52="NG","開発前後の面積が異なるか、面積が未入力です。","") -> 開発前後の面積が異なるか、面積が未入力です。

Sheet 事前相談チェックシート
B2: 事前相談チェックシート | W2: 【提出様式】
B3: 土 地 利 用 区 分 | E3: 1.606904521e+44 | K3: 流出係数 | L3: ①現況土地利用【行為前】 | M3: ②計画土地利用【行為後】 | N3: ③面積差 | O3: 雨水浸透阻害行為の 該当面積 | Q3: 各対象面積集計 | U3: 対象地域※２
K4: ― | L4: 面積（ha） | M4: 面積（ha） | N4: （ha）②－① | O4: 面積（ha） | Q4: 開発区域面積※１ | S4: (ha) | AA4: 埼玉県北部 | AB4: 0.4704
B5: 宅地等 | D5: 宅 地 | K5: 0.9 | L5: =事前相談入力シート!C23 -> 0 | M5: =事前相談入力シート!C46 -> 0 | N5: =M5-L5 -> 0 | O5: =N5 -> 0 | Q5: 法第30条の対策の対象とする面積 | R5: =O28 -> 0 | S5: (ha) | U5: FALSE | AA5: 埼玉県南部 | AB5: 0.4309
D6: 池 沼 | K6: 1 | L6: =事前相談入力シート!D23 -> 0 | M6: =事前相談入力シート!D46 -> 0 | N6: 0 | O6: 0 | Q6: 開発区域面積から「対策の対象とならない面積」を引いた面積 | R6: =IF(R4>=1,R4-V17,R4-V8) -> 0 | S6: (ha) | U6: 都市計画法に基づく開発指導等としての 必要対策量(開発区域面積1ha未満)
D7: 水 路 | K7: 1 | L7: =事前相談入力シート!E23 -> 0 | M7: =事前相談入力シート!E46 -> 0 | N7: 0 | O7: 0 | U7: 対策基準 | W7: m3/ha
D8: た め 池 | K8: 1 | L8: =事前相談入力シート!F23 -> 0 | M8: =事前相談入力シート!F46 -> 0 | N8: 0 | O8: 0 | Q8: 特定都市河川浸水被害対策法 第30条の必要対策量 | U8: 対策の対象とならない面積 （控除面積）※４ | W8: ha | AB8: =IF(U4=AA4,AB4,IF(U4=AA5,AB5,IF(U4=AA6,AB6,AB7))) -> 0
D9: 道路（法面を有しないものに限る。） | K9: 0.9 | L9: =事前相談入力シート!G23 -> 0 | M9: =事前相談入力シート!G46 -> 0 | N9: 0 | O9: 0 | Q9: 調整池深さ※３ | S9: m | U9: 許容比流量※５ | W9: m3/s/ha
D10: 道路（法面を有するものに限る。） | L10: =事前相談入力シート!H23 -> 0 | M10: =事前相談入力シート!H46 -> 0 | N10: 0 | O10: 0 | Q10: 行為前の流出係数 | R10: =L29 ->  | U10: 許容放流量※６ ⑤ (許容比流量×集水面積) | W10: m3/s
D11: 鉄道線路（法面を有しないものに限る。） | K11: 0.9 | L11: =事前相談入力シート!I23 -> 0 | M11: =事前相談入力シート!I46 -> 0 | N11: 0 | O11: 0 | Q11: 行為前の流出雨水量（許容放流量） ④ | R11: =runoff!B1 ->  | S11: m3/s | U11: オリフィス径（円・直径） | V11: =AA11 -> 0 | W11: m | AA11: 0
D12: 鉄道線路（法面を有するものに限る。） | L12: =事前相談入力シート!J23 -> 0 | M12: =事前相談入力シート!J46 -> 0 | N12: 0 | O12: 0 | Q12: 行為後の流出係数 | R12: =M29 ->  | U12: 必要対策量 ② | V12: =IF(U5=TRUE,"不要",IF(R26="不要","不要",ROUND(V7*R6,0))) -> 不要 | W12: m3
D13: 飛行場（法面を有しないものに限る。） | K13: 0.9 | L13: =事前相談入力シート!K23 -> 0 | M13: =事前相談入力シート!K46 -> 0 | N13: 0 | O13: 0 | Q13: 行為後の流出雨水量（未対策） | R13: =runoff!C1 ->  | S13: m3/s
D14: 飛行場（法面を有するものに限る。） | L14: =事前相談入力シート!L23 -> 0 | M14: =事前相談入力シート!L46 -> 0 | N14: 0 | O14: 0 | Q14: オリフィス径(円・直径) | R14: =AA14 -> 0.204 | S14: m | U14: 都市計画法に基づく開発指導等としての 必要対策量（開発区域面積1ha以上） 【埼玉県雨水流出抑制施設の設置等に関する条例】 | AA14: 0.204
D15: 太陽光パネル | K15: 0.9 | L15: =事前相談入力シート!M23 -> 0 | M15: =事前相談入力シート!M46 -> 0 | N15: 0 | O15: 0 | Q15: haあたり必要対策量（概算） | R15: =AA15 -> 650 | S15: m3/ha | AA15: 650
D16: 小 計 | L16: =SUM(L5:L15) -> 0 | M16: =SUM(M5:M15) -> 0 | N16: 0 | O16: =SUM(O5:O15) -> 0 | Q16: 必要対策量（概算） ① | R16: =IF(R25="不要","不要",R15*R5) -> 不要 | S16: m3 | U16: 対策基準（地域別調整容量） | W16: m3/ha
B17: 舗装された土地 | D17: コンクリート等の不浸透性の材料により覆われた土地（法面を除く） | K17: 0.95 | L17: =事前相談入力シート!N23 -> 0 | M17: =事前相談入力シート!N46 -> 0 | N17: 0 | O17: =N17 -> 0 | U17: 対策の対象とならない面積 （控除面積）※４ | W17: ha
D18: コンクリート等の不浸透性の材料により覆われた法面 | K18: 1 | L18: =事前相談入力シート!O23 -> 0 | M18: =事前相談入力シート!O46 -> 0 | N18: 0 | O18: =N18 -> 0 | Q18: 下水道等の一時放流先との協議によるもの | U18: 湛水区域対策量※７ | W18: m3
D19: 小 計 | L19: =SUM(L17:L18) -> 0 | M19: =SUM(M17:M18) -> 0 | N19: 0 | O19: =SUM(O17:O18) -> 0 | Q19: 許容比流量※８ | S19: m3/s/ha | U19: 許容比流量※５（≦0.05） | V19: 0.05 | W19: m3/s/ha
B20: その他土地からの流出雨水量を増加させるおそれのある行為に係る土地 | D20: ゴルフ場（雨水を排除するための排水施設を伴うもの） | K20: 0.5 | L20: =事前相談入力シート!P23 -> 0 | M20: =事前相談入力シート!P46 -> 0 | N20: 0 | O20: =MAX(N20,0) -> 0 | Q20: 許容放流量※６ ⑦ (許容比流量×集水面積) | S20: m3/s | U20: 許容放流量※６ ⑥ (許容比流量×集水面積) | W20: m3/s
D21: 運動場その他これに類する施設（雨水を排除するための排水施設を伴うものに限る。 | K21: 0.8 | L21: =事前相談入力シート!Q23 -> 0 | M21: =事前相談入力シート!Q46 -> 0 | N21: 0 | O21: =MAX(N21,0) -> 0 | U21: オリフィス径（円・直径） | V21: =AA21 -> 0 | W21: m | AA21: 0
D22: ローラーその他これに類する建設機械を用いて締め固められた土地 | K22: 0.5 | L22: =事前相談入力シート!R23 -> 0 | M22: =事前相談入力シート!R46 -> 0 | N22: 0 | O22: 0 | U22: 必要対策量 ③ | V22: =IF(U5=TRUE,"不要",IF(R27="不要","不要",ROUND(V16*R6+V18,0))) -> 不要 | W22: m3
D23: 小 計 | L23: =SUM(L20:L22) -> 0 | M23: =SUM(M20:M22) -> 0 | N23: 0 | O23: =SUM(O20:O22) -> 0 | Q23: 都市計画法の開発許可等との調整により双方の機能を兼ね備えた対策工事とする（流出抑制量が大きい方で対策）
B24: 上記に揚げる土地以外の土地 | D24: 山 地 | K24: 0.3 | L24: =事前相談入力シート!S23 -> 0 | M24: =事前相談入力シート!S46 -> 0 | N24: 0 | Q24: 他法令等との調整別の対応 | R24: 申請 | S24: 必要対策量(m3)（概算） ①②③を比べ大きい値 | U24: 許容放流量(m3/s) ④⑤⑥⑦を比べ小さい値
D25: 人工的に造成された植生に覆われた法面 | K25: 0.4 | L25: =事前相談入力シート!T23 -> 0 | M25: =事前相談入力シート!T46 -> 0 | N25: 0 | Q25: 法第30条の許可 | R25: =IF(O28>=0.1,IF(L29<=M29,"必要","不要"),"不要") -> 不要 | S25: =MAX(R16,V12,V22) -> 0 | U25: =MIN(Z25,Z26,Z27,Z28) -> 99999 | V25: =MIN(AA25,AA26,AA27,AA28) -> 99999 | Y25: =IF(S25=R16,R14,IF(S25=V12,V11,V21)) -> 0 | Z25: =IF(R25="必要",R11,99999) -> 99999 | AA25: =IF(R14=0,99999,IF(R25="必要",R14,99999)) -> 99999
D26: 林地、耕地、原野その他ローラーその他これに類する建設機械を用いていない土地 | K26: 0.2 | L26: =事前相談入力シート!U23 -> 0 | M26: =事前相談入力シート!U46 -> 0 | N26: 0 | Q26: =U6 -> 都市計画法に基づく開発指導等としての 必要対策量(開発区域面積1ha未満) | R26: =IF(U5=TRUE,"不要",IF(AND(R4>=0.05,R4<1),"必要","不要")) -> 不要 | Z26: =IF(V10=0,99999,IF(R26="必要",V10,99999)) -> 99999 | AA26: =IF(V11=0,99999,IF(R26="必要",V11,99999)) -> 99999
D27: 小 計 | L27: =SUM(L24:L26) -> 0 | M27: =SUM(M24:M26) -> 0 | N27: 0 | Q27: =U14 -> 都市計画法に基づく開発指導等としての 必要対策量（開発区域面積1ha以上） 【埼玉県雨水流出抑制施設の設置等に関する条例】 | R27: =IF(U5=TRUE,"不要",IF(R4>=1,"必要","不要")) -> 不要 | Z27: =IF(V20=0,99999,IF(R27="必要",V20,99999)) -> 99999 | AA27: =IF(V21=0,99999,IF(R27="必要",V21,99999)) -> 99999
B28: 合 計 | L28: =L16+L19+L23+L27 -> 0 | M28: =M16+M19+M23+M27 -> 0 | N28: =IF(ABS(M28-L28)<0.000001,"OK","NG") -> OK | O28: =MAX(O16+O19+O23,0) -> 0 | Z28: =IF(R20>0,R20,99999) -> 99999 | AA28: =IF(R20=0,99999,ROUND((4*AB28/PI())^0.5,3)) -> 99999 | AB28: =R20/0.6/(2*9.8*R9)^0.5 -> 
B29: 平均流出係数 | L29: =ROUND((L5*$K5+L6*$K6+L7*$K7+L8*$K8+L9*$K9+L10*$K10+L11*$K11+L12*$K12+L13*$K13+L14*$K14+L15*$K15+L17*$K17+L18*$K18+L20*$K20+L21*$K21+L22*$K22+L24*$K24+L25*$K25+L26*$K26)/L28,3) ->  | M29: =ROUND((M5*$K5+M6*$K6+M7*$K7+M8*$K8+M9*$K9+M10*$K10+M11*$K11+M12*$K12+M13*$K13+M14*$K14+M15*$K15+M17*$K17+M18*$K18+M20*$K20+M21*$K21+M22*$K22+M24*$K24+M25*$K25+M26*$K26)/M28,3) -> 
J30: 雨水浸透阻害行為の該当面積が0.1ha以上の場合、法第30条の許可（協議）が必要です。

Sheet 事前相談書
M1: 【提出様式】
L2: № | M2: － | AE2: № | AF2: －
B3: 雨 水 浸 透 阻 害 行 為 事 前 相 談 書 | U3: 雨 水 浸 透 阻 害 行 為 事 前 相 談 書
B6: 事前相談日時 | G6: 年 月 日（ ） ： ～ ： | U6: 事前相談日時 | Z6: ○○年○○月○○日（○）XX：XX～ ：
B9: 事業区域に含まれる地域の名称 | U9: 事業区域に含まれる地域の名称 | Z9: ○○市○○町101番地、102番地、103番地
G11: =事前相談チェックシート!R4 -> 0
B12: 事業区域の面積 | U12: 事業区域の面積 | Z12: 0.250ha
B15: 予定する事業の計画の内容 | U15: 予定する事業の計画の内容 | Z15: 分譲住宅（１５宅地）の宅地造成
G17: 住 所 | Z17: 住 所
B18: 事業主又は建築主等の住所・氏名 | U18: 事業主又は建築主等の住所・氏名 | AB18: ○○○○住宅建設株式会社
G19: 氏 名 | Z19: 氏 名 | AB19: 代表取締役 ○○ ○○
G21: 住 所 | Z21: 住 所
AB22: ○○市○○町１－１－１
B23: 代理人等の住所・氏名・連絡先 | G23: 氏 名 | U23: 代理人等の住所・氏名・連絡先 | Z23: 氏 名 | AB23: ○○○設計事務所株式会社
G25: 連絡先 | L25: 担当者名 | Z25: 連絡先 | AA25: XXX | AB25: （XXX | AC25: ）XXXX | AE25: 担当者名 ○○

Sheet コントロールシート（浸透施設のみ）
C1: 浸透施設の計算
C2: 事前に入力しておくシート
C3: 施設諸元（浸透）
C4: 施設諸元（浸透_道路管理者用）
C5: その他、事前相談チェックシートに必要な項目
C6: 浸透施設に該当する項目にチェックを入れてください
C8: 2 | D8: 浸透施設なし
D9: 浸透施設あり ※施設諸元(浸透)に入力した場合
D10: 浸透施設あり ※施設諸元（浸透_道路管理者用）に入力した場合
C13: 計算結果
C14: 上のチェックを入れ、「浸透施設の計算」ボタンを押してください
C15: Q1:許容放流量(m3/s)
C16: =事前相談チェックシート!U25 -> 99999
C17: Q2:行為後ピーク流入量（浸透考慮前）(m3/s)
C18: =浸透計算!B2 -> 0.389
C19: Q3:行為後ピーク流入量（浸透考慮後）(m3/s)
C20: =浸透計算!C2 -> 0.384203
C21: 判定： | D21: =IF(C20<=C16,"OK Ｑ３≦Ｑ１","NG 浸透施設を追加してください") -> OK Ｑ３≦Ｑ１

Sheet ピーク流量算定表
A2: 使用降雨強度及び行為前後のピーク流入量
A4: ピーク流入量（行為前） | E4: =事前相談チェックシート!R11 ->  | G4: m3／s
A5: ピーク流入量（行為後） | E5: =事前相談チェックシート!R13 ->  | G5: m3／s
L6: =事前相談チェックシート!U4 -> 0
A8: 降雨強度の推移表
B10: 時 | C10: 分 | D10: 降雨量 （mm/h） | E10: 時 | F10: 分 | G10: 降雨量 （mm/h） | H10: 時 | I10: 分 | J10: 降雨量 （mm/h） | K10: 時 | L10: 分 | M10: 降雨量 （mm/h）
B11: 0 | C11: 0－10 | D11: =mkrain!G4 -> 2.7 | E11: 6 | F11: 0－10 | G11: =mkrain!G40 -> 4.3 | H11: 12 | I11: 0－10 | J11: =mkrain!G76 -> 61.1 | K11: 18 | L11: 0－10 | M11: =mkrain!G112 -> 4.2
C12: 10－20 | D12: =mkrain!G5 -> 2.7 | F12: 10－20 | G12: =mkrain!G41 -> 4.4 | I12: 10－20 | J12: =mkrain!G77 -> 34.7 | L12: 10－20 | M12: =mkrain!G113 -> 4.1
C13: 20－30 | D13: =mkrain!G6 -> 2.7 | F13: 20－30 | G13: =mkrain!G42 -> 4.5 | I13: 20－30 | J13: =mkrain!G78 -> 25.4 | L13: 20－30 | M13: =mkrain!G114 -> 4
C14: 30－40 | D14: =mkrain!G7 -> 2.7 | F14: 30－40 | G14: =mkrain!G43 -> 4.6 | I14: 30－40 | J14: =mkrain!G79 -> 20.5 | L14: 30－40 | M14: =mkrain!G115 -> 4
C15: 40－50 | D15: =mkrain!G8 -> 2.8 | F15: 40－50 | G15: =mkrain!G44 -> 4.7 | I15: 40－50 | J15: =mkrain!G80 -> 17.4 | L15: 40－50 | M15: =mkrain!G116 -> 3.9
C16: 50－60 | D16: =mkrain!G9 -> 2.8 | F16: 50－60 | G16: =mkrain!G45 -> 4.8 | I16: 50－60 | J16: =mkrain!G81 -> 15.2 | L16: 50－60 | M16: =mkrain!G117 -> 3.8
B17: 1 | C17: 0－10 | D17: =mkrain!G10 -> 2.8 | E17: 7 | F17: 0－10 | G17: =mkrain!G46 -> 4.9 | H17: 13 | I17: 0－10 | J17: =mkrain!G82 -> 13.6 | K17: 19 | L17: 0－10 | M17: =mkrain!G118 -> 3.8
C18: 10－20 | D18: =mkrain!G11 -> 2.9 | F18: 10－20 | G18: =mkrain!G47 -> 5 | I18: 10－20 | J18: =mkrain!G83 -> 12.3 | L18: 10－20 | M18: =mkrain!G119 -> 3.7
C19: 20－30 | D19: =mkrain!G12 -> 2.9 | F19: 20－30 | G19: =mkrain!G48 -> 5.1 | I19: 20－30 | J19: =mkrain!G84 -> 11.3 | L19: 20－30 | M19: =mkrain!G120 -> 3.7
C20: 30－40 | D20: =mkrain!G13 -> 2.9 | F20: 30－40 | G20: =mkrain!G49 -> 5.3 | I20: 30－40 | J20: =mkrain!G85 -> 10.5 | L20: 30－40 | M20: =mkrain!G121 -> 3.6
C21: 40－50 | D21: =mkrain!G14 -> 2.9 | F21: 40－50 | G21: =mkrain!G50 -> 5.4 | I21: 40－50 | J21: =mkrain!G86 -> 9.8 | L21: 40－50 | M21: =mkrain!G122 -> 3.5
C22: 50－60 | D22: =mkrain!G15 -> 3 | F22: 50－60 | G22: =mkrain!G51 -> 5.6 | I22: 50－60 | J22: =mkrain!G87 -> 9.2 | L22: 50－60 | M22: =mkrain!G123 -> 3.5
B23: 2 | C23: 0－10 | D23: =mkrain!G16 -> 3 | E23: 8 | F23: 0－10 | G23: =mkrain!G52 -> 5.7 | H23: 14 | I23: 0－10 | J23: =mkrain!G88 -> 8.7 | K23: 20 | L23: 0－10 | M23: =mkrain!G124 -> 3.4
C24: 10－20 | D24: =mkrain!G17 -> 3 | F24: 10－20 | G24: =mkrain!G53 -> 5.9 | I24: 10－20 | J24: =mkrain!G89 -> 8.2 | L24: 10－20 | M24: =mkrain!G125 -> 3.4
C25: 20－30 | D25: =mkrain!G18 -> 3.1 | F25: 20－30 | G25: =mkrain!G54 -> 6.1 | I25: 20－30 | J25: =mkrain!G90 -> 7.9 | L25: 20－30 | M25: =mkrain!G126 -> 3.3
C26: 30－40 | D26: =mkrain!G19 -> 3.1 | F26: 30－40 | G26: =mkrain!G55 -> 6.3 | I26: 30－40 | J26: =mkrain!G91 -> 7.5 | L26: 30－40 | M26: =mkrain!G127 -> 3.3
C27: 40－50 | D27: =mkrain!G20 -> 3.2 | F27: 40－50 | G27: =mkrain!G56 -> 6.5 | I27: 40－50 | J27: =mkrain!G92 -> 7.2 | L27: 40－50 | M27: =mkrain!G128 -> 3.3
C28: 50－60 | D28: =mkrain!G21 -> 3.2 | F28: 50－60 | G28: =mkrain!G57 -> 6.8 | I28: 50－60 | J28: =mkrain!G93 -> 6.9 | L28: 50－60 | M28: =mkrain!G129 -> 3.2
B29: 3 | C29: 0－10 | D29: =mkrain!G22 -> 3.2 | E29: 9 | F29: 0－10 | G29: =mkrain!G58 -> 7 | H29: 15 | I29: 0－10 | J29: =mkrain!G94 -> 6.6 | K29: 21 | L29: 0－10 | M29: =mkrain!G130 -> 3.2
C30: 10－20 | D30: =mkrain!G23 -> 3.3 | F30: 10－20 | G30: =mkrain!G59 -> 7.3 | I30: 10－20 | J30: =mkrain!G95 -> 6.4 | L30: 10－20 | M30: =mkrain!G131 -> 3.1
C31: 20－30 | D31: =mkrain!G24 -> 3.3 | F31: 20－30 | G31: =mkrain!G60 -> 7.7 | I31: 20－30 | J31: =mkrain!G96 -> 6.2 | L31: 20－30 | M31: =mkrain!G132 -> 3.1
C32: 30－40 | D32: =mkrain!G25 -> 3.4 | F32: 30－40 | G32: =mkrain!G61 -> 8 | I32: 30－40 | J32: =mkrain!G97 -> 6 | L32: 30－40 | M32: =mkrain!G133 -> 3.1
C33: 40－50 | D33: =mkrain!G26 -> 3.4 | F33: 40－50 | G33: =mkrain!G62 -> 8.5 | I33: 40－50 | J33: =mkrain!G98 -> 5.8 | L33: 40－50 | M33: =mkrain!G134 -> 3
C34: 50－60 | D34: =mkrain!G27 -> 3.5 | F34: 50－60 | G34: =mkrain!G63 -> 8.9 | I34: 50－60 | J34: =mkrain!G99 -> 5.6 | L34: 50－60 | M34: =mkrain!G135 -> 3
B35: 4 | C35: 0－10 | D35: =mkrain!G28 -> 3.5 | E35: 10 | F35: 0－10 | G35: =mkrain!G64 -> 9.5 | H35: 16 | I35: 0－10 | J35: =mkrain!G100 -> 5.5 | K35: 22 | L35: 0－10 | M35: =mkrain!G136 -> 3
C36: 10－20 | D36: =mkrain!G29 -> 3.6 | F36: 10－20 | G36: =mkrain!G65 -> 10.1 | I36: 10－20 | J36: =mkrain!G101 -> 5.3 | L36: 10－20 | M36: =mkrain!G137 -> 2.9
C37: 20－30 | D37: =mkrain!G30 -> 3.6 | F37: 20－30 | G37: =mkrain!G66 -> 10.9 | I37: 20－30 | J37: =mkrain!G102 -> 5.2 | L37: 20－30 | M37: =mkrain!G138 -> 2.9
C38: 30－40 | D38: =mkrain!G31 -> 3.7 | F38: 30－40 | G38: =mkrain!G67 -> 11.8 | I38: 30－40 | J38: =mkrain!G103 -> 5.1 | L38: 30－40 | M38: =mkrain!G139 -> 2.9
C39: 40－50 | D39: =mkrain!G32 -> 3.7 | F39: 40－50 | G39: =mkrain!G68 -> 12.9 | I39: 40－50 | J39: =mkrain!G104 -> 4.9 | L39: 40－50 | M39: =mkrain!G140 -> 2.8
C40: 50－60 | D40: =mkrain!G33 -> 3.8 | F40: 50－60 | G40: =mkrain!G69 -> 14.3 | I40: 50－60 | J40: =mkrain!G105 -> 4.8 | L40: 50－60 | M40: =mkrain!G141 -> 2.8
B41: 5 | C41: 0－10 | D41: =mkrain!G34 -> 3.9 | E41: 11 | F41: 0－10 | G41: =mkrain!G70 -> 16.2 | H41: 17 | I41: 0－10 | J41: =mkrain!G106 -> 4.7 | K41: 23 | L41: 0－10 | M41: =mkrain!G142 -> 2.8
C42: 10－20 | D42: =mkrain!G35 -> 3.9 | F42: 10－20 | G42: =mkrain!G71 -> 18.8 | I42: 10－20 | J42: =mkrain!G107 -> 4.6 | L42: 10－20 | M42: =mkrain!G143 -> 2.7
C43: 20－30 | D43: =mkrain!G36 -> 4 | F43: 20－30 | G43: =mkrain!G72 -> 22.6 | I43: 20－30 | J43: =mkrain!G108 -> 4.5 | L43: 20－30 | M43: =mkrain!G144 -> 2.7
C44: 30－40 | D44: =mkrain!G37 -> 4.1 | F44: 30－40 | G44: =mkrain!G73 -> 29.2 | I44: 30－40 | J44: =mkrain!G109 -> 4.4 | L44: 30－40 | M44: =mkrain!G145 -> 2.7
C45: 40－50 | D45: =mkrain!G38 -> 4.1 | F45: 40－50 | G45: =mkrain!G74 -> 43.6 | I45: 40－50 | J45: =mkrain!G110 -> 4.3 | L45: 40－50 | M45: =mkrain!G146 -> 2.7
C46: 50－60 | D46: =mkrain!G39 -> 4.2 | F46: 50－60 | G46: =mkrain!G75 -> 127 | I46: 50－60 | J46: =mkrain!G111 -> 4.3 | L46: 50－60 | M46: =mkrain!G147 -> 2.6

Sheet 比浸透量
A1: 1 | AE1: 1
A2: 比浸透量計算書 | K2: 【提出様式】
O3: 大型貯留槽
C4: 透水性舗装 | O4: 側面及び底面
C5: 浸透側溝および浸透トレンチ | O5: W | P5: H | Q5: L | R5: a1 | S5: a2 | T5: b | U5: X | V5: a | W5: b | X5: K
C6: 円筒ます（側面および底面） | N6: 1 | O6: 5 | P6: =D$14 -> 0.5 | Q6: =D$17 -> 30 | R6: 8.83 | S6: -0.461 | T6: 7.03 | U6: =D$17/D$15 -> 15 | V6: =R6*U6^S6 -> 2.533860102 | W6: =T6 -> 7.03 | X6: =(V6*P6+W6)*Q6 -> 248.9079015
C7: 円筒ます（底面） | N7: 2 | O7: 10 | P7: =D$14 -> 0.5 | Q7: =D$17 -> 30 | R7: 7.88 | S7: -0.446 | T7: 14 | U7: =D$17/D$15 -> 15 | V7: =R7*U7^S7 -> 2.354992433 | W7: =T7 -> 14 | X7: =(V7*P7+W7)*Q7 -> 455.3248865
C8: 正方形ます（側面および底面） | N8: 3 | O8: 20 | P8: 0.5 | Q8: 30 | R8: 7.06 | S8: -0.452 | T8: 27.06 | U8: 15 | V8: 2.07592401 | W8: 27.06 | X8: 842.9388602
C9: 正方形ます（底面） | N9: 4 | O9: 30 | P9: 0.5 | Q9: 30 | R9: 6.43 | S9: -0.444 | T9: 39.75 | U9: 15 | V9: 1.932086001 | W9: 39.75 | X9: 1221.48129
C10: 矩形の桝 | N10: 5 | O10: 40 | P10: 0.5 | Q10: 30 | R10: 5.97 | S10: -0.44 | T10: 52.25 | U10: 15 | V10: 1.813402362 | W10: 52.25 | X10: 1594.701035
C11: 大型貯留浸透槽（側面及び底面） | N11: 6 | O11: 50 | P11: 0.5 | Q11: 30 | R11: 5.62 | S11: -0.442 | T11: 64.68 | U11: 15 | V11: 1.697868218 | W11: 64.68 | X11: 1965.868023
C12: 大型貯留浸透槽（底面） | N12: 7 | O12: =D15 -> 2 | P12: =D$14 -> 0.5 | Q12: =D$17 -> 30 | R12: =R11 -> 5.62 | S12: =S11 -> -0.442 | T12: =T11 -> 64.68 | U12: =D$17/D$15 -> 15 | V12: =R12*U12^S12 -> 1.697868218 | W12: 64.68 | X12: =(V12*P12+W12)*Q12 -> 1965.868023
O13: 上ランク | P13: 下ランク
C14: H：設計水頭(m) | D14: 0.5 | O14: =IF(D15<=O6,1,IF(D15<=O7,2,IF(D15<=O8,3,IF(D15<=O9,4,IF(D15<=O10,5,IF(D15<=O11,6,7)))))) -> 1 | P14: =IF(D15>=O11,7,IF(O14=1,1,O14-1)) -> 1 | R14: 内挿パラ↓
C15: W：施設幅(m) | D15: 2 | N15: W | O15: =VLOOKUP(O14,$N$6:$O$12,2,FALSE) -> 5 | P15: =VLOOKUP(P14,$N$6:$O$12,2,FALSE) -> 5 | Q15: =D15 -> 2 | R15: =IF(O14=P14,0,(Q15-P15)/(O15-P15)) -> 0
C16: D：施設直径(m) | D16: 1 | N16: K | O16: =VLOOKUP(O14,$N$6:$X$12,11,FALSE) -> 248.9079015 | P16: =VLOOKUP(P14,$N$6:$X$12,11,FALSE) -> 248.9079015 | Q16: =(O16-P16)*R15+P16 -> 248.9079015
C17: L：施設延長(m) | D17: 30
C19: K：比浸透量 | D19: =IFERROR(INDEX($D$35:$L$35,1,$A$1),"適用外") -> 1.294
O20: 大型貯留槽
O21: 底面
O22: W | P22: H | Q22: L | R22: a1 | S22: a2 | T22: b | U22: X | V22: a | W22: b | X22: K
N23: 1 | O23: 5 | P23: =D$14 -> 0.5 | Q23: =D$17 -> 30 | R23: 1.94 | S23: -0.328 | T23: 7.57 | U23: =D$17/D$15 -> 15 | V23: =R23*U23^S23 -> 0.7980751661 | W23: =T23 -> 7.57 | X23: =(V23*P23+W23)*Q23 -> 239.0711275
N24: 2 | O24: 10 | P24: =D$14 -> 0.5 | Q24: =D$17 -> 30 | R24: 2.29 | S24: -0.397 | T24: 13.84 | U24: =D$17/D$15 -> 15 | V24: =R24*U24^S24 -> 0.7814968872 | W24: =T24 -> 13.84 | X24: =(V24*P24+W24)*Q24 -> 426.9224533
B25: 施設 | D25: 透水性舗装 （浸透池） | E25: 浸透側溝 および 浸透トレンチ | F25: 円筒ます | H25: 正方形ます | J25: 矩形 のます | K25: 大型貯留槽 | N25: 3 | O25: 20 | P25: 0.5 | Q25: 30 | R25: 2.37 | S25: -0.488 | T25: 26.36 | U25: 15 | V25: 0.6321436964 | W25: 26.36 | X25: 800.2821554
B26: 浸透面 | D26: 底面 | E26: 側面 および 底面 | F26: 側面 および 底面 | G26: 底面 | H26: 側面 および 底面 | I26: 底面 | J26: 側面 および 底面 | K26: 側面 及び 底面 | L26: 底面 | N26: 4 | O26: 30 | P26: 0.5 | Q26: 30 | R26: 2.17 | S26: -0.518 | T26: 38.79 | U26: 15 | V26: 0.5336351909 | W26: 38.79 | X26: 1171.704528
B27: 模式図 | N27: 5 | O27: 40 | P27: 0.5 | Q27: 30 | R27: 1.96 | S27: -0.554 | T27: 51.16 | U27: 15 | V27: 0.437221504 | W27: 51.16 | X27: 1541.358323
B28: H：設計水頭（m） | C28: 1 | D28: =$D14 -> 0.5 | E28: =$D14 -> 0.5 | F28: =$D14 -> 0.5 | G28: =$D14 -> 0.5 | H28: =$D14 -> 0.5 | I28: 0.5 | J28: 0.5 | K28: 0.5 | L28: 0.5 | N28: 6 | O28: 50 | P28: 0.5 | Q28: 30 | R28: 1.76 | S28: -0.609 | T28: 63.5 | U28: 15 | V28: 0.3382774834 | W28: 63.5 | X28: 1910.074162
B29: W：施設幅(m) | D29: =$D15 -> 2 | E29: =$D15 -> 2 | F29: =$D15 -> 2 | G29: 2 | H29: 2 | I29: 2 | J29: 2 | K29: 2 | L29: 2 | N29: 7 | O29: =D15 -> 2 | P29: 0.5 | Q29: 30 | R29: =R28 -> 1.76 | S29: =S28 -> -0.609 | T29: =T28 -> 63.5 | U29: 15 | V29: 0.3382774834 | W29: 63.5 | X29: 1910.074162
B30: D：施設直径 | D30: =$D16 -> 1 | E30: 1 | F30: 1 | G30: 1 | H30: 1 | I30: 1 | J30: 1 | K30: 1 | L30: 1 | O30: 上ランク | P30: 下ランク
B31: L：施設延長(m) | D31: =$D17 -> 30 | E31: =$D17 -> 30 | F31: 30 | G31: 30 | H31: 30 | I31: 30 | J31: 30 | K31: 30 | L31: 30 | O31: =IF(D15<=O23,1,IF(D15<=O24,2,IF(D15<=O25,3,IF(D15<=O26,4,IF(D15<=O27,5,IF(D15<=O28,6,7)))))) -> 1 | P31: =IF(D32>=O28,7,IF(O31=1,1,O31-1)) -> 1 | R31: 内挿パラ↓
B32: 係数 | C32: a | D32: 0.014 | E32: 3.093 | F32: =IF(F30<0.2,"適用外",IF(F30<=1,0.475*F30+0.945,IF(F30<=10,6.244*F30+2.853,"適用外"))) -> 1.42 | G32: =IF(G30<0.3,"適用外",IF(G30<=1,1.497*G30-0.1,IF(G30<=10,2.556*G30-2.052,"適用外"))) -> 1.397 | H32: =IF(H29<=1,0.12*H29+0.985,IF(H29<=10,-0.453*H29^2+8.289*H29+0.753,IF(H29<=80,0.747*H29+21.355,"適用外"))) -> 15.519 | I32: =IF(I29<=1,1.676*I29-0.137,IF(I29<=10,-0.204*I29^2+3.166*I29-1.936,IF(I29<=80,1.265*I29-15.67,"適用外"))) -> 3.58 | J32: =3.297*J31+1.971*J29+4.663 -> 107.515 | K32: 別途算定 | L32: 別途算定 | N32: W | O32: =VLOOKUP(O31,$N$23:$O$29,2,FALSE) -> 5 | P32: =VLOOKUP(P31,$N$23:$O$29,2,FALSE) -> 5 | Q32: =D15 -> 2 | R32: =IF(O31=P31,0,(Q32-P32)/(O32-P32)) -> 0
C33: b | D33: 1.287 | E33: =1.34*E29+0.677 -> 3.357 | F33: =IF(F30<0.2,"適用外",IF(F30<=1,6.07*F30+1.01,IF(F30<=10,0.93*F30^2+1.606*F30-0.773,"適用外"))) -> 7.08 | G33: =IF(G30<0.3,"適用外",IF(G30<=1,1.13*G30^2+0.638*G30-0.011,IF(G30<=10,0.924*G30^2+0.993*G30-0.087,"適用外"))) -> 1.757 | H33: =IF(H29<=1,7.837*H29+0.82,IF(H29<=10,1.458*H29^2+1.27*H29+0.362,IF(H29<=80,1.263*H29^2+4.295*H29-7.649,"適用外"))) -> 8.734 | I33: =IF(I29<=1,1.496*I29^2+I29*0.671-0.015,IF(I29<=10,1.345*I29^2+0.736*I29+0.251,IF(I29<=80,1.259*I29^2+2.336*I29-8.13,"適用外"))) -> 7.103 | J33: =(1.401*J29+0.684)*J31+1.214*J29-0.834 -> 106.174 | K33: 別途算定 | L33: 別途算定 | N33: K | O33: =VLOOKUP(O31,$N$23:$X$29,11,FALSE) -> 239.0711275 | P33: =VLOOKUP(P31,$N$23:$X$29,11,FALSE) -> 239.0711275 | Q33: =(O33-P33)*R32+P33 -> 239.0711275
C34: c | D34: - | E34: - | F34: =IF(F30<0.2,"適用外",IF(F30<=1,2.57*F30-0.188,IF(F30<=10,"-","適用外"))) -> 2.382 | G34: =IF(G29<=1,2.858*G29-0.283,IF(G29<80,"-","適用外")) -> - | H34: =IF(H29<=1,2.858*H29-0.283,IF(H29<=80,"-","適用外")) -> - | I34: - | J34: - | K34: - | L34: -
B35: 比浸透量 | C35: K | D35: =IF(D28<=1.5,D32*D28+D33,"適用外") -> 1.294 | E35: =IF(AND(E28<=1.5,E29<=1.5),E32*E28+E33,"適用外") -> 適用外 | F35: =IF(F28<=5,IF(F30<0.2,"適用外",IF(F30<=1,F32*F28^2+F33*F28+F34,IF(F30<=10,F32*F28+F33,"適用外"))),"適用外") -> 6.277 | G35: =IF(G28<=5,IF(G30<0.3,"適用外",IF(G30<10,G32*G30+G33,"適用外")),"適用外") -> 3.154 | H35: =IF(H28<=5,IF(H29<=1,H32*H28^2+H33*H28+H34,IF(H29<=80,H32*H28+H33,"適用外")),"適用外") -> 16.4935 | I35: =IF(AND(I29<=80,I28<=5),I32*I28+I33,"適用外") -> 8.893 | J35: =IF(AND(J28<=5,J29<=5,J31<=200),J32*J28+J33,"適用外") -> 159.9315 | K35: =IF(OR(K28<0.5,K28>5),"適用外",Q16) -> 248.9079015 | L35: =IF(OR(L28<0.5,L28>5),"適用外",Q33) -> 239.0711275

Sheet 施設諸元（浸透）
Q1: 【提出様式】 | U1: =MAX(D9:D18,D23:D32,D37:D46,D51:D60) -> 0
A2: 流出抑制施設諸元（浸透施設）
B3: 浸透施設諸元 | N3: 空隙貯留量諸元
B4: 浸透能力 | C4: =SUM(J9:J60)/3600 -> 0 | D4: m3/s | N4: 空隙貯留量 | O4: =SUM(K9:K60) -> 0 | P4: m3
B6: 【浸透ます】 | C6: 単位設計浸透能 | E6: 設置数量 （個） | F6: 影響係数 | N6: 【浸透ます】 1個あたり | O6: ます部 | P6: 砕石部
C7: 比浸透量（㎡） | D7: 飽和透水係数 （m/hr） | F7: （1） | G7: （2） | H7: （3） | O7: 体積 （ｍ3） | P7: 体積 （ｍ3） | Q7: 空隙率 （％）
F8: 内容（１） | G8: 内容（２） | H8: 内容（３）
B9: 1 | D9: 0 | F9: 0.9 | G9: 0.9 | H9: 1 | I9: =D9 -> 0 | J9: =$C9*$I9*$E9*$F9*$G9*$H9 -> 0 | K9: =($O9+$P9*$Q9/100)*$E9 -> 0 | N9: 1
B10: 2 | D10: 0 | F10: 0.9 | G10: 0.9 | H10: 1 | I10: =D10 -> 0 | J10: =$C10*$I10*$E10*$F10*$G10*$H10 -> 0 | K10: =($O10+$P10*$Q10/100)*$E10 -> 0 | N10: 2
B11: 3 | D11: 0 | F11: 0.9 | G11: 0.9 | H11: 1 | I11: 0 | J11: 0 | K11: 0 | N11: 3
B12: 4 | D12: 0 | F12: 0.9 | G12: 0.9 | H12: 1 | I12: 0 | J12: 0 | K12: 0 | N12: 4
B13: 5 | D13: 0 | F13: 0.9 | G13: 0.9 | H13: 1 | I13: 0 | J13: 0 | K13: 0 | N13: 5
B14: 6 | D14: 0 | F14: 0.9 | G14: 0.9 | H14: 1 | I14: 0 | J14: 0 | K14: 0 | N14: 6
B15: 7 | D15: 0 | F15: 0.9 | G15: 0.9 | H15: 1 | I15: 0 | J15: 0 | K15: 0 | N15: 7
B16: 8 | D16: 0 | F16: 0.9 | G16: 0.9 | H16: 1 | I16: 0 | J16: 0 | K16: 0 | N16: 8
B17: 9 | D17: 0 | F17: 0.9 | G17: 0.9 | H17: 1 | I17: 0 | J17: 0 | K17: 0 | N17: 9
B18: 10 | D18: 0 | F18: 0.9 | G18: 0.9 | H18: 1 | I18: 0 | J18: 0 | K18: 0 | N18: 10
B20: 【浸透トレンチ】 | C20: 単位設計浸透能 | E20: 設置数量 （ｍ） | F20: 影響係数 | N20: 【浸透トレンチ】 1mあたり | O20: 浸透管部 | P20: 砕石部
C21: 比浸透量（㎡） | D21: 飽和透水係数 （m/hr） | F21: （1） | G21: （2） | H21: （3） | O21: 体積 （ｍ3） | P21: 体積 （ｍ3） | Q21: 空隙率 （％）
F22: 内容（１） | G22: 内容（２） | H22: 内容（３）
B23: 1 | D23: 0 | F23: 0.9 | G23: 0.9 | H23: 1 | I23: =D23 -> 0 | J23: =$C23*$I23*$E23*$F23*$G23*$H23 -> 0 | K23: =($O23+$P23*$Q23/100)*$E23 -> 0 | N23: 1
B24: 2 | D24: 0 | F24: 0.9 | G24: 0.9 | H24: 1 | I24: 0 | J24: =$C24*$I24*$E24*$F24*$G24*$H24 -> 0 | K24: 0 | N24: 2
B25: 3 | D25: 0 | F25: 0.9 | G25: 0.9 | H25: 1 | I25: 0 | J25: 0 | K25: 0 | N25: 3
B26: 4 | D26: 0 | F26: 0.9 | G26: 0.9 | H26: 1 | I26: 0 | J26: 0 | K26: 0 | N26: 4
B27: 5 | D27: 0 | F27: 0.9 | G27: 0.9 | H27: 1 | I27: 0 | J27: 0 | K27: 0 | N27: 5
B28: 6 | D28: 0 | F28: 0.9 | G28: 0.9 | H28: 1 | I28: 0 | J28: 0 | K28: 0 | N28: 6
B29: 7 | D29: 0 | F29: 0.9 | G29: 0.9 | H29: 1 | I29: 0 | J29: 0 | K29: 0 | N29: 7
B30: 8 | D30: 0 | F30: 0.9 | G30: 0.9 | H30: 1 | I30: 0 | J30: 0 | K30: 0 | N30: 8
B31: 9 | D31: 0 | F31: 0.9 | G31: 0.9 | H31: 1 | I31: 0 | J31: 0 | K31: 0 | N31: 9
B32: 10 | D32: 0 | F32: 0.9 | G32: 0.9 | H32: 1 | I32: 0 | J32: 0 | K32: 0 | N32: 10
B34: 【透水性舗装】 | C34: 単位設計浸透能 | E34: 設置数量 （㎡） | F34: 影響係数 | N34: 【透水性舗装】 1㎡あたり | O34: 体積 （ｍ3） | P34: 空隙率 （％）
C35: 比浸透量（㎡） | D35: 飽和透水係数 （m/hr） | F35: （1） | G35: （2） | H35: （3）
F36: 内容（１） | G36: 内容（２） | H36: 内容（３）
B37: 1 | D37: 0 | F37: 0.9 | G37: 0.9 | H37: 1 | I37: =D37 -> 0 | J37: =$C37*$I37*$E37*$F37*$G37*$H37 -> 0 | K37: =$E37*($P37/100*O37) -> 0 | N37: 1
B38: 2 | D38: 0 | F38: 0.9 | G38: 0.9 | H38: 1 | I38: 0 | J38: =$C38*$I38*$E38*$F38*$G38*$H38 -> 0 | K38: =$E38*($P38/100*O38) -> 0 | N38: 2
B39: 3 | D39: 0 | F39: 0.9 | G39: 0.9 | H39: 1 | I39: 0 | J39: 0 | K39: 0 | N39: 3
B40: 4 | D40: 0 | F40: 0.9 | G40: 0.9 | H40: 1 | I40: 0 | J40: 0 | K40: 0 | N40: 4
B41: 5 | D41: 0 | F41: 0.9 | G41: 0.9 | H41: 1 | I41: 0 | J41: 0 | K41: 0 | N41: 5
B42: 6 | D42: 0 | F42: 0.9 | G42: 0.9 | H42: 1 | I42: 0 | J42: 0 | K42: 0 | N42: 6
B43: 7 | D43: 0 | F43: 0.9 | G43: 0.9 | H43: 1 | I43: 0 | J43: 0 | K43: 0 | N43: 7
B44: 8 | D44: 0 | F44: 0.9 | G44: 0.9 | H44: 1 | I44: 0 | J44: 0 | K44: 0 | N44: 8
B45: 9 | D45: 0 | F45: 0.9 | G45: 0.9 | H45: 1 | I45: 0 | J45: 0 | K45: 0 | N45: 9
B46: 10 | D46: 0 | F46: 0.9 | G46: 0.9 | H46: 1 | I46: 0 | J46: 0 | K46: 0 | N46: 10
B48: 【その他】 | C48: 単位設計浸透能 | E48: 設置数量 （単位） | F48: 影響係数 | N48: 【その他】 | O48: 体積 （ｍ3） | P48: 空隙率 （％）
C49: 比浸透量（㎡） | D49: 飽和透水係数 （m/hr） | F49: （1） | G49: （2） | H49: （3）
F50: 内容（１） | G50: 内容（２） | H50: 内容（３）
B51: 1 | D51: 0 | F51: 0.9 | G51: 0.9 | H51: 1 | I51: =D51 -> 0 | J51: =$C51*$I51*$E51*$F51*$G51*$H51 -> 0 | K51: =$E51*($P51/100*O51) -> 0 | N51: 1
B52: 2 | D52: 0 | F52: 0.9 | G52: 0.9 | H52: 1 | I52: 0 | J52: =$C52*$I52*$E52*$F52*$G52*$H52 -> 0 | K52: =$E52*($P52/100*O52) -> 0 | N52: 2
B53: 3 | D53: 0 | F53: 0.9 | G53: 0.9 | H53: 1 | I53: 0 | J53: 0 | K53: 0 | N53: 3
B54: 4 | D54: 0 | F54: 0.9 | G54: 0.9 | H54: 1 | I54: 0 | J54: 0 | K54: 0 | N54: 4
B55: 5 | D55: 0 | F55: 0.9 | G55: 0.9 | H55: 1 | I55: 0 | J55: 0 | K55: 0 | N55: 5
B56: 6 | D56: 0 | F56: 0.9 | G56: 0.9 | H56: 1 | I56: 0 | J56: 0 | K56: 0 | N56: 6
B57: 7 | D57: 0 | F57: 0.9 | G57: 0.9 | H57: 1 | I57: 0 | J57: 0 | K57: 0 | N57: 7
B58: 8 | D58: 0 | F58: 0.9 | G58: 0.9 | H58: 1 | I58: 0 | J58: 0 | K58: 0 | N58: 8
B59: 9 | D59: 0 | F59: 0.9 | G59: 0.9 | H59: 1 | I59: 0 | J59: 0 | K59: 0 | N59: 9
B60: 10 | D60: 0 | F60: 0.9 | G60: 0.9 | H60: 1 | I60: 0 | J60: 0 | K60: 0 | N60: 10

Sheet 施設諸元（浸透_道路管理者用）
N1: 【提出様式】
A2: 流出抑制施設諸元（浸透施設_道路管理者用）
A6: 透水性舗装
B8: 基本諸元
B9: 設置数量(舗装面積) (m2)
B10: 飽和透水係数 （m/hr） | G10: 上層路盤での貯留率(%) | I10: =L21 -> 0
B11: 比浸透量算定定数 K=aH+b | C11: a | G11: 下層路盤での貯留率(%) | I11: =L22 -> 0
C12: b | G12: 下層路盤厚(mm) | I12: =D22 -> 0
B13: 目詰まり 係数 | C13: C1 | G13: 下層路盤での貯留量(mm) | I13: =M22 -> 0
C14: C2 | G14: 貯留量の合計(mm) | I14: =M23 -> 0
B16: 貯留率と水拘束率
D17: 厚さ(mm) | E17: 空気間隙率 (%) | F17: 空気間隙率との関係 | G17: 水拘束率 (%) | H17: 水拘束量 (mm) | I17: 貯留率 (%) | J17: 貯留量 (mm) | L17: STEP2での 貯留率 (%) | M17: STEP2での 貯留量 (mm)
B18: 関係式 | D18: a | E18: b | F18: b' | G18: c | H18: a×c/100 | I18: d (=b+b') | J18: a×d/100 | L18: d-c | M18: a×(d-c)/100
B19: 表層 | H19: =D19*G19/100 -> 0 | I19: =E19+F19 -> 0 | J19: =D19*I19/100 -> 0 | L19: =I19-G19 -> 0 | M19: =D19*(I19-G19)/100 -> 0
B20: 中間層・基層 | H20: =D20*G20/100 -> 0 | I20: =E20+F20 -> 0 | J20: =D20*I20/100 -> 0 | L20: =I20-G20 -> 0 | M20: =D20*(I20-G20)/100 -> 0
B21: 上層路盤 | H21: =D21*G21/100 -> 0 | I21: =E21+F21 -> 0 | J21: =D21*I21/100 -> 0 | L21: =I21-G21 -> 0 | M21: =D21*(I21-G21)/100 -> 0
B22: 下層路盤 | H22: =D22*G22/100 -> 0 | I22: =E22+F22 -> 0 | J22: =D22*I22/100 -> 0 | L22: =I22-G22 -> 0 | M22: =D22*(I22-G22)/100 -> 0
B23: 合計 | D23: =SUM(D19:D22) -> 0 | E23: - | F23: - | G23: - | H23: =SUM(H19:H22) -> 0 | I23: - | J23: =SUM(J19:J22) -> 0 | L23: - | M23: =SUM(M19:M22) -> 0
A25: 浸透マス・トレンチ
B27: 浸透能諸元 | K27: 空隙貯留諸元
B28: 【浸透ます】 | D28: 単位設計浸透能 | F28: 設置数量 （個） | G28: 設計水頭 (m) | H28: 影響係数 | K28: 【浸透ます】 1個あたり | L28: ます部 | M28: 砕石部 | P28: Σ | Q28: 設計浸透量 | R28: 平均設計水頭 | S28: 設計空隙貯留量
D29: 比浸透量（㎡） | E29: 飽和透水係数 （m/hr） | H29: 地下水位 係数 | I29: 目詰まり 係数 | L29: 体積 （ｍ3） | M29: 体積 （ｍ3） | N29: 空隙率 （％）
O30: 小計
B31: 1 | H31: 1 | I31: 1 | K31: 1 | P31: =D31*E31*F31*G31*H31*I31 -> 0 | Q31: =D31*E31*F31*H31*I31 -> 0 | S31: =L31*M31/100 -> 0
B32: 2 | H32: 1 | I32: 1 | K32: 2 | P32: =D32*E32*F32*G32*H32*I32 -> 0 | Q32: =D32*E32*F32*H32*I32 -> 0 | S32: =L32*M32/100 -> 0
B33: 3 | H33: 1 | I33: 1 | K33: 3 | P33: 0 | Q33: 0 | S33: 0
B34: 4 | H34: 1 | I34: 1 | K34: 4 | P34: 0 | Q34: 0 | S34: 0
B35: 5 | H35: 1 | I35: 1 | K35: 5 | P35: 0 | Q35: 0 | S35: 0
B36: 6 | H36: 1 | I36: 1 | K36: 6 | P36: 0 | Q36: 0 | S36: 0
B37: 7 | H37: 1 | I37: 1 | K37: 7 | P37: 0 | Q37: 0 | S37: 0
B38: 8 | H38: 1 | I38: 1 | K38: 8 | P38: 0 | Q38: 0 | S38: 0
B39: 9 | H39: 1 | I39: 1 | K39: 9 | P39: 0 | Q39: 0 | S39: 0
B40: 10 | H40: 1 | I40: 1 | K40: 10 | P40: 0 | Q40: 0 | S40: 0
B42: 【浸透トレンチ】 | D42: 単位設計浸透能 | F42: 設置数量 （ｍ） | G42: 設計水頭 (m) | H42: 影響係数 | K42: 【浸透トレンチ】 1mあたり | L42: 浸透管部 | M42: 砕石部
D43: 比浸透量（㎡） | E43: 飽和透水係数 （m/hr） | H43: 地下水位 係数 | I43: 目詰まり 係数 | L43: 体積 （ｍ3） | M43: 体積 （ｍ3） | N43: 空隙率 （％）
B45: 1 | H45: 1 | I45: 1 | K45: 1 | P45: =D45*E45*F45*G45*H45*I45 -> 0 | Q45: =D45*E45*F45*H45*I45 -> 0 | S45: =L45*M45/100 -> 0
B46: 2 | H46: 1 | I46: 1 | K46: 2 | P46: =D46*E46*F46*G46*H46*I46 -> 0 | Q46: =D46*E46*F46*H46*I46 -> 0 | S46: 0
B47: 3 | H47: 1 | I47: 1 | K47: 3 | P47: 0 | Q47: 0 | S47: 0
B48: 4 | H48: 1 | I48: 1 | K48: 4 | P48: 0 | Q48: 0 | S48: 0
B49: 5 | H49: 1 | I49: 1 | K49: 5 | P49: 0 | Q49: 0 | S49: 0
B50: 6 | H50: 1 | I50: 1 | K50: 6 | P50: 0 | Q50: 0 | S50: 0
B51: 7 | H51: 1 | I51: 1 | K51: 7 | P51: 0 | Q51: 0 | S51: 0
B52: 8 | H52: 1 | I52: 1 | K52: 8 | P52: 0 | Q52: 0 | S52: 0
B53: 9 | H53: 1 | I53: 1 | K53: 9 | P53: 0 | Q53: 0 | S53: 0
B54: 10 | H54: 1 | I54: 1 | K54: 10 | P54: 0 | Q54: 0 | S54: 0
B56: 統合諸元
B57: 設計浸透能(m3/hr) | D57: =Q59 -> 0
B58: 平均設計水頭(m) | D58: =IF(D57>0,+R59,0) -> 0
B59: 設計空隙貯留量(m3) | D59: =S59 -> 0 | O59: 総合計 | P59: =P61+P62 -> 0 | Q59: =Q61+Q62 -> 0 | R59: =P59/Q59 ->  | S59: =S61+S62 -> 0
O61: マス | P61: =SUM(P31:P40) -> 0 | Q61: =SUM(Q31:Q40) -> 0 | R61: =P61/Q61 ->  | S61: =SUM(S31:S40) -> 0
O62: トレンチ | P62: =SUM(P45:P54) -> 0 | Q62: =SUM(Q45:Q54) -> 0 | R62: =P62/Q62 ->  | S62: =SUM(S45:S54) -> 0

Sheet 調節計算結果
I1: 【提出様式】
A2: 調節計算結果（流量ハイドログラフ）
B3: 【放流量】
B4: 最大放流量(行為後) | C4: ='コントロールシート（浸透施設のみ）'!C18 -> 0.389 | D4: m3/s
B5: 最大放流量 | C5: ='コントロールシート（浸透施設のみ）'!C20 -> 0.384203 | D5: m3/s | E5: ≦ | F5: 許容放流量 | G5: =事前相談チェックシート!U25 -> 99999 | H5: m3/s | I5: =IF(C5<=G5,"OK","NG") -> OK

Sheet 許可申請書
A1: 別記様式第二（第十六条関係）
G2: 許可申請
F3: 雨水浸透阻害行為 | H3: 書
G4: 協 議
E6: 第３０条 | J6: ※
A7: 特定都市河川浸水被害対策法 の規定により、雨水浸透阻害行為 | J7: 手数料欄
E8: 第３５条
C9: 許可を申請
A10: について します。
C11: 協 議
A13: 年 月 日
A14: 殿
E15: 住所 | F15: =事前相談書!H17 -> 0
E17: 氏名 | F17: =事前相談書!H19 -> 0
A19: 雨水浸透阻害行為等の概要 | B19: １ | C19: 雨水浸透阻害行為の区域に含まれる地域の名称 | G19: =事前相談書!G8 -> 0
B20: ２ | C20: 雨水浸透阻害行為区域の面積 | G20: =事前相談チェックシート!R5*10000 -> 0
B21: ３ | C21: 雨水浸透阻害行為に関する工事の計画の概要 | G21: =事前相談書!G14 -> 0
B23: ４ | C23: 対策工事の計画の概要
B25: ５ | C25: 雨水浸透阻害行為に関する工事の着手予定日 | G25: 年 月 日
B26: ６ | C26: 雨水浸透阻害行為に関する工事の完了予定日 | G26: 年 月 日
B27: ７ | C27: 対策工事の着手予定日 | G27: 年 月 日
B28: ８ | C28: 対策工事の完了予定日 | G28: 年 月 日
B29: ９ | C29: その他必要な事項
A30: ※受付番号 | E30: 年 月 日 | H30: 第 号
A31: ※許可に付した条件
A32: ※許可番号 | E32: 年 月 日 | H32: 第 号
A33: 備考
B34: １ | C34: 「許可申請 、 「第３０ 条 、 「許可を申請 | H34: については、該当するものを○で
C35: 協 議」 第３５条」 協 議」
C36: 囲むこと。
B37: ２ | C37: 許可申請者が法人である場合においては、氏名は、その法人の名称及び代表者の氏名を記載すること。
B39: ３ | C39: ※印のある欄は記載しないこと。
B40: ４ | C40: 雨水浸透阻害行為に関する工事の計画及び対策工事の計画については、概要の記述の末尾に「（計画の詳細は、別葉の計画説明書及び計画図による。）」と記載し、それぞれ計画説明書及び計画図を別葉とすること。
B43: ５ | C43: 「その他の必要な事項」の欄には、雨水浸透阻害行為を行うことについて、都市計画法、農地法その他の法令による許可、認可等を要する場合には、その手続の状況を記載すること。

Sheet 計画説明書
A1: 様式－１（特定都市河川浸水被害対策法施行規則 第16条関係）
A2: 計 画 説 明 書
A3: 申請者
A4: 設計者
A5: 工事施工者
A6: 施設管理者
A7: 雨水浸透阻害行為の区域に含まれる地域の名称 | B7: =事前相談書!G8 -> 0
A8: 雨水浸透阻害行為に関する工事の計画の概要
A9: 対策工事の計画の概要
A10: 行為区域(対策工事に係る雨水貯留浸透施設の集水区域が行為区域の範囲を超えるときは、当該超える区域を含む。)内の土地の現況(m2) | B10: 宅 地 | C10: 池 沼 | D10: 水 路 | E10: ため池 | F10: 道 路 | G10: 道 路 | H10: 鉄道線路 | I10: 鉄道線路 | J10: 飛行場 | K10: 飛行場
F11: (法面無) | G11: (法面有) | H11: (法面無) | I11: (法面有) | J11: (法面無) | K11: (法面有)
B12: =事前相談入力シート!C23*10000 -> 0 | C12: =事前相談入力シート!D23*10000 -> 0 | D12: =事前相談入力シート!E23*10000 -> 0 | E12: =事前相談入力シート!F23*10000 -> 0 | F12: =事前相談入力シート!G23*10000 -> 0 | G12: =事前相談入力シート!H23*10000 -> 0 | H12: =事前相談入力シート!I23*10000 -> 0 | I12: =事前相談入力シート!J23*10000 -> 0 | J12: =事前相談入力シート!K23*10000 -> 0 | K12: =事前相談入力シート!L23*10000 -> 0
B13: 太陽光 パネル | C13: 舗装された土地(法面を除く。) | D13: 舗装された土地(法面) | E13: ゴルフ場 | F13: 運動場 | G13: 締め固められた土地 | H13: 山 地 | I13: 植生に覆われた法面 | J13: 林地・耕地・原野その他 | K13: 合 計
B14: =事前相談入力シート!M23*10000 -> 0 | C14: =事前相談入力シート!N23*10000 -> 0 | D14: =事前相談入力シート!O23*10000 -> 0 | E14: =事前相談入力シート!P23*10000 -> 0 | F14: =事前相談入力シート!Q23*10000 -> 0 | G14: =事前相談入力シート!R23*10000 -> 0 | H14: =事前相談入力シート!S23*10000 -> 0 | I14: =事前相談入力シート!T23*10000 -> 0 | J14: =事前相談入力シート!U23*10000 -> 0 | K14: =SUM(B12:K12,B14:J14) -> 0
A15: 行為区域(対策工事に係る雨水貯留浸透施設の集水区域が行為区域の範囲を超えるときは、当該超える区域を含む。)内の土地利用計画(m2) | B15: 宅 地 | C15: 池 沼 | D15: 水 路 | E15: ため池 | F15: 道 路 | G15: 道 路 | H15: 鉄道線路 | I15: 鉄道線路 | J15: 飛行場 | K15: 飛行場
F16: (法面無) | G16: (法面有) | H16: (法面無) | I16: (法面有) | J16: (法面無) | K16: (法面有)
B17: =事前相談入力シート!C46*10000 -> 0 | C17: =事前相談入力シート!D46*10000 -> 0 | D17: =事前相談入力シート!E46*10000 -> 0 | E17: =事前相談入力シート!F46*10000 -> 0 | F17: =事前相談入力シート!G46*10000 -> 0 | G17: =事前相談入力シート!H46*10000 -> 0 | H17: =事前相談入力シート!I46*10000 -> 0 | I17: =事前相談入力シート!J46*10000 -> 0 | J17: =事前相談入力シート!K46*10000 -> 0 | K17: =事前相談入力シート!L46*10000 -> 0
B18: 太陽光 パネル | C18: 舗装された土地(法面を除く。) | D18: 舗装された土地(法面) | E18: ゴルフ場 | F18: 運動場 | G18: 締め固められた土地 | H18: 山 地 | I18: 植生に覆われた法面 | J18: 林地・耕地・原野その他 | K18: 合 計
B19: =事前相談入力シート!M46*10000 -> 0 | C19: =事前相談入力シート!N46*10000 -> 0 | D19: =事前相談入力シート!O46*10000 -> 0 | E19: =事前相談入力シート!P46*10000 -> 0 | F19: =事前相談入力シート!Q46*10000 -> 0 | G19: =事前相談入力シート!R46*10000 -> 0 | H19: =事前相談入力シート!S46*10000 -> 0 | I19: =事前相談入力シート!T46*10000 -> 0 | J19: =事前相談入力シート!U46*10000 -> 0 | K19: =SUM(B17:K17,B19:J19) -> 0
A20: 対策工事に係る雨水貯留浸透施設の計画 | B20: 行為前の流出係数 | E20: =事前相談チェックシート!R10 ->  | G20: 行為後の流出係数 | J20: =事前相談チェックシート!R12 -> 
B21: 行為前の流出雨水量 | E21: =事前相談チェックシート!R11 ->  | G21: 行為後の流出雨水量 | J21: =事前相談チェックシート!R13 -> 
B22: 雨水貯留浸透施設の計画 | E22: 構造名称 | H22: 容量(浸透能力)
A26: その他
A27: 備考

Sheet mkrain (hidden)
B1: 降雨ハイエト | G1: =MAX(G4:G147) -> 127
B2: 埼玉県南部 | C2: 埼玉県北部 | D2: 東京都 | E2: 茨城県 | G2: 対象エリア
B4: 4.087 | C4: 2.9617 | D4: 4.0747 | E4: 2.6571 | F4: 1 | G4: =ROUND(IF(事前相談チェックシート!$U$4=mkrain!B$2,mkrain!B4,IF(事前相談チェックシート!$U$4=mkrain!C$2,mkrain!C4,IF(事前相談チェックシート!$U$4=mkrain!D$2,mkrain!D4,mkrain!E4))),1) -> 2.7 | H4: 対象エリアによって参照を変更する
B5: 4.1269 | C5: 2.9901 | D5: 4.1143 | E5: 2.6828 | F5: 2 | G5: =ROUND(IF(事前相談チェックシート!$U$4=mkrain!B$2,mkrain!B5,IF(事前相談チェックシート!$U$4=mkrain!C$2,mkrain!C5,IF(事前相談チェックシート!$U$4=mkrain!D$2,mkrain!D5,mkrain!E5))),1) -> 2.7
B6: 4.1677 | C6: 3.0192 | D6: 4.1549 | E6: 2.7091 | F6: 3 | G6: =ROUND(IF(事前相談チェックシート!$U$4=mkrain!B$2,mkrain!B6,IF(事前相談チェックシート!$U$4=mkrain!C$2,mkrain!C6,IF(事前相談チェックシート!$U$4=mkrain!D$2,mkrain!D6,mkrain!E6))),1) -> 2.7
B7: 4.2096 | C7: 3.049 | D7: 4.1966 | E7: 2.7361 | F7: 4 | G7: =ROUND(IF(事前相談チェックシート!$U$4=mkrain!B$2,mkrain!B7,IF(事前相談チェックシート!$U$4=mkrain!C$2,mkrain!C7,IF(事前相談チェックシート!$U$4=mkrain!D$2,mkrain!D7,mkrain!E7))),1) -> 2.7
B8: 4.2525 | C8: 3.0795 | D8: 4.2393 | E8: 2.7638 | F8: 5 | G8: =ROUND(IF(事前相談チェックシート!$U$4=mkrain!B$2,mkrain!B8,IF(事前相談チェックシート!$U$4=mkrain!C$2,mkrain!C8,IF(事前相談チェックシート!$U$4=mkrain!D$2,mkrain!D8,mkrain!E8))),1) -> 2.8
B9: 4.2965 | C9: 3.1108 | D9: 4.283 | E9: 2.7921 | F9: 6 | G9: =ROUND(IF(事前相談チェックシート!$U$4=mkrain!B$2,mkrain!B9,IF(事前相談チェックシート!$U$4=mkrain!C$2,mkrain!C9,IF(事前相談チェックシート!$U$4=mkrain!D$2,mkrain!D9,mkrain!E9))),1) -> 2.8
B10: 4.3417 | C10: 3.143 | D10: 4.328 | E10: 2.8212 | F10: 7 | G10: =ROUND(IF(事前相談チェックシート!$U$4=mkrain!B$2,mkrain!B10,IF(事前相談チェックシート!$U$4=mkrain!C$2,mkrain!C10,IF(事前相談チェックシート!$U$4=mkrain!D$2,mkrain!D10,mkrain!E10))),1) -> 2.8
B11: 4.388 | C11: 3.176 | D11: 4.3741 | E11: 2.8511 | F11: 8 | G11: =ROUND(IF(事前相談チェックシート!$U$4=mkrain!B$2,mkrain!B11,IF(事前相談チェックシート!$U$4=mkrain!C$2,mkrain!C11,IF(事前相談チェックシート!$U$4=mkrain!D$2,mkrain!D11,mkrain!E11))),1) -> 2.9
B12: 4.4356 | C12: 3.2098 | D12: 4.4214 | E12: 2.8817 | F12: 9 | G12: =ROUND(IF(事前相談チェックシート!$U$4=mkrain!B$2,mkrain!B12,IF(事前相談チェックシート!$U$4=mkrain!C$2,mkrain!C12,IF(事前相談チェックシート!$U$4=mkrain!D$2,mkrain!D12,mkrain!E12))),1) -> 2.9
B13: 4.4845 | C13: 3.2446 | D13: 4.47 | E13: 2.9132 | F13: 10 | G13: =ROUND(IF(事前相談チェックシート!$U$4=mkrain!B$2,mkrain!B13,IF(事前相談チェックシート!$U$4=mkrain!C$2,mkrain!C13,IF(事前相談チェックシート!$U$4=mkrain!D$2,mkrain!D13,mkrain!E13))),1) -> 2.9
B14: 4.5348 | C14: 3.2803 | D14: 4.52 | E14: 2.9456 | F14: 11 | G14: =ROUND(IF(事前相談チェックシート!$U$4=mkrain!B$2,mkrain!B14,IF(事前相談チェックシート!$U$4=mkrain!C$2,mkrain!C14,IF(事前相談チェックシート!$U$4=mkrain!D$2,mkrain!D14,mkrain!E14))),1) -> 2.9
B15: 4.5864 | C15: 3.317 | D15: 4.5714 | E15: 2.9789 | F15: 12 | G15: =ROUND(IF(事前相談チェックシート!$U$4=mkrain!B$2,mkrain!B15,IF(事前相談チェックシート!$U$4=mkrain!C$2,mkrain!C15,IF(事前相談チェックシート!$U$4=mkrain!D$2,mkrain!D15,mkrain!E15))),1) -> 3
B16: 4.6396 | C16: 3.3548 | D16: 4.6242 | E16: 3.0131 | F16: 13 | G16: =ROUND(IF(事前相談チェックシート!$U$4=mkrain!B$2,mkrain!B16,IF(事前相談チェックシート!$U$4=mkrain!C$2,mkrain!C16,IF(事前相談チェックシート!$U$4=mkrain!D$2,mkrain!D16,mkrain!E16))),1) -> 3
B17: 4.6943 | C17: 3.3936 | D17: 4.6786 | E17: 3.0483 | F17: 14 | G17: =ROUND(IF(事前相談チェックシート!$U$4=mkrain!B$2,mkrain!B17,IF(事前相談チェックシート!$U$4=mkrain!C$2,mkrain!C17,IF(事前相談チェックシート!$U$4=mkrain!D$2,mkrain!D17,mkrain!E17))),1) -> 3
B18: 4.7506 | C18: 3.4336 | D18: 4.7346 | E18: 3.0845 | F18: 15 | G18: =ROUND(IF(事前相談チェックシート!$U$4=mkrain!B$2,mkrain!B18,IF(事前相談チェックシート!$U$4=mkrain!C$2,mkrain!C18,IF(事前相談チェックシート!$U$4=mkrain!D$2,mkrain!D18,mkrain!E18))),1) -> 3.1
B19: 4.8086 | C19: 3.4748 | D19: 4.7923 | E19: 3.1219 | F19: 16 | G19: =ROUND(IF(事前相談チェックシート!$U$4=mkrain!B$2,mkrain!B19,IF(事前相談チェックシート!$U$4=mkrain!C$2,mkrain!C19,IF(事前相談チェックシート!$U$4=mkrain!D$2,mkrain!D19,mkrain!E19))),1) -> 3.1
B20: 4.8684 | C20: 3.5172 | D20: 4.8518 | E20: 3.1603 | F20: 17 | G20: =ROUND(IF(事前相談チェックシート!$U$4=mkrain!B$2,mkrain!B20,IF(事前相談チェックシート!$U$4=mkrain!C$2,mkrain!C20,IF(事前相談チェックシート!$U$4=mkrain!D$2,mkrain!D20,mkrain!E20))),1) -> 3.2
B21: 4.9301 | C21: 3.5609 | D21: 4.9131 | E21: 3.2 | F21: 18 | G21: =ROUND(IF(事前相談チェックシート!$U$4=mkrain!B$2,mkrain!B21,IF(事前相談チェックシート!$U$4=mkrain!C$2,mkrain!C21,IF(事前相談チェックシート!$U$4=mkrain!D$2,mkrain!D21,mkrain!E21))),1) -> 3.2
B22: 4.9937 | C22: 3.606 | D22: 4.9764 | E22: 3.241 | F22: 19 | G22: =ROUND(IF(事前相談チェックシート!$U$4=mkrain!B$2,mkrain!B22,IF(事前相談チェックシート!$U$4=mkrain!C$2,mkrain!C22,IF(事前相談チェックシート!$U$4=mkrain!D$2,mkrain!D22,mkrain!E22))),1) -> 3.2
B23: 5.0594 | C23: 3.6526 | D23: 5.0417 | E23: 3.2832 | F23: 20 | G23: =ROUND(IF(事前相談チェックシート!$U$4=mkrain!B$2,mkrain!B23,IF(事前相談チェックシート!$U$4=mkrain!C$2,mkrain!C23,IF(事前相談チェックシート!$U$4=mkrain!D$2,mkrain!D23,mkrain!E23))),1) -> 3.3
B24: 5.1273 | C24: 3.7007 | D24: 5.1092 | E24: 3.3269 | F24: 21 | G24: =ROUND(IF(事前相談チェックシート!$U$4=mkrain!B$2,mkrain!B24,IF(事前相談チェックシート!$U$4=mkrain!C$2,mkrain!C24,IF(事前相談チェックシート!$U$4=mkrain!D$2,mkrain!D24,mkrain!E24))),1) -> 3.3
B25: 5.1975 | C25: 3.7504 | D25: 5.179 | E25: 3.372 | F25: 22 | G25: =ROUND(IF(事前相談チェックシート!$U$4=mkrain!B$2,mkrain!B25,IF(事前相談チェックシート!$U$4=mkrain!C$2,mkrain!C25,IF(事前相談チェックシート!$U$4=mkrain!D$2,mkrain!D25,mkrain!E25))),1) -> 3.4
B26: 5.2701 | C26: 3.8018 | D26: 5.2512 | E26: 3.4187 | F26: 23 | G26: =ROUND(IF(事前相談チェックシート!$U$4=mkrain!B$2,mkrain!B26,IF(事前相談チェックシート!$U$4=mkrain!C$2,mkrain!C26,IF(事前相談チェックシート!$U$4=mkrain!D$2,mkrain!D26,mkrain!E26))),1) -> 3.4
B27: 5.3453 | C27: 3.855 | D27: 5.3259 | E27: 3.467 | F27: 24 | G27: =ROUND(IF(事前相談チェックシート!$U$4=mkrain!B$2,mkrain!B27,IF(事前相談チェックシート!$U$4=mkrain!C$2,mkrain!C27,IF(事前相談チェックシート!$U$4=mkrain!D$2,mkrain!D27,mkrain!E27))),1) -> 3.5
B28: 5.4232 | C28: 3.9101 | D28: 5.4033 | E28: 3.5171 | F28: 25 | G28: =ROUND(IF(事前相談チェックシート!$U$4=mkrain!B$2,mkrain!B28,IF(事前相談チェックシート!$U$4=mkrain!C$2,mkrain!C28,IF(事前相談チェックシート!$U$4=mkrain!D$2,mkrain!D28,mkrain!E28))),1) -> 3.5
B29: 5.5039 | C29: 3.9672 | D29: 5.4836 | E29: 3.5689 | F29: 26 | G29: =ROUND(IF(事前相談チェックシート!$U$4=mkrain!B$2,mkrain!B29,IF(事前相談チェックシート!$U$4=mkrain!C$2,mkrain!C29,IF(事前相談チェックシート!$U$4=mkrain!D$2,mkrain!D29,mkrain!E29))),1) -> 3.6
B30: 5.5877 | C30: 4.0265 | D30: 5.5668 | E30: 3.6227 | F30: 27 | G30: =ROUND(IF(事前相談チェックシート!$U$4=mkrain!B$2,mkrain!B30,IF(事前相談チェックシート!$U$4=mkrain!C$2,mkrain!C30,IF(事前相談チェックシート!$U$4=mkrain!D$2,mkrain!D30,mkrain!E30))),1) -> 3.6
B31: 5.6747 | C31: 4.0879 | D31: 5.6533 | E31: 3.6786 | F31: 28 | G31: =ROUND(IF(事前相談チェックシート!$U$4=mkrain!B$2,mkrain!B31,IF(事前相談チェックシート!$U$4=mkrain!C$2,mkrain!C31,IF(事前相談チェックシート!$U$4=mkrain!D$2,mkrain!D31,mkrain!E31))),1) -> 3.7
B32: 5.7651 | C32: 4.1518 | D32: 5.7431 | E32: 3.7367 | F32: 29 | G32: =ROUND(IF(事前相談チェックシート!$U$4=mkrain!B$2,mkrain!B32,IF(事前相談チェックシート!$U$4=mkrain!C$2,mkrain!C32,IF(事前相談チェックシート!$U$4=mkrain!D$2,mkrain!D32,mkrain!E32))),1) -> 3.7
B33: 5.8591 | C33: 4.2182 | D33: 5.8366 | E33: 3.7971 | F33: 30 | G33: =ROUND(IF(事前相談チェックシート!$U$4=mkrain!B$2,mkrain!B33,IF(事前相談チェックシート!$U$4=mkrain!C$2,mkrain!C33,IF(事前相談チェックシート!$U$4=mkrain!D$2,mkrain!D33,mkrain!E33))),1) -> 3.8
B34: 5.9571 | C34: 4.2873 | D34: 5.9339 | E34: 3.8599 | F34: 31 | G34: =ROUND(IF(事前相談チェックシート!$U$4=mkrain!B$2,mkrain!B34,IF(事前相談チェックシート!$U$4=mkrain!C$2,mkrain!C34,IF(事前相談チェックシート!$U$4=mkrain!D$2,mkrain!D34,mkrain!E34))),1) -> 3.9
B35: 6.0591 | C35: 4.3593 | D35: 6.0354 | E35: 3.9254 | F35: 32 | G35: =ROUND(IF(事前相談チェックシート!$U$4=mkrain!B$2,mkrain!B35,IF(事前相談チェックシート!$U$4=mkrain!C$2,mkrain!C35,IF(事前相談チェックシート!$U$4=mkrain!D$2,mkrain!D35,mkrain!E35))),1) -> 3.9
B36: 6.1656 | C36: 4.4344 | D36: 6.1412 | E36: 3.9938 | F36: 33 | G36: =ROUND(IF(事前相談チェックシート!$U$4=mkrain!B$2,mkrain!B36,IF(事前相談チェックシート!$U$4=mkrain!C$2,mkrain!C36,IF(事前相談チェックシート!$U$4=mkrain!D$2,mkrain!D36,mkrain!E36))),1) -> 4
B37: 6.2768 | C37: 4.5127 | D37: 6.2517 | E37: 4.0651 | F37: 34 | G37: =ROUND(IF(事前相談チェックシート!$U$4=mkrain!B$2,mkrain!B37,IF(事前相談チェックシート!$U$4=mkrain!C$2,mkrain!C37,IF(事前相談チェックシート!$U$4=mkrain!D$2,mkrain!D37,mkrain!E37))),1) -> 4.1
B38: 6.3931 | C38: 4.5947 | D38: 6.3673 | E38: 4.1397 | F38: 35 | G38: =ROUND(IF(事前相談チェックシート!$U$4=mkrain!B$2,mkrain!B38,IF(事前相談チェックシート!$U$4=mkrain!C$2,mkrain!C38,IF(事前相談チェックシート!$U$4=mkrain!D$2,mkrain!D38,mkrain!E38))),1) -> 4.1
B39: 6.5149 | C39: 4.6804 | D39: 6.4882 | E39: 4.2178 | F39: 36 | G39: =ROUND(IF(事前相談チェックシート!$U$4=mkrain!B$2,mkrain!B39,IF(事前相談チェックシート!$U$4=mkrain!C$2,mkrain!C39,IF(事前相談チェックシート!$U$4=mkrain!D$2,mkrain!D39,mkrain!E39))),1) -> 4.2
B40: 6.6425 | C40: 4.7702 | D40: 6.615 | E40: 4.2997 | F40: 37 | G40: =ROUND(IF(事前相談チェックシート!$U$4=mkrain!B$2,mkrain!B40,IF(事前相談チェックシート!$U$4=mkrain!C$2,mkrain!C40,IF(事前相談チェックシート!$U$4=mkrain!D$2,mkrain!D40,mkrain!E40))),1) -> 4.3
B41: 6.7765 | C41: 4.8644 | D41: 6.7482 | E41: 4.3855 | F41: 38 | G41: =ROUND(IF(事前相談チェックシート!$U$4=mkrain!B$2,mkrain!B41,IF(事前相談チェックシート!$U$4=mkrain!C$2,mkrain!C41,IF(事前相談チェックシート!$U$4=mkrain!D$2,mkrain!D41,mkrain!E41))),1) -> 4.4
B42: 6.9173 | C42: 4.9634 | D42: 6.8881 | E42: 4.4758 | F42: 39 | G42: =ROUND(IF(事前相談チェックシート!$U$4=mkrain!B$2,mkrain!B42,IF(事前相談チェックシート!$U$4=mkrain!C$2,mkrain!C42,IF(事前相談チェックシート!$U$4=mkrain!D$2,mkrain!D42,mkrain!E42))),1) -> 4.5
B43: 7.0655 | C43: 5.0676 | D43: 7.0353 | E43: 4.5708 | F43: 40 | G43: =ROUND(IF(事前相談チェックシート!$U$4=mkrain!B$2,mkrain!B43,IF(事前相談チェックシート!$U$4=mkrain!C$2,mkrain!C43,IF(事前相談チェックシート!$U$4=mkrain!D$2,mkrain!D43,mkrain!E43))),1) -> 4.6
B44: 7.2218 | C44: 5.1774 | D44: 7.1906 | E44: 4.671 | F44: 41 | G44: =ROUND(IF(事前相談チェックシート!$U$4=mkrain!B$2,mkrain!B44,IF(事前相談チェックシート!$U$4=mkrain!C$2,mkrain!C44,IF(事前相談チェックシート!$U$4=mkrain!D$2,mkrain!D44,mkrain!E44))),1) -> 4.7
B45: 7.3869 | C45: 5.2933 | D45: 7.3547 | E45: 4.7767 | F45: 42 | G45: =ROUND(IF(事前相談チェックシート!$U$4=mkrain!B$2,mkrain!B45,IF(事前相談チェックシート!$U$4=mkrain!C$2,mkrain!C45,IF(事前相談チェックシート!$U$4=mkrain!D$2,mkrain!D45,mkrain!E45))),1) -> 4.8
B46: 7.5616 | C46: 5.4158 | D46: 7.5282 | E46: 4.8886 | F46: 43 | G46: =ROUND(IF(事前相談チェックシート!$U$4=mkrain!B$2,mkrain!B46,IF(事前相談チェックシート!$U$4=mkrain!C$2,mkrain!C46,IF(事前相談チェックシート!$U$4=mkrain!D$2,mkrain!D46,mkrain!E46))),1) -> 4.9
B47: 7.7468 | C47: 5.5457 | D47: 7.7122 | E47: 5.0072 | F47: 44 | G47: =ROUND(IF(事前相談チェックシート!$U$4=mkrain!B$2,mkrain!B47,IF(事前相談チェックシート!$U$4=mkrain!C$2,mkrain!C47,IF(事前相談チェックシート!$U$4=mkrain!D$2,mkrain!D47,mkrain!E47))),1) -> 5
B48: 7.9436 | C48: 5.6836 | D48: 7.9076 | E48: 5.1332 | F48: 45 | G48: =ROUND(IF(事前相談チェックシート!$U$4=mkrain!B$2,mkrain!B48,IF(事前相談チェックシート!$U$4=mkrain!C$2,mkrain!C48,IF(事前相談チェックシート!$U$4=mkrain!D$2,mkrain!D48,mkrain!E48))),1) -> 5.1
B49: 8.1531 | C49: 5.8303 | D49: 8.1158 | E49: 5.2674 | F49: 46 | G49: =ROUND(IF(事前相談チェックシート!$U$4=mkrain!B$2,mkrain!B49,IF(事前相談チェックシート!$U$4=mkrain!C$2,mkrain!C49,IF(事前相談チェックシート!$U$4=mkrain!D$2,mkrain!D49,mkrain!E49))),1) -> 5.3
B50: 8.3767 | C50: 5.9868 | D50: 8.3379 | E50: 5.4105 | F50: 47 | G50: =ROUND(IF(事前相談チェックシート!$U$4=mkrain!B$2,mkrain!B50,IF(事前相談チェックシート!$U$4=mkrain!C$2,mkrain!C50,IF(事前相談チェックシート!$U$4=mkrain!D$2,mkrain!D50,mkrain!E50))),1) -> 5.4
B51: 8.616 | C51: 6.1542 | D51: 8.5756 | E51: 5.5636 | F51: 48 | G51: =ROUND(IF(事前相談チェックシート!$U$4=mkrain!B$2,mkrain!B51,IF(事前相談チェックシート!$U$4=mkrain!C$2,mkrain!C51,IF(事前相談チェックシート!$U$4=mkrain!D$2,mkrain!D51,mkrain!E51))),1) -> 5.6
B52: 8.8727 | C52: 6.3337 | D52: 8.8306 | E52: 5.7279 | F52: 49 | G52: =ROUND(IF(事前相談チェックシート!$U$4=mkrain!B$2,mkrain!B52,IF(事前相談チェックシート!$U$4=mkrain!C$2,mkrain!C52,IF(事前相談チェックシート!$U$4=mkrain!D$2,mkrain!D52,mkrain!E52))),1) -> 5.7
B53: 9.1491 | C53: 6.5268 | D53: 9.1051 | E53: 5.9047 | F53: 50 | G53: =ROUND(IF(事前相談チェックシート!$U$4=mkrain!B$2,mkrain!B53,IF(事前相談チェックシート!$U$4=mkrain!C$2,mkrain!C53,IF(事前相談チェックシート!$U$4=mkrain!D$2,mkrain!D53,mkrain!E53))),1) -> 5.9
B54: 9.4475 | C54: 6.7352 | D54: 9.4016 | E54: 6.0956 | F54: 51 | G54: =ROUND(IF(事前相談チェックシート!$U$4=mkrain!B$2,mkrain!B54,IF(事前相談チェックシート!$U$4=mkrain!C$2,mkrain!C54,IF(事前相談チェックシート!$U$4=mkrain!D$2,mkrain!D54,mkrain!E54))),1) -> 6.1
B55: 9.7709 | C55: 6.9609 | D55: 9.7228 | E55: 6.3025 | F55: 52 | G55: =ROUND(IF(事前相談チェックシート!$U$4=mkrain!B$2,mkrain!B55,IF(事前相談チェックシート!$U$4=mkrain!C$2,mkrain!C55,IF(事前相談チェックシート!$U$4=mkrain!D$2,mkrain!D55,mkrain!E55))),1) -> 6.3
B56: 10.1229 | C56: 7.2064 | D56: 10.0725 | E56: 6.5277 | F56: 53 | G56: =ROUND(IF(事前相談チェックシート!$U$4=mkrain!B$2,mkrain!B56,IF(事前相談チェックシート!$U$4=mkrain!C$2,mkrain!C56,IF(事前相談チェックシート!$U$4=mkrain!D$2,mkrain!D56,mkrain!E56))),1) -> 6.5
B57: 10.5075 | C57: 7.4746 | D57: 10.4546 | E57: 6.7737 | F57: 54 | G57: =ROUND(IF(事前相談チェックシート!$U$4=mkrain!B$2,mkrain!B57,IF(事前相談チェックシート!$U$4=mkrain!C$2,mkrain!C57,IF(事前相談チェックシート!$U$4=mkrain!D$2,mkrain!D57,mkrain!E57))),1) -> 6.8
B58: 10.9299 | C58: 7.7689 | D58: 10.8742 | E58: 7.0439 | F58: 55 | G58: =ROUND(IF(事前相談チェックシート!$U$4=mkrain!B$2,mkrain!B58,IF(事前相談チェックシート!$U$4=mkrain!C$2,mkrain!C58,IF(事前相談チェックシート!$U$4=mkrain!D$2,mkrain!D58,mkrain!E58))),1) -> 7
B59: 11.3962 | C59: 8.0937 | D59: 11.3376 | E59: 7.3422 | F59: 56 | G59: =ROUND(IF(事前相談チェックシート!$U$4=mkrain!B$2,mkrain!B59,IF(事前相談チェックシート!$U$4=mkrain!C$2,mkrain!C59,IF(事前相談チェックシート!$U$4=mkrain!D$2,mkrain!D59,mkrain!E59))),1) -> 7.3
B60: 11.9143 | C60: 8.4545 | D60: 11.8524 | E60: 7.6737 | F60: 57 | G60: =ROUND(IF(事前相談チェックシート!$U$4=mkrain!B$2,mkrain!B60,IF(事前相談チェックシート!$U$4=mkrain!C$2,mkrain!C60,IF(事前相談チェックシート!$U$4=mkrain!D$2,mkrain!D60,mkrain!E60))),1) -> 7.7
B61: 12.4937 | C61: 8.8578 | D61: 12.4283 | E61: 8.0446 | F61: 58 | G61: =ROUND(IF(事前相談チェックシート!$U$4=mkrain!B$2,mkrain!B61,IF(事前相談チェックシート!$U$4=mkrain!C$2,mkrain!C61,IF(事前相談チェックシート!$U$4=mkrain!D$2,mkrain!D61,mkrain!E61))),1) -> 8
B62: 13.1469 | C62: 9.3124 | D62: 13.0775 | E62: 8.4628 | F62: 59 | G62: =ROUND(IF(事前相談チェックシート!$U$4=mkrain!B$2,mkrain!B62,IF(事前相談チェックシート!$U$4=mkrain!C$2,mkrain!C62,IF(事前相談チェックシート!$U$4=mkrain!D$2,mkrain!D62,mkrain!E62))),1) -> 8.5
B63: 13.8898 | C63: 9.8295 | D63: 13.8162 | E63: 8.9387 | F63: 60 | G63: =ROUND(IF(事前相談チェックシート!$U$4=mkrain!B$2,mkrain!B63,IF(事前相談チェックシート!$U$4=mkrain!C$2,mkrain!C63,IF(事前相談チェックシート!$U$4=mkrain!D$2,mkrain!D63,mkrain!E63))),1) -> 8.9
B64: 14.7435 | C64: 10.4239 | D64: 14.6653 | E64: 9.4861 | F64: 61 | G64: =ROUND(IF(事前相談チェックシート!$U$4=mkrain!B$2,mkrain!B64,IF(事前相談チェックシート!$U$4=mkrain!C$2,mkrain!C64,IF(事前相談チェックシート!$U$4=mkrain!D$2,mkrain!D64,mkrain!E64))),1) -> 9.5
B65: 15.7367 | C65: 11.1158 | D65: 15.6536 | E65: 10.1236 | F65: 62 | G65: =ROUND(IF(事前相談チェックシート!$U$4=mkrain!B$2,mkrain!B65,IF(事前相談チェックシート!$U$4=mkrain!C$2,mkrain!C65,IF(事前相談チェックシート!$U$4=mkrain!D$2,mkrain!D65,mkrain!E65))),1) -> 10.1
B66: 16.9091 | C66: 11.9335 | D66: 16.8207 | E66: 10.8772 | F66: 63 | G66: =ROUND(IF(事前相談チェックシート!$U$4=mkrain!B$2,mkrain!B66,IF(事前相談チェックシート!$U$4=mkrain!C$2,mkrain!C66,IF(事前相談チェックシート!$U$4=mkrain!D$2,mkrain!D66,mkrain!E66))),1) -> 10.9
B67: 18.3175 | C67: 12.9176 | D67: 18.2238 | E67: 11.7844 | F67: 64 | G67: =ROUND(IF(事前相談チェックシート!$U$4=mkrain!B$2,mkrain!B67,IF(事前相談チェックシート!$U$4=mkrain!C$2,mkrain!C67,IF(事前相談チェックシート!$U$4=mkrain!D$2,mkrain!D67,mkrain!E67))),1) -> 11.8
B68: 20.0467 | C68: 14.1293 | D68: 19.948 | E68: 12.9012 | F68: 65 | G68: =ROUND(IF(事前相談チェックシート!$U$4=mkrain!B$2,mkrain!B68,IF(事前相談チェックシート!$U$4=mkrain!C$2,mkrain!C68,IF(事前相談チェックシート!$U$4=mkrain!D$2,mkrain!D68,mkrain!E68))),1) -> 12.9
B69: 22.2291 | C69: 15.6655 | D69: 22.127 | E69: 14.3164 | F69: 66 | G69: =ROUND(IF(事前相談チェックシート!$U$4=mkrain!B$2,mkrain!B69,IF(事前相談チェックシート!$U$4=mkrain!C$2,mkrain!C69,IF(事前相談チェックシート!$U$4=mkrain!D$2,mkrain!D69,mkrain!E69))),1) -> 14.3
B70: 25.0851 | C70: 17.69 | D70: 24.9835 | E70: 16.179 | F70: 67 | G70: =ROUND(IF(事前相談チェックシート!$U$4=mkrain!B$2,mkrain!B70,IF(事前相談チェックシート!$U$4=mkrain!C$2,mkrain!C70,IF(事前相談チェックシート!$U$4=mkrain!D$2,mkrain!D70,mkrain!E70))),1) -> 16.2
B71: 29.0129 | C71: 20.5058 | D71: 28.922 | E71: 18.7626 | F71: 68 | G71: =ROUND(IF(事前相談チェックシート!$U$4=mkrain!B$2,mkrain!B71,IF(事前相談チェックシート!$U$4=mkrain!C$2,mkrain!C71,IF(事前相談チェックシート!$U$4=mkrain!D$2,mkrain!D71,mkrain!E71))),1) -> 18.8
B72: 34.82 | C72: 24.7499 | D72: 34.7682 | E72: 22.6349 | F72: 69 | G72: =ROUND(IF(事前相談チェックシート!$U$4=mkrain!B$2,mkrain!B72,IF(事前相談チェックシート!$U$4=mkrain!C$2,mkrain!C72,IF(事前相談チェックシート!$U$4=mkrain!D$2,mkrain!D72,mkrain!E72))),1) -> 22.6
B73: 44.4658 | C73: 32.0594 | D73: 44.5444 | E73: 29.2236 | F73: 70 | G73: =ROUND(IF(事前相談チェックシート!$U$4=mkrain!B$2,mkrain!B73,IF(事前相談チェックシート!$U$4=mkrain!C$2,mkrain!C73,IF(事前相談チェックシート!$U$4=mkrain!D$2,mkrain!D73,mkrain!E73))),1) -> 29.2
B74: 64.5044 | C74: 48.5605 | D74: 65.132 | E74: 43.6284 | F74: 71 | G74: =ROUND(IF(事前相談チェックシート!$U$4=mkrain!B$2,mkrain!B74,IF(事前相談チェックシート!$U$4=mkrain!C$2,mkrain!C74,IF(事前相談チェックシート!$U$4=mkrain!D$2,mkrain!D74,mkrain!E74))),1) -> 43.6
B75: 155.576 | C75: 172.3177 | D75: 164.0853 | E75: 127.002 | F75: 72 | G75: =ROUND(IF(事前相談チェックシート!$U$4=mkrain!B$2,mkrain!B75,IF(事前相談チェックシート!$U$4=mkrain!C$2,mkrain!C75,IF(事前相談チェックシート!$U$4=mkrain!D$2,mkrain!D75,mkrain!E75))),1) -> 127
B76: 86.9842 | C76: 69.8272 | D76: 88.694 | E76: 61.1139 | F76: 73 | G76: =ROUND(IF(事前相談チェックシート!$U$4=mkrain!B$2,mkrain!B76,IF(事前相談チェックシート!$U$4=mkrain!C$2,mkrain!C76,IF(事前相談チェックシート!$U$4=mkrain!D$2,mkrain!D76,mkrain!E76))),1) -> 61.1
B77: 52.3013 | C77: 38.2792 | D77: 52.549 | E77: 34.7346 | F77: 74 | G77: =ROUND(IF(事前相談チェックシート!$U$4=mkrain!B$2,mkrain!B77,IF(事前相談チェックシート!$U$4=mkrain!C$2,mkrain!C77,IF(事前相談チェックシート!$U$4=mkrain!D$2,mkrain!D77,mkrain!E77))),1) -> 34.7
B78: 38.9467 | C78: 27.8341 | D78: 38.9404 | E78: 25.4286 | F78: 75 | G78: =ROUND(IF(事前相談チェックシート!$U$4=mkrain!B$2,mkrain!B78,IF(事前相談チェックシート!$U$4=mkrain!C$2,mkrain!C78,IF(事前相談チェックシート!$U$4=mkrain!D$2,mkrain!D78,mkrain!E78))),1) -> 25.4
B79: 31.602 | C79: 22.3852 | D79: 31.525 | E79: 20.4809 | F79: 76 | G79: =ROUND(IF(事前相談チェックシート!$U$4=mkrain!B$2,mkrain!B79,IF(事前相談チェックシート!$U$4=mkrain!C$2,mkrain!C79,IF(事前相談チェックシート!$U$4=mkrain!D$2,mkrain!D79,mkrain!E79))),1) -> 20.5
B80: 26.8787 | C80: 18.9709 | D80: 26.7805 | E80: 17.3554 | F80: 77 | G80: =ROUND(IF(事前相談チェックシート!$U$4=mkrain!B$2,mkrain!B80,IF(事前相談チェックシート!$U$4=mkrain!C$2,mkrain!C80,IF(事前相談チェックシート!$U$4=mkrain!D$2,mkrain!D80,mkrain!E80))),1) -> 17.4
B81: 23.5538 | C81: 16.6023 | D81: 23.4512 | E81: 15.1788 | F81: 78 | G81: =ROUND(IF(事前相談チェックシート!$U$4=mkrain!B$2,mkrain!B81,IF(事前相談チェックシート!$U$4=mkrain!C$2,mkrain!C81,IF(事前相談チェックシート!$U$4=mkrain!D$2,mkrain!D81,mkrain!E81))),1) -> 15.2
B82: 21.0702 | C82: 14.8487 | D82: 20.9695 | E82: 13.5641 | F82: 79 | G82: =ROUND(IF(事前相談チェックシート!$U$4=mkrain!B$2,mkrain!B82,IF(事前相談チェックシート!$U$4=mkrain!C$2,mkrain!C82,IF(事前相談チェックシート!$U$4=mkrain!D$2,mkrain!D82,mkrain!E82))),1) -> 13.6
B83: 19.1351 | C83: 13.49 | D83: 19.0389 | E83: 12.312 | F83: 80 | G83: =ROUND(IF(事前相談チェックシート!$U$4=mkrain!B$2,mkrain!B83,IF(事前相談チェックシート!$U$4=mkrain!C$2,mkrain!C83,IF(事前相談チェックシート!$U$4=mkrain!D$2,mkrain!D83,mkrain!E83))),1) -> 12.3
B84: 17.5793 | C84: 12.4015 | D84: 17.4883 | E84: 11.3086 | F84: 81 | G84: =ROUND(IF(事前相談チェックシート!$U$4=mkrain!B$2,mkrain!B84,IF(事前相談チェックシート!$U$4=mkrain!C$2,mkrain!C84,IF(事前相談チェックシート!$U$4=mkrain!D$2,mkrain!D84,mkrain!E84))),1) -> 11.3
B85: 16.2975 | C85: 11.5067 | D85: 16.2117 | E85: 10.4839 | F85: 82 | G85: =ROUND(IF(事前相談チェックシート!$U$4=mkrain!B$2,mkrain!B85,IF(事前相談チェックシート!$U$4=mkrain!C$2,mkrain!C85,IF(事前相談チェックシート!$U$4=mkrain!D$2,mkrain!D85,mkrain!E85))),1) -> 10.5
B86: 15.2205 | C86: 10.7561 | D86: 15.1399 | E86: 9.7922 | F86: 83 | G86: =ROUND(IF(事前相談チェックシート!$U$4=mkrain!B$2,mkrain!B86,IF(事前相談チェックシート!$U$4=mkrain!C$2,mkrain!C86,IF(事前相談チェックシート!$U$4=mkrain!D$2,mkrain!D86,mkrain!E86))),1) -> 9.8
B87: 14.3012 | C87: 10.1159 | D87: 14.2254 | E87: 9.2025 | F87: 84 | G87: =ROUND(IF(事前相談チェックシート!$U$4=mkrain!B$2,mkrain!B87,IF(事前相談チェックシート!$U$4=mkrain!C$2,mkrain!C87,IF(事前相談チェックシート!$U$4=mkrain!D$2,mkrain!D87,mkrain!E87))),1) -> 9.2
B88: 13.5059 | C88: 9.5623 | D88: 13.4345 | E88: 8.6928 | F88: 85 | G88: =ROUND(IF(事前相談チェックシート!$U$4=mkrain!B$2,mkrain!B88,IF(事前相談チェックシート!$U$4=mkrain!C$2,mkrain!C88,IF(事前相談チェックシート!$U$4=mkrain!D$2,mkrain!D88,mkrain!E88))),1) -> 8.7
B89: 12.8102 | C89: 9.0781 | D89: 12.7428 | E89: 8.2472 | F89: 86 | G89: =ROUND(IF(事前相談チェックシート!$U$4=mkrain!B$2,mkrain!B89,IF(事前相談チェックシート!$U$4=mkrain!C$2,mkrain!C89,IF(事前相談チェックシート!$U$4=mkrain!D$2,mkrain!D89,mkrain!E89))),1) -> 8.2
B90: 12.1956 | C90: 8.6503 | D90: 12.132 | E90: 7.8538 | F90: 87 | G90: =ROUND(IF(事前相談チェックシート!$U$4=mkrain!B$2,mkrain!B90,IF(事前相談チェックシート!$U$4=mkrain!C$2,mkrain!C90,IF(事前相談チェックシート!$U$4=mkrain!D$2,mkrain!D90,mkrain!E90))),1) -> 7.9
B91: 11.6482 | C91: 8.2692 | D91: 11.588 | E91: 7.5035 | F91: 88 | G91: =ROUND(IF(事前相談チェックシート!$U$4=mkrain!B$2,mkrain!B91,IF(事前相談チェックシート!$U$4=mkrain!C$2,mkrain!C91,IF(事前相談チェックシート!$U$4=mkrain!D$2,mkrain!D91,mkrain!E91))),1) -> 7.5
B92: 11.1571 | C92: 7.9272 | D92: 11.1 | E92: 7.1892 | F92: 89 | G92: =ROUND(IF(事前相談チェックシート!$U$4=mkrain!B$2,mkrain!B92,IF(事前相談チェックシート!$U$4=mkrain!C$2,mkrain!C92,IF(事前相談チェックシート!$U$4=mkrain!D$2,mkrain!D92,mkrain!E92))),1) -> 7.2
B93: 10.7136 | C93: 7.6182 | D93: 10.6593 | E93: 6.9055 | F93: 90 | G93: =ROUND(IF(事前相談チェックシート!$U$4=mkrain!B$2,mkrain!B93,IF(事前相談チェックシート!$U$4=mkrain!C$2,mkrain!C93,IF(事前相談チェックシート!$U$4=mkrain!D$2,mkrain!D93,mkrain!E93))),1) -> 6.9
B94: 10.3108 | C94: 7.3375 | D94: 10.2592 | E94: 6.6479 | F94: 91 | G94: =ROUND(IF(事前相談チェックシート!$U$4=mkrain!B$2,mkrain!B94,IF(事前相談チェックシート!$U$4=mkrain!C$2,mkrain!C94,IF(事前相談チェックシート!$U$4=mkrain!D$2,mkrain!D94,mkrain!E94))),1) -> 6.6
B95: 9.9431 | C95: 7.081 | D95: 9.8939 | E95: 6.4127 | F95: 92 | G95: =ROUND(IF(事前相談チェックシート!$U$4=mkrain!B$2,mkrain!B95,IF(事前相談チェックシート!$U$4=mkrain!C$2,mkrain!C95,IF(事前相談チェックシート!$U$4=mkrain!D$2,mkrain!D95,mkrain!E95))),1) -> 6.4
B96: 9.6059 | C96: 6.8458 | D96: 9.5589 | E96: 6.197 | F96: 93 | G96: =ROUND(IF(事前相談チェックシート!$U$4=mkrain!B$2,mkrain!B96,IF(事前相談チェックシート!$U$4=mkrain!C$2,mkrain!C96,IF(事前相談チェックシート!$U$4=mkrain!D$2,mkrain!D96,mkrain!E96))),1) -> 6.2
B97: 9.2954 | C97: 6.629 | D97: 9.2504 | E97: 5.9983 | F97: 94 | G97: =ROUND(IF(事前相談チェックシート!$U$4=mkrain!B$2,mkrain!B97,IF(事前相談チェックシート!$U$4=mkrain!C$2,mkrain!C97,IF(事前相談チェックシート!$U$4=mkrain!D$2,mkrain!D97,mkrain!E97))),1) -> 6
B98: 9.0083 | C98: 6.4285 | D98: 8.9653 | E98: 5.8147 | F98: 95 | G98: =ROUND(IF(事前相談チェックシート!$U$4=mkrain!B$2,mkrain!B98,IF(事前相談チェックシート!$U$4=mkrain!C$2,mkrain!C98,IF(事前相談チェックシート!$U$4=mkrain!D$2,mkrain!D98,mkrain!E98))),1) -> 5.8
B99: 8.742 | C99: 6.2423 | D99: 8.7008 | E99: 5.6443 | F99: 96 | G99: =ROUND(IF(事前相談チェックシート!$U$4=mkrain!B$2,mkrain!B99,IF(事前相談チェックシート!$U$4=mkrain!C$2,mkrain!C99,IF(事前相談チェックシート!$U$4=mkrain!D$2,mkrain!D99,mkrain!E99))),1) -> 5.6
B100: 8.4943 | C100: 6.0691 | D100: 8.4547 | E100: 5.4857 | F100: 97 | G100: =ROUND(IF(事前相談チェックシート!$U$4=mkrain!B$2,mkrain!B100,IF(事前相談チェックシート!$U$4=mkrain!C$2,mkrain!C100,IF(事前相談チェックシート!$U$4=mkrain!D$2,mkrain!D100,mkrain!E100))),1) -> 5.5
B101: 8.263 | C101: 5.9073 | D101: 8.225 | E101: 5.3377 | F101: 98 | G101: =ROUND(IF(事前相談チェックシート!$U$4=mkrain!B$2,mkrain!B101,IF(事前相談チェックシート!$U$4=mkrain!C$2,mkrain!C101,IF(事前相談チェックシート!$U$4=mkrain!D$2,mkrain!D101,mkrain!E101))),1) -> 5.3
B102: 8.0467 | C102: 5.7558 | D102: 8.01 | E102: 5.1992 | F102: 99 | G102: =ROUND(IF(事前相談チェックシート!$U$4=mkrain!B$2,mkrain!B102,IF(事前相談チェックシート!$U$4=mkrain!C$2,mkrain!C102,IF(事前相談チェックシート!$U$4=mkrain!D$2,mkrain!D102,mkrain!E102))),1) -> 5.2
B103: 7.8437 | C103: 5.6136 | D103: 7.8084 | E103: 5.0693 | F103: 100 | G103: =ROUND(IF(事前相談チェックシート!$U$4=mkrain!B$2,mkrain!B103,IF(事前相談チェックシート!$U$4=mkrain!C$2,mkrain!C103,IF(事前相談チェックシート!$U$4=mkrain!D$2,mkrain!D103,mkrain!E103))),1) -> 5.1
B104: 7.6528 | C104: 5.4798 | D104: 7.6188 | E104: 4.9471 | F104: 101 | G104: =ROUND(IF(事前相談チェックシート!$U$4=mkrain!B$2,mkrain!B104,IF(事前相談チェックシート!$U$4=mkrain!C$2,mkrain!C104,IF(事前相談チェックシート!$U$4=mkrain!D$2,mkrain!D104,mkrain!E104))),1) -> 4.9
B105: 7.473 | C105: 5.3537 | D105: 7.4402 | E105: 4.8319 | F105: 102 | G105: =ROUND(IF(事前相談チェックシート!$U$4=mkrain!B$2,mkrain!B105,IF(事前相談チェックシート!$U$4=mkrain!C$2,mkrain!C105,IF(事前相談チェックシート!$U$4=mkrain!D$2,mkrain!D105,mkrain!E105))),1) -> 4.8
B106: 7.3032 | C106: 5.2345 | D106: 7.2715 | E106: 4.7231 | F106: 103 | G106: =ROUND(IF(事前相談チェックシート!$U$4=mkrain!B$2,mkrain!B106,IF(事前相談チェックシート!$U$4=mkrain!C$2,mkrain!C106,IF(事前相談チェックシート!$U$4=mkrain!D$2,mkrain!D106,mkrain!E106))),1) -> 4.7
B107: 7.1426 | C107: 5.1218 | D107: 7.1119 | E107: 4.6202 | F107: 104 | G107: =ROUND(IF(事前相談チェックシート!$U$4=mkrain!B$2,mkrain!B107,IF(事前相談チェックシート!$U$4=mkrain!C$2,mkrain!C107,IF(事前相談チェックシート!$U$4=mkrain!D$2,mkrain!D107,mkrain!E107))),1) -> 4.6
B108: 6.9904 | C108: 5.0149 | D108: 6.9607 | E108: 4.5227 | F108: 105 | G108: =ROUND(IF(事前相談チェックシート!$U$4=mkrain!B$2,mkrain!B108,IF(事前相談チェックシート!$U$4=mkrain!C$2,mkrain!C108,IF(事前相談チェックシート!$U$4=mkrain!D$2,mkrain!D108,mkrain!E108))),1) -> 4.5
B109: 6.846 | C109: 4.9133 | D109: 6.8172 | E109: 4.4301 | F109: 106 | G109: =ROUND(IF(事前相談チェックシート!$U$4=mkrain!B$2,mkrain!B109,IF(事前相談チェックシート!$U$4=mkrain!C$2,mkrain!C109,IF(事前相談チェックシート!$U$4=mkrain!D$2,mkrain!D109,mkrain!E109))),1) -> 4.4
B110: 6.7086 | C110: 4.8168 | D110: 6.6808 | E110: 4.3421 | F110: 107 | G110: =ROUND(IF(事前相談チェックシート!$U$4=mkrain!B$2,mkrain!B110,IF(事前相談チェックシート!$U$4=mkrain!C$2,mkrain!C110,IF(事前相談チェックシート!$U$4=mkrain!D$2,mkrain!D110,mkrain!E110))),1) -> 4.3
B111: 6.5779 | C111: 4.7248 | D111: 6.5509 | E111: 4.2583 | F111: 108 | G111: =ROUND(IF(事前相談チェックシート!$U$4=mkrain!B$2,mkrain!B111,IF(事前相談チェックシート!$U$4=mkrain!C$2,mkrain!C111,IF(事前相談チェックシート!$U$4=mkrain!D$2,mkrain!D111,mkrain!E111))),1) -> 4.3
B112: 6.4533 | C112: 4.637 | D112: 6.427 | E112: 4.1783 | F112: 109 | G112: =ROUND(IF(事前相談チェックシート!$U$4=mkrain!B$2,mkrain!B112,IF(事前相談チェックシート!$U$4=mkrain!C$2,mkrain!C112,IF(事前相談チェックシート!$U$4=mkrain!D$2,mkrain!D112,mkrain!E112))),1) -> 4.2
B113: 6.3343 | C113: 4.5532 | D113: 6.3088 | E113: 4.102 | F113: 110 | G113: =ROUND(IF(事前相談チェックシート!$U$4=mkrain!B$2,mkrain!B113,IF(事前相談チェックシート!$U$4=mkrain!C$2,mkrain!C113,IF(事前相談チェックシート!$U$4=mkrain!D$2,mkrain!D113,mkrain!E113))),1) -> 4.1
B114: 6.2206 | C114: 4.4731 | D114: 6.1958 | E114: 4.0291 | F114: 111 | G114: =ROUND(IF(事前相談チェックシート!$U$4=mkrain!B$2,mkrain!B114,IF(事前相談チェックシート!$U$4=mkrain!C$2,mkrain!C114,IF(事前相談チェックシート!$U$4=mkrain!D$2,mkrain!D114,mkrain!E114))),1) -> 4
B115: 6.1118 | C115: 4.3964 | D115: 6.0877 | E115: 3.9592 | F115: 112 | G115: =ROUND(IF(事前相談チェックシート!$U$4=mkrain!B$2,mkrain!B115,IF(事前相談チェックシート!$U$4=mkrain!C$2,mkrain!C115,IF(事前相談チェックシート!$U$4=mkrain!D$2,mkrain!D115,mkrain!E115))),1) -> 4
B116: 6.0075 | C116: 4.3229 | D116: 5.9841 | E116: 3.8923 | F116: 113 | G116: =ROUND(IF(事前相談チェックシート!$U$4=mkrain!B$2,mkrain!B116,IF(事前相談チェックシート!$U$4=mkrain!C$2,mkrain!C116,IF(事前相談チェックシート!$U$4=mkrain!D$2,mkrain!D116,mkrain!E116))),1) -> 3.9
B117: 5.9076 | C117: 4.2524 | D117: 5.8848 | E117: 3.8282 | F117: 114 | G117: =ROUND(IF(事前相談チェックシート!$U$4=mkrain!B$2,mkrain!B117,IF(事前相談チェックシート!$U$4=mkrain!C$2,mkrain!C117,IF(事前相談チェックシート!$U$4=mkrain!D$2,mkrain!D117,mkrain!E117))),1) -> 3.8
B118: 5.8116 | C118: 4.1846 | D118: 5.7894 | E118: 3.7666 | F118: 115 | G118: =ROUND(IF(事前相談チェックシート!$U$4=mkrain!B$2,mkrain!B118,IF(事前相談チェックシート!$U$4=mkrain!C$2,mkrain!C118,IF(事前相談チェックシート!$U$4=mkrain!D$2,mkrain!D118,mkrain!E118))),1) -> 3.8
B119: 5.7194 | C119: 4.1195 | D119: 5.6978 | E119: 3.7074 | F119: 116 | G119: =ROUND(IF(事前相談チェックシート!$U$4=mkrain!B$2,mkrain!B119,IF(事前相談チェックシート!$U$4=mkrain!C$2,mkrain!C119,IF(事前相談チェックシート!$U$4=mkrain!D$2,mkrain!D119,mkrain!E119))),1) -> 3.7
B120: 5.6308 | C120: 4.0569 | D120: 5.6096 | E120: 3.6504 | F120: 117 | G120: =ROUND(IF(事前相談チェックシート!$U$4=mkrain!B$2,mkrain!B120,IF(事前相談チェックシート!$U$4=mkrain!C$2,mkrain!C120,IF(事前相談チェックシート!$U$4=mkrain!D$2,mkrain!D120,mkrain!E120))),1) -> 3.7
B121: 5.5454 | C121: 3.9966 | D121: 5.5248 | E121: 3.5956 | F121: 118 | G121: =ROUND(IF(事前相談チェックシート!$U$4=mkrain!B$2,mkrain!B121,IF(事前相談チェックシート!$U$4=mkrain!C$2,mkrain!C121,IF(事前相談チェックシート!$U$4=mkrain!D$2,mkrain!D121,mkrain!E121))),1) -> 3.6
B122: 5.4632 | C122: 3.9384 | D122: 5.4431 | E122: 3.5428 | F122: 119 | G122: =ROUND(IF(事前相談チェックシート!$U$4=mkrain!B$2,mkrain!B122,IF(事前相談チェックシート!$U$4=mkrain!C$2,mkrain!C122,IF(事前相談チェックシート!$U$4=mkrain!D$2,mkrain!D122,mkrain!E122))),1) -> 3.5
B123: 5.3839 | C123: 3.8823 | D123: 5.3642 | E123: 3.4918 | F123: 120 | G123: =ROUND(IF(事前相談チェックシート!$U$4=mkrain!B$2,mkrain!B123,IF(事前相談チェックシート!$U$4=mkrain!C$2,mkrain!C123,IF(事前相談チェックシート!$U$4=mkrain!D$2,mkrain!D123,mkrain!E123))),1) -> 3.5
B124: 5.3074 | C124: 3.8282 | D124: 5.2882 | E124: 3.4426 | F124: 121 | G124: =ROUND(IF(事前相談チェックシート!$U$4=mkrain!B$2,mkrain!B124,IF(事前相談チェックシート!$U$4=mkrain!C$2,mkrain!C124,IF(事前相談チェックシート!$U$4=mkrain!D$2,mkrain!D124,mkrain!E124))),1) -> 3.4
B125: 5.2335 | C125: 3.7759 | D125: 5.2148 | E125: 3.3952 | F125: 122 | G125: =ROUND(IF(事前相談チェックシート!$U$4=mkrain!B$2,mkrain!B125,IF(事前相談チェックシート!$U$4=mkrain!C$2,mkrain!C125,IF(事前相談チェックシート!$U$4=mkrain!D$2,mkrain!D125,mkrain!E125))),1) -> 3.4
B126: 5.1621 | C126: 3.7254 | D126: 5.1438 | E126: 3.3493 | F126: 123 | G126: =ROUND(IF(事前相談チェックシート!$U$4=mkrain!B$2,mkrain!B126,IF(事前相談チェックシート!$U$4=mkrain!C$2,mkrain!C126,IF(事前相談チェックシート!$U$4=mkrain!D$2,mkrain!D126,mkrain!E126))),1) -> 3.3
B127: 5.0931 | C127: 3.6765 | D127: 5.0752 | E127: 3.3049 | F127: 124 | G127: =ROUND(IF(事前相談チェックシート!$U$4=mkrain!B$2,mkrain!B127,IF(事前相談チェックシート!$U$4=mkrain!C$2,mkrain!C127,IF(事前相談チェックシート!$U$4=mkrain!D$2,mkrain!D127,mkrain!E127))),1) -> 3.3
B128: 5.0263 | C128: 3.6291 | D128: 5.0088 | E128: 3.2619 | F128: 125 | G128: =ROUND(IF(事前相談チェックシート!$U$4=mkrain!B$2,mkrain!B128,IF(事前相談チェックシート!$U$4=mkrain!C$2,mkrain!C128,IF(事前相談チェックシート!$U$4=mkrain!D$2,mkrain!D128,mkrain!E128))),1) -> 3.3
B129: 4.9617 | C129: 3.5833 | D129: 4.9445 | E129: 3.2203 | F129: 126 | G129: =ROUND(IF(事前相談チェックシート!$U$4=mkrain!B$2,mkrain!B129,IF(事前相談チェックシート!$U$4=mkrain!C$2,mkrain!C129,IF(事前相談チェックシート!$U$4=mkrain!D$2,mkrain!D129,mkrain!E129))),1) -> 3.2
B130: 4.899 | C130: 3.5389 | D130: 4.8822 | E130: 3.18 | F130: 127 | G130: =ROUND(IF(事前相談チェックシート!$U$4=mkrain!B$2,mkrain!B130,IF(事前相談チェックシート!$U$4=mkrain!C$2,mkrain!C130,IF(事前相談チェックシート!$U$4=mkrain!D$2,mkrain!D130,mkrain!E130))),1) -> 3.2
B131: 4.8383 | C131: 3.4958 | D131: 4.8218 | E131: 3.141 | F131: 128 | G131: =ROUND(IF(事前相談チェックシート!$U$4=mkrain!B$2,mkrain!B131,IF(事前相談チェックシート!$U$4=mkrain!C$2,mkrain!C131,IF(事前相談チェックシート!$U$4=mkrain!D$2,mkrain!D131,mkrain!E131))),1) -> 3.1
B132: 4.7794 | C132: 3.454 | D132: 4.7632 | E132: 3.1031 | F132: 129 | G132: =ROUND(IF(事前相談チェックシート!$U$4=mkrain!B$2,mkrain!B132,IF(事前相談チェックシート!$U$4=mkrain!C$2,mkrain!C132,IF(事前相談チェックシート!$U$4=mkrain!D$2,mkrain!D132,mkrain!E132))),1) -> 3.1
B133: 4.7222 | C133: 3.4134 | D133: 4.7064 | E133: 3.0663 | F133: 130 | G133: =ROUND(IF(事前相談チェックシート!$U$4=mkrain!B$2,mkrain!B133,IF(事前相談チェックシート!$U$4=mkrain!C$2,mkrain!C133,IF(事前相談チェックシート!$U$4=mkrain!D$2,mkrain!D133,mkrain!E133))),1) -> 3.1
B134: 4.6667 | C134: 3.374 | D134: 4.6512 | E134: 3.0306 | F134: 131 | G134: =ROUND(IF(事前相談チェックシート!$U$4=mkrain!B$2,mkrain!B134,IF(事前相談チェックシート!$U$4=mkrain!C$2,mkrain!C134,IF(事前相談チェックシート!$U$4=mkrain!D$2,mkrain!D134,mkrain!E134))),1) -> 3
B135: 4.6128 | C135: 3.3357 | D135: 4.5976 | E135: 2.9958 | F135: 132 | G135: =ROUND(IF(事前相談チェックシート!$U$4=mkrain!B$2,mkrain!B135,IF(事前相談チェックシート!$U$4=mkrain!C$2,mkrain!C135,IF(事前相談チェックシート!$U$4=mkrain!D$2,mkrain!D135,mkrain!E135))),1) -> 3
B136: 4.5604 | C136: 3.2985 | D136: 4.5455 | E136: 2.9621 | F136: 133 | G136: =ROUND(IF(事前相談チェックシート!$U$4=mkrain!B$2,mkrain!B136,IF(事前相談チェックシート!$U$4=mkrain!C$2,mkrain!C136,IF(事前相談チェックシート!$U$4=mkrain!D$2,mkrain!D136,mkrain!E136))),1) -> 3
B137: 4.5095 | C137: 3.2623 | D137: 4.4948 | E137: 2.9293 | F137: 134 | G137: =ROUND(IF(事前相談チェックシート!$U$4=mkrain!B$2,mkrain!B137,IF(事前相談チェックシート!$U$4=mkrain!C$2,mkrain!C137,IF(事前相談チェックシート!$U$4=mkrain!D$2,mkrain!D137,mkrain!E137))),1) -> 2.9
B138: 4.4599 | C138: 3.2271 | D138: 4.4455 | E138: 2.8974 | F138: 135 | G138: =ROUND(IF(事前相談チェックシート!$U$4=mkrain!B$2,mkrain!B138,IF(事前相談チェックシート!$U$4=mkrain!C$2,mkrain!C138,IF(事前相談チェックシート!$U$4=mkrain!D$2,mkrain!D138,mkrain!E138))),1) -> 2.9
B139: 4.4117 | C139: 3.1928 | D139: 4.3976 | E139: 2.8663 | F139: 136 | G139: =ROUND(IF(事前相談チェックシート!$U$4=mkrain!B$2,mkrain!B139,IF(事前相談チェックシート!$U$4=mkrain!C$2,mkrain!C139,IF(事前相談チェックシート!$U$4=mkrain!D$2,mkrain!D139,mkrain!E139))),1) -> 2.9
B140: 4.3647 | C140: 3.1594 | D140: 4.3508 | E140: 2.8361 | F140: 137 | G140: =ROUND(IF(事前相談チェックシート!$U$4=mkrain!B$2,mkrain!B140,IF(事前相談チェックシート!$U$4=mkrain!C$2,mkrain!C140,IF(事前相談チェックシート!$U$4=mkrain!D$2,mkrain!D140,mkrain!E140))),1) -> 2.8
B141: 4.319 | C141: 3.1268 | D141: 4.3053 | E141: 2.8066 | F141: 138 | G141: =ROUND(IF(事前相談チェックシート!$U$4=mkrain!B$2,mkrain!B141,IF(事前相談チェックシート!$U$4=mkrain!C$2,mkrain!C141,IF(事前相談チェックシート!$U$4=mkrain!D$2,mkrain!D141,mkrain!E141))),1) -> 2.8
B142: 4.2744 | C142: 3.0951 | D142: 4.261 | E142: 2.7779 | F142: 139 | G142: =ROUND(IF(事前相談チェックシート!$U$4=mkrain!B$2,mkrain!B142,IF(事前相談チェックシート!$U$4=mkrain!C$2,mkrain!C142,IF(事前相談チェックシート!$U$4=mkrain!D$2,mkrain!D142,mkrain!E142))),1) -> 2.8
B143: 4.2309 | C143: 3.0642 | D143: 4.2178 | E143: 2.7499 | F143: 140 | G143: =ROUND(IF(事前相談チェックシート!$U$4=mkrain!B$2,mkrain!B143,IF(事前相談チェックシート!$U$4=mkrain!C$2,mkrain!C143,IF(事前相談チェックシート!$U$4=mkrain!D$2,mkrain!D143,mkrain!E143))),1) -> 2.7
B144: 4.1885 | C144: 3.034 | D144: 4.1756 | E144: 2.7225 | F144: 141 | G144: =ROUND(IF(事前相談チェックシート!$U$4=mkrain!B$2,mkrain!B144,IF(事前相談チェックシート!$U$4=mkrain!C$2,mkrain!C144,IF(事前相談チェックシート!$U$4=mkrain!D$2,mkrain!D144,mkrain!E144))),1) -> 2.7
B145: 4.1472 | C145: 3.0045 | D145: 4.1345 | E145: 2.6959 | F145: 142 | G145: =ROUND(IF(事前相談チェックシート!$U$4=mkrain!B$2,mkrain!B145,IF(事前相談チェックシート!$U$4=mkrain!C$2,mkrain!C145,IF(事前相談チェックシート!$U$4=mkrain!D$2,mkrain!D145,mkrain!E145))),1) -> 2.7
B146: 4.1069 | C146: 2.9758 | D146: 4.0944 | E146: 2.6699 | F146: 143 | G146: =ROUND(IF(事前相談チェックシート!$U$4=mkrain!B$2,mkrain!B146,IF(事前相談チェックシート!$U$4=mkrain!C$2,mkrain!C146,IF(事前相談チェックシート!$U$4=mkrain!D$2,mkrain!D146,mkrain!E146))),1) -> 2.7
B147: 4.0675 | C147: 2.9477 | D147: 4.0552 | E147: 2.6445 | F147: 144 | G147: =ROUND(IF(事前相談チェックシート!$U$4=mkrain!B$2,mkrain!B147,IF(事前相談チェックシート!$U$4=mkrain!C$2,mkrain!C147,IF(事前相談チェックシート!$U$4=mkrain!D$2,mkrain!D147,mkrain!E147))),1) -> 2.6

Sheet runoff (hidden)
B1: =MAX(B4:B148) ->  | C1: =MAX(C4:C148) -> 
B2: 行為前 | C2: 行為後
B3: 流出量 | C3: 流出量
A4: 00:00:00 | B4: 0 | C4: 0
A5: 00:10:00 | B5: =ROUND(1/360*事前相談チェックシート!$R$10*mkrain!$G4*事前相談チェックシート!$L$28,5) ->  | C5: =ROUND(1/360*事前相談チェックシート!$R$12*mkrain!$G4*事前相談チェックシート!$M$28,5) -> 
A6: 00:20:00 | B6: =ROUND(1/360*事前相談チェックシート!$R$10*mkrain!$G5*事前相談チェックシート!$L$28,5) ->  | C6: =ROUND(1/360*事前相談チェックシート!$R$12*mkrain!$G5*事前相談チェックシート!$M$28,5) -> 
A7: 00:30:00 | B7: =ROUND(1/360*事前相談チェックシート!$R$10*mkrain!$G6*事前相談チェックシート!$L$28,5) ->  | C7: =ROUND(1/360*事前相談チェックシート!$R$12*mkrain!$G6*事前相談チェックシート!$M$28,5) -> 
A8: 00:40:00 | B8: =ROUND(1/360*事前相談チェックシート!$R$10*mkrain!$G7*事前相談チェックシート!$L$28,5) ->  | C8: =ROUND(1/360*事前相談チェックシート!$R$12*mkrain!$G7*事前相談チェックシート!$M$28,5) -> 
A9: 00:50:00 | B9: =ROUND(1/360*事前相談チェックシート!$R$10*mkrain!$G8*事前相談チェックシート!$L$28,5) ->  | C9: =ROUND(1/360*事前相談チェックシート!$R$12*mkrain!$G8*事前相談チェックシート!$M$28,5) -> 
A10: 01:00:00 | B10: =ROUND(1/360*事前相談チェックシート!$R$10*mkrain!$G9*事前相談チェックシート!$L$28,5) ->  | C10: =ROUND(1/360*事前相談チェックシート!$R$12*mkrain!$G9*事前相談チェックシート!$M$28,5) -> 
A11: 01:10:00 | B11: =ROUND(1/360*事前相談チェックシート!$R$10*mkrain!$G10*事前相談チェックシート!$L$28,5) ->  | C11: =ROUND(1/360*事前相談チェックシート!$R$12*mkrain!$G10*事前相談チェックシート!$M$28,5) -> 
A12: 01:20:00 | B12: =ROUND(1/360*事前相談チェックシート!$R$10*mkrain!$G11*事前相談チェックシート!$L$28,5) ->  | C12: =ROUND(1/360*事前相談チェックシート!$R$12*mkrain!$G11*事前相談チェックシート!$M$28,5) -> 
A13: 01:30:00 | B13: =ROUND(1/360*事前相談チェックシート!$R$10*mkrain!$G12*事前相談チェックシート!$L$28,5) ->  | C13: =ROUND(1/360*事前相談チェックシート!$R$12*mkrain!$G12*事前相談チェックシート!$M$28,5) -> 
A14: 01:40:00 | B14: =ROUND(1/360*事前相談チェックシート!$R$10*mkrain!$G13*事前相談チェックシート!$L$28,5) ->  | C14: =ROUND(1/360*事前相談チェックシート!$R$12*mkrain!$G13*事前相談チェックシート!$M$28,5) -> 
A15: 01:50:00 | B15: =ROUND(1/360*事前相談チェックシート!$R$10*mkrain!$G14*事前相談チェックシート!$L$28,5) ->  | C15: =ROUND(1/360*事前相談チェックシート!$R$12*mkrain!$G14*事前相談チェックシート!$M$28,5) -> 
A16: 02:00:00 | B16: =ROUND(1/360*事前相談チェックシート!$R$10*mkrain!$G15*事前相談チェックシート!$L$28,5) ->  | C16: =ROUND(1/360*事前相談チェックシート!$R$12*mkrain!$G15*事前相談チェックシート!$M$28,5) -> 
A17: 02:10:00 | B17: =ROUND(1/360*事前相談チェックシート!$R$10*mkrain!$G16*事前相談チェックシート!$L$28,5) ->  | C17: =ROUND(1/360*事前相談チェックシート!$R$12*mkrain!$G16*事前相談チェックシート!$M$28,5) -> 
A18: 02:20:00 | B18: =ROUND(1/360*事前相談チェックシート!$R$10*mkrain!$G17*事前相談チェックシート!$L$28,5) ->  | C18: =ROUND(1/360*事前相談チェックシート!$R$12*mkrain!$G17*事前相談チェックシート!$M$28,5) -> 
A19: 02:30:00 | B19: =ROUND(1/360*事前相談チェックシート!$R$10*mkrain!$G18*事前相談チェックシート!$L$28,5) ->  | C19: =ROUND(1/360*事前相談チェックシート!$R$12*mkrain!$G18*事前相談チェックシート!$M$28,5) -> 
A20: 02:40:00 | B20: =ROUND(1/360*事前相談チェックシート!$R$10*mkrain!$G19*事前相談チェックシート!$L$28,5) ->  | C20: =ROUND(1/360*事前相談チェックシート!$R$12*mkrain!$G19*事前相談チェックシート!$M$28,5) -> 
A21: 02:50:00 | B21: =ROUND(1/360*事前相談チェックシート!$R$10*mkrain!$G20*事前相談チェックシート!$L$28,5) ->  | C21: =ROUND(1/360*事前相談チェックシート!$R$12*mkrain!$G20*事前相談チェックシート!$M$28,5) -> 
A22: 03:00:00 | B22: =ROUND(1/360*事前相談チェックシート!$R$10*mkrain!$G21*事前相談チェックシート!$L$28,5) ->  | C22: =ROUND(1/360*事前相談チェックシート!$R$12*mkrain!$G21*事前相談チェックシート!$M$28,5) -> 
A23: 03:10:00 | B23: =ROUND(1/360*事前相談チェックシート!$R$10*mkrain!$G22*事前相談チェックシート!$L$28,5) ->  | C23: =ROUND(1/360*事前相談チェックシート!$R$12*mkrain!$G22*事前相談チェックシート!$M$28,5) -> 
A24: 03:20:00 | B24: =ROUND(1/360*事前相談チェックシート!$R$10*mkrain!$G23*事前相談チェックシート!$L$28,5) ->  | C24: =ROUND(1/360*事前相談チェックシート!$R$12*mkrain!$G23*事前相談チェックシート!$M$28,5) -> 
A25: 03:30:00 | B25: =ROUND(1/360*事前相談チェックシート!$R$10*mkrain!$G24*事前相談チェックシート!$L$28,5) ->  | C25: =ROUND(1/360*事前相談チェックシート!$R$12*mkrain!$G24*事前相談チェックシート!$M$28,5) -> 
A26: 03:40:00 | B26: =ROUND(1/360*事前相談チェックシート!$R$10*mkrain!$G25*事前相談チェックシート!$L$28,5) ->  | C26: =ROUND(1/360*事前相談チェックシート!$R$12*mkrain!$G25*事前相談チェックシート!$M$28,5) -> 
A27: 03:50:00 | B27: =ROUND(1/360*事前相談チェックシート!$R$10*mkrain!$G26*事前相談チェックシート!$L$28,5) ->  | C27: =ROUND(1/360*事前相談チェックシート!$R$12*mkrain!$G26*事前相談チェックシート!$M$28,5) -> 
A28: 04:00:00 | B28: =ROUND(1/360*事前相談チェックシート!$R$10*mkrain!$G27*事前相談チェックシート!$L$28,5) ->  | C28: =ROUND(1/360*事前相談チェックシート!$R$12*mkrain!$G27*事前相談チェックシート!$M$28,5) -> 
A29: 04:10:00 | B29: =ROUND(1/360*事前相談チェックシート!$R$10*mkrain!$G28*事前相談チェックシート!$L$28,5) ->  | C29: =ROUND(1/360*事前相談チェックシート!$R$12*mkrain!$G28*事前相談チェックシート!$M$28,5) -> 
A30: 04:20:00 | B30: =ROUND(1/360*事前相談チェックシート!$R$10*mkrain!$G29*事前相談チェックシート!$L$28,5) ->  | C30: =ROUND(1/360*事前相談チェックシート!$R$12*mkrain!$G29*事前相談チェックシート!$M$28,5) -> 
A31: 04:30:00 | B31: =ROUND(1/360*事前相談チェックシート!$R$10*mkrain!$G30*事前相談チェックシート!$L$28,5) ->  | C31: =ROUND(1/360*事前相談チェックシート!$R$12*mkrain!$G30*事前相談チェックシート!$M$28,5) -> 
A32: 04:40:00 | B32: =ROUND(1/360*事前相談チェックシート!$R$10*mkrain!$G31*事前相談チェックシート!$L$28,5) ->  | C32: =ROUND(1/360*事前相談チェックシート!$R$12*mkrain!$G31*事前相談チェックシート!$M$28,5) -> 
A33: 04:50:00 | B33: =ROUND(1/360*事前相談チェックシート!$R$10*mkrain!$G32*事前相談チェックシート!$L$28,5) ->  | C33: =ROUND(1/360*事前相談チェックシート!$R$12*mkrain!$G32*事前相談チェックシート!$M$28,5) -> 
A34: 05:00:00 | B34: =ROUND(1/360*事前相談チェックシート!$R$10*mkrain!$G33*事前相談チェックシート!$L$28,5) ->  | C34: =ROUND(1/360*事前相談チェックシート!$R$12*mkrain!$G33*事前相談チェックシート!$M$28,5) -> 
A35: 05:10:00 | B35: =ROUND(1/360*事前相談チェックシート!$R$10*mkrain!$G34*事前相談チェックシート!$L$28,5) ->  | C35: =ROUND(1/360*事前相談チェックシート!$R$12*mkrain!$G34*事前相談チェックシート!$M$28,5) -> 
A36: 05:20:00 | B36: =ROUND(1/360*事前相談チェックシート!$R$10*mkrain!$G35*事前相談チェックシート!$L$28,5) ->  | C36: =ROUND(1/360*事前相談チェックシート!$R$12*mkrain!$G35*事前相談チェックシート!$M$28,5) -> 
A37: 05:30:00 | B37: =ROUND(1/360*事前相談チェックシート!$R$10*mkrain!$G36*事前相談チェックシート!$L$28,5) ->  | C37: =ROUND(1/360*事前相談チェックシート!$R$12*mkrain!$G36*事前相談チェックシート!$M$28,5) -> 
A38: 05:40:00 | B38: =ROUND(1/360*事前相談チェックシート!$R$10*mkrain!$G37*事前相談チェックシート!$L$28,5) ->  | C38: =ROUND(1/360*事前相談チェックシート!$R$12*mkrain!$G37*事前相談チェックシート!$M$28,5) -> 
A39: 05:50:00 | B39: =ROUND(1/360*事前相談チェックシート!$R$10*mkrain!$G38*事前相談チェックシート!$L$28,5) ->  | C39: =ROUND(1/360*事前相談チェックシート!$R$12*mkrain!$G38*事前相談チェックシート!$M$28,5) -> 
A40: 06:00:00 | B40: =ROUND(1/360*事前相談チェックシート!$R$10*mkrain!$G39*事前相談チェックシート!$L$28,5) ->  | C40: =ROUND(1/360*事前相談チェックシート!$R$12*mkrain!$G39*事前相談チェックシート!$M$28,5) -> 
A41: 06:10:00 | B41: =ROUND(1/360*事前相談チェックシート!$R$10*mkrain!$G40*事前相談チェックシート!$L$28,5) ->  | C41: =ROUND(1/360*事前相談チェックシート!$R$12*mkrain!$G40*事前相談チェックシート!$M$28,5) -> 
A42: 06:20:00 | B42: =ROUND(1/360*事前相談チェックシート!$R$10*mkrain!$G41*事前相談チェックシート!$L$28,5) ->  | C42: =ROUND(1/360*事前相談チェックシート!$R$12*mkrain!$G41*事前相談チェックシート!$M$28,5) -> 
A43: 06:30:00 | B43: =ROUND(1/360*事前相談チェックシート!$R$10*mkrain!$G42*事前相談チェックシート!$L$28,5) ->  | C43: =ROUND(1/360*事前相談チェックシート!$R$12*mkrain!$G42*事前相談チェックシート!$M$28,5) -> 
A44: 06:40:00 | B44: =ROUND(1/360*事前相談チェックシート!$R$10*mkrain!$G43*事前相談チェックシート!$L$28,5) ->  | C44: =ROUND(1/360*事前相談チェックシート!$R$12*mkrain!$G43*事前相談チェックシート!$M$28,5) -> 
A45: 06:50:00 | B45: =ROUND(1/360*事前相談チェックシート!$R$10*mkrain!$G44*事前相談チェックシート!$L$28,5) ->  | C45: =ROUND(1/360*事前相談チェックシート!$R$12*mkrain!$G44*事前相談チェックシート!$M$28,5) -> 
A46: 07:00:00 | B46: =ROUND(1/360*事前相談チェックシート!$R$10*mkrain!$G45*事前相談チェックシート!$L$28,5) ->  | C46: =ROUND(1/360*事前相談チェックシート!$R$12*mkrain!$G45*事前相談チェックシート!$M$28,5) -> 
A47: 07:10:00 | B47: =ROUND(1/360*事前相談チェックシート!$R$10*mkrain!$G46*事前相談チェックシート!$L$28,5) ->  | C47: =ROUND(1/360*事前相談チェックシート!$R$12*mkrain!$G46*事前相談チェックシート!$M$28,5) -> 
A48: 07:20:00 | B48: =ROUND(1/360*事前相談チェックシート!$R$10*mkrain!$G47*事前相談チェックシート!$L$28,5) ->  | C48: =ROUND(1/360*事前相談チェックシート!$R$12*mkrain!$G47*事前相談チェックシート!$M$28,5) -> 
A49: 07:30:00 | B49: =ROUND(1/360*事前相談チェックシート!$R$10*mkrain!$G48*事前相談チェックシート!$L$28,5) ->  | C49: =ROUND(1/360*事前相談チェックシート!$R$12*mkrain!$G48*事前相談チェックシート!$M$28,5) -> 
A50: 07:40:00 | B50: =ROUND(1/360*事前相談チェックシート!$R$10*mkrain!$G49*事前相談チェックシート!$L$28,5) ->  | C50: =ROUND(1/360*事前相談チェックシート!$R$12*mkrain!$G49*事前相談チェックシート!$M$28,5) -> 
A51: 07:50:00 | B51: =ROUND(1/360*事前相談チェックシート!$R$10*mkrain!$G50*事前相談チェックシート!$L$28,5) ->  | C51: =ROUND(1/360*事前相談チェックシート!$R$12*mkrain!$G50*事前相談チェックシート!$M$28,5) -> 
A52: 08:00:00 | B52: =ROUND(1/360*事前相談チェックシート!$R$10*mkrain!$G51*事前相談チェックシート!$L$28,5) ->  | C52: =ROUND(1/360*事前相談チェックシート!$R$12*mkrain!$G51*事前相談チェックシート!$M$28,5) -> 
A53: 08:10:00 | B53: =ROUND(1/360*事前相談チェックシート!$R$10*mkrain!$G52*事前相談チェックシート!$L$28,5) ->  | C53: =ROUND(1/360*事前相談チェックシート!$R$12*mkrain!$G52*事前相談チェックシート!$M$28,5) -> 
A54: 08:20:00 | B54: =ROUND(1/360*事前相談チェックシート!$R$10*mkrain!$G53*事前相談チェックシート!$L$28,5) ->  | C54: =ROUND(1/360*事前相談チェックシート!$R$12*mkrain!$G53*事前相談チェックシート!$M$28,5) -> 
A55: 08:30:00 | B55: =ROUND(1/360*事前相談チェックシート!$R$10*mkrain!$G54*事前相談チェックシート!$L$28,5) ->  | C55: =ROUND(1/360*事前相談チェックシート!$R$12*mkrain!$G54*事前相談チェックシート!$M$28,5) -> 
A56: 08:40:00 | B56: =ROUND(1/360*事前相談チェックシート!$R$10*mkrain!$G55*事前相談チェックシート!$L$28,5) ->  | C56: =ROUND(1/360*事前相談チェックシート!$R$12*mkrain!$G55*事前相談チェックシート!$M$28,5) -> 
A57: 08:50:00 | B57: =ROUND(1/360*事前相談チェックシート!$R$10*mkrain!$G56*事前相談チェックシート!$L$28,5) ->  | C57: =ROUND(1/360*事前相談チェックシート!$R$12*mkrain!$G56*事前相談チェックシート!$M$28,5) -> 
A58: 09:00:00 | B58: =ROUND(1/360*事前相談チェックシート!$R$10*mkrain!$G57*事前相談チェックシート!$L$28,5) ->  | C58: =ROUND(1/360*事前相談チェックシート!$R$12*mkrain!$G57*事前相談チェックシート!$M$28,5) -> 
A59: 09:10:00 | B59: =ROUND(1/360*事前相談チェックシート!$R$10*mkrain!$G58*事前相談チェックシート!$L$28,5) ->  | C59: =ROUND(1/360*事前相談チェックシート!$R$12*mkrain!$G58*事前相談チェックシート!$M$28,5) -> 
A60: 09:20:00 | B60: =ROUND(1/360*事前相談チェックシート!$R$10*mkrain!$G59*事前相談チェックシート!$L$28,5) ->  | C60: =ROUND(1/360*事前相談チェックシート!$R$12*mkrain!$G59*事前相談チェックシート!$M$28,5) -> 
A61: 09:30:00 | B61: =ROUND(1/360*事前相談チェックシート!$R$10*mkrain!$G60*事前相談チェックシート!$L$28,5) ->  | C61: =ROUND(1/360*事前相談チェックシート!$R$12*mkrain!$G60*事前相談チェックシート!$M$28,5) -> 
A62: 09:40:00 | B62: =ROUND(1/360*事前相談チェックシート!$R$10*mkrain!$G61*事前相談チェックシート!$L$28,5) ->  | C62: =ROUND(1/360*事前相談チェックシート!$R$12*mkrain!$G61*事前相談チェックシート!$M$28,5) -> 
A63: 09:50:00 | B63: =ROUND(1/360*事前相談チェックシート!$R$10*mkrain!$G62*事前相談チェックシート!$L$28,5) ->  | C63: =ROUND(1/360*事前相談チェックシート!$R$12*mkrain!$G62*事前相談チェックシート!$M$28,5) -> 
A64: 10:00:00 | B64: =ROUND(1/360*事前相談チェックシート!$R$10*mkrain!$G63*事前相談チェックシート!$L$28,5) ->  | C64: =ROUND(1/360*事前相談チェックシート!$R$12*mkrain!$G63*事前相談チェックシート!$M$28,5) -> 
A65: 10:10:00 | B65: =ROUND(1/360*事前相談チェックシート!$R$10*mkrain!$G64*事前相談チェックシート!$L$28,5) ->  | C65: =ROUND(1/360*事前相談チェックシート!$R$12*mkrain!$G64*事前相談チェックシート!$M$28,5) -> 
A66: 10:20:00 | B66: =ROUND(1/360*事前相談チェックシート!$R$10*mkrain!$G65*事前相談チェックシート!$L$28,5) ->  | C66: =ROUND(1/360*事前相談チェックシート!$R$12*mkrain!$G65*事前相談チェックシート!$M$28,5) -> 
A67: 10:30:00 | B67: =ROUND(1/360*事前相談チェックシート!$R$10*mkrain!$G66*事前相談チェックシート!$L$28,5) ->  | C67: =ROUND(1/360*事前相談チェックシート!$R$12*mkrain!$G66*事前相談チェックシート!$M$28,5) -> 
A68: 10:40:00 | B68: =ROUND(1/360*事前相談チェックシート!$R$10*mkrain!$G67*事前相談チェックシート!$L$28,5) ->  | C68: =ROUND(1/360*事前相談チェックシート!$R$12*mkrain!$G67*事前相談チェックシート!$M$28,5) -> 
A69: 10:50:00 | B69: =ROUND(1/360*事前相談チェックシート!$R$10*mkrain!$G68*事前相談チェックシート!$L$28,5) ->  | C69: =ROUND(1/360*事前相談チェックシート!$R$12*mkrain!$G68*事前相談チェックシート!$M$28,5) -> 
A70: 11:00:00 | B70: =ROUND(1/360*事前相談チェックシート!$R$10*mkrain!$G69*事前相談チェックシート!$L$28,5) ->  | C70: =ROUND(1/360*事前相談チェックシート!$R$12*mkrain!$G69*事前相談チェックシート!$M$28,5) -> 
A71: 11:10:00 | B71: =ROUND(1/360*事前相談チェックシート!$R$10*mkrain!$G70*事前相談チェックシート!$L$28,5) ->  | C71: =ROUND(1/360*事前相談チェックシート!$R$12*mkrain!$G70*事前相談チェックシート!$M$28,5) -> 
A72: 11:20:00 | B72: =ROUND(1/360*事前相談チェックシート!$R$10*mkrain!$G71*事前相談チェックシート!$L$28,5) ->  | C72: =ROUND(1/360*事前相談チェックシート!$R$12*mkrain!$G71*事前相談チェックシート!$M$28,5) -> 
A73: 11:30:00 | B73: =ROUND(1/360*事前相談チェックシート!$R$10*mkrain!$G72*事前相談チェックシート!$L$28,5) ->  | C73: =ROUND(1/360*事前相談チェックシート!$R$12*mkrain!$G72*事前相談チェックシート!$M$28,5) -> 
A74: 11:40:00 | B74: =ROUND(1/360*事前相談チェックシート!$R$10*mkrain!$G73*事前相談チェックシート!$L$28,5) ->  | C74: =ROUND(1/360*事前相談チェックシート!$R$12*mkrain!$G73*事前相談チェックシート!$M$28,5) -> 
A75: 11:50:00 | B75: =ROUND(1/360*事前相談チェックシート!$R$10*mkrain!$G74*事前相談チェックシート!$L$28,5) ->  | C75: =ROUND(1/360*事前相談チェックシート!$R$12*mkrain!$G74*事前相談チェックシート!$M$28,5) -> 
A76: 12:00:00 | B76: =ROUND(1/360*事前相談チェックシート!$R$10*mkrain!$G75*事前相談チェックシート!$L$28,5) ->  | C76: =ROUND(1/360*事前相談チェックシート!$R$12*mkrain!$G75*事前相談チェックシート!$M$28,5) -> 
A77: 12:10:00 | B77: =ROUND(1/360*事前相談チェックシート!$R$10*mkrain!$G76*事前相談チェックシート!$L$28,5) ->  | C77: =ROUND(1/360*事前相談チェックシート!$R$12*mkrain!$G76*事前相談チェックシート!$M$28,5) -> 
A78: 12:20:00 | B78: =ROUND(1/360*事前相談チェックシート!$R$10*mkrain!$G77*事前相談チェックシート!$L$28,5) ->  | C78: =ROUND(1/360*事前相談チェックシート!$R$12*mkrain!$G77*事前相談チェックシート!$M$28,5) -> 
A79: 12:30:00 | B79: =ROUND(1/360*事前相談チェックシート!$R$10*mkrain!$G78*事前相談チェックシート!$L$28,5) ->  | C79: =ROUND(1/360*事前相談チェックシート!$R$12*mkrain!$G78*事前相談チェックシート!$M$28,5) -> 
A80: 12:40:00 | B80: =ROUND(1/360*事前相談チェックシート!$R$10*mkrain!$G79*事前相談チェックシート!$L$28,5) ->  | C80: =ROUND(1/360*事前相談チェックシート!$R$12*mkrain!$G79*事前相談チェックシート!$M$28,5) -> 
A81: 12:50:00 | B81: =ROUND(1/360*事前相談チェックシート!$R$10*mkrain!$G80*事前相談チェックシート!$L$28,5) ->  | C81: =ROUND(1/360*事前相談チェックシート!$R$12*mkrain!$G80*事前相談チェックシート!$M$28,5) -> 
A82: 13:00:00 | B82: =ROUND(1/360*事前相談チェックシート!$R$10*mkrain!$G81*事前相談チェックシート!$L$28,5) ->  | C82: =ROUND(1/360*事前相談チェックシート!$R$12*mkrain!$G81*事前相談チェックシート!$M$28,5) -> 
A83: 13:10:00 | B83: =ROUND(1/360*事前相談チェックシート!$R$10*mkrain!$G82*事前相談チェックシート!$L$28,5) ->  | C83: =ROUND(1/360*事前相談チェックシート!$R$12*mkrain!$G82*事前相談チェックシート!$M$28,5) -> 
A84: 13:20:00 | B84: =ROUND(1/360*事前相談チェックシート!$R$10*mkrain!$G83*事前相談チェックシート!$L$28,5) ->  | C84: =ROUND(1/360*事前相談チェックシート!$R$12*mkrain!$G83*事前相談チェックシート!$M$28,5) -> 
A85: 13:30:00 | B85: =ROUND(1/360*事前相談チェックシート!$R$10*mkrain!$G84*事前相談チェックシート!$L$28,5) ->  | C85: =ROUND(1/360*事前相談チェックシート!$R$12*mkrain!$G84*事前相談チェックシート!$M$28,5) -> 
A86: 13:40:00 | B86: =ROUND(1/360*事前相談チェックシート!$R$10*mkrain!$G85*事前相談チェックシート!$L$28,5) ->  | C86: =ROUND(1/360*事前相談チェックシート!$R$12*mkrain!$G85*事前相談チェックシート!$M$28,5) -> 
A87: 13:50:00 | B87: =ROUND(1/360*事前相談チェックシート!$R$10*mkrain!$G86*事前相談チェックシート!$L$28,5) ->  | C87: =ROUND(1/360*事前相談チェックシート!$R$12*mkrain!$G86*事前相談チェックシート!$M$28,5) -> 
A88: 14:00:00 | B88: =ROUND(1/360*事前相談チェックシート!$R$10*mkrain!$G87*事前相談チェックシート!$L$28,5) ->  | C88: =ROUND(1/360*事前相談チェックシート!$R$12*mkrain!$G87*事前相談チェックシート!$M$28,5) -> 
A89: 14:10:00 | B89: =ROUND(1/360*事前相談チェックシート!$R$10*mkrain!$G88*事前相談チェックシート!$L$28,5) ->  | C89: =ROUND(1/360*事前相談チェックシート!$R$12*mkrain!$G88*事前相談チェックシート!$M$28,5) -> 
A90: 14:20:00 | B90: =ROUND(1/360*事前相談チェックシート!$R$10*mkrain!$G89*事前相談チェックシート!$L$28,5) ->  | C90: =ROUND(1/360*事前相談チェックシート!$R$12*mkrain!$G89*事前相談チェックシート!$M$28,5) -> 
A91: 14:30:00 | B91: =ROUND(1/360*事前相談チェックシート!$R$10*mkrain!$G90*事前相談チェックシート!$L$28,5) ->  | C91: =ROUND(1/360*事前相談チェックシート!$R$12*mkrain!$G90*事前相談チェックシート!$M$28,5) -> 
A92: 14:40:00 | B92: =ROUND(1/360*事前相談チェックシート!$R$10*mkrain!$G91*事前相談チェックシート!$L$28,5) ->  | C92: =ROUND(1/360*事前相談チェックシート!$R$12*mkrain!$G91*事前相談チェックシート!$M$28,5) -> 
A93: 14:50:00 | B93: =ROUND(1/360*事前相談チェックシート!$R$10*mkrain!$G92*事前相談チェックシート!$L$28,5) ->  | C93: =ROUND(1/360*事前相談チェックシート!$R$12*mkrain!$G92*事前相談チェックシート!$M$28,5) -> 
A94: 15:00:00 | B94: =ROUND(1/360*事前相談チェックシート!$R$10*mkrain!$G93*事前相談チェックシート!$L$28,5) ->  | C94: =ROUND(1/360*事前相談チェックシート!$R$12*mkrain!$G93*事前相談チェックシート!$M$28,5) -> 
A95: 15:10:00 | B95: =ROUND(1/360*事前相談チェックシート!$R$10*mkrain!$G94*事前相談チェックシート!$L$28,5) ->  | C95: =ROUND(1/360*事前相談チェックシート!$R$12*mkrain!$G94*事前相談チェックシート!$M$28,5) -> 
A96: 15:20:00 | B96: =ROUND(1/360*事前相談チェックシート!$R$10*mkrain!$G95*事前相談チェックシート!$L$28,5) ->  | C96: =ROUND(1/360*事前相談チェックシート!$R$12*mkrain!$G95*事前相談チェックシート!$M$28,5) -> 
A97: 15:30:00 | B97: =ROUND(1/360*事前相談チェックシート!$R$10*mkrain!$G96*事前相談チェックシート!$L$28,5) ->  | C97: =ROUND(1/360*事前相談チェックシート!$R$12*mkrain!$G96*事前相談チェックシート!$M$28,5) -> 
A98: 15:40:00 | B98: =ROUND(1/360*事前相談チェックシート!$R$10*mkrain!$G97*事前相談チェックシート!$L$28,5) ->  | C98: =ROUND(1/360*事前相談チェックシート!$R$12*mkrain!$G97*事前相談チェックシート!$M$28,5) -> 
A99: 15:50:00 | B99: =ROUND(1/360*事前相談チェックシート!$R$10*mkrain!$G98*事前相談チェックシート!$L$28,5) ->  | C99: =ROUND(1/360*事前相談チェックシート!$R$12*mkrain!$G98*事前相談チェックシート!$M$28,5) -> 
A100: 16:00:00 | B100: =ROUND(1/360*事前相談チェックシート!$R$10*mkrain!$G99*事前相談チェックシート!$L$28,5) ->  | C100: =ROUND(1/360*事前相談チェックシート!$R$12*mkrain!$G99*事前相談チェックシート!$M$28,5) -> 
A101: 16:10:00 | B101: =ROUND(1/360*事前相談チェックシート!$R$10*mkrain!$G100*事前相談チェックシート!$L$28,5) ->  | C101: =ROUND(1/360*事前相談チェックシート!$R$12*mkrain!$G100*事前相談チェックシート!$M$28,5) -> 
A102: 16:20:00 | B102: =ROUND(1/360*事前相談チェックシート!$R$10*mkrain!$G101*事前相談チェックシート!$L$28,5) ->  | C102: =ROUND(1/360*事前相談チェックシート!$R$12*mkrain!$G101*事前相談チェックシート!$M$28,5) -> 
A103: 16:30:00 | B103: =ROUND(1/360*事前相談チェックシート!$R$10*mkrain!$G102*事前相談チェックシート!$L$28,5) ->  | C103: =ROUND(1/360*事前相談チェックシート!$R$12*mkrain!$G102*事前相談チェックシート!$M$28,5) -> 
A104: 16:40:00 | B104: =ROUND(1/360*事前相談チェックシート!$R$10*mkrain!$G103*事前相談チェックシート!$L$28,5) ->  | C104: =ROUND(1/360*事前相談チェックシート!$R$12*mkrain!$G103*事前相談チェックシート!$M$28,5) -> 
A105: 16:50:00 | B105: =ROUND(1/360*事前相談チェックシート!$R$10*mkrain!$G104*事前相談チェックシート!$L$28,5) ->  | C105: =ROUND(1/360*事前相談チェックシート!$R$12*mkrain!$G104*事前相談チェックシート!$M$28,5) -> 
A106: 17:00:00 | B106: =ROUND(1/360*事前相談チェックシート!$R$10*mkrain!$G105*事前相談チェックシート!$L$28,5) ->  | C106: =ROUND(1/360*事前相談チェックシート!$R$12*mkrain!$G105*事前相談チェックシート!$M$28,5) -> 
A107: 17:10:00 | B107: =ROUND(1/360*事前相談チェックシート!$R$10*mkrain!$G106*事前相談チェックシート!$L$28,5) ->  | C107: =ROUND(1/360*事前相談チェックシート!$R$12*mkrain!$G106*事前相談チェックシート!$M$28,5) -> 
A108: 17:20:00 | B108: =ROUND(1/360*事前相談チェックシート!$R$10*mkrain!$G107*事前相談チェックシート!$L$28,5) ->  | C108: =ROUND(1/360*事前相談チェックシート!$R$12*mkrain!$G107*事前相談チェックシート!$M$28,5) -> 
A109: 17:30:00 | B109: =ROUND(1/360*事前相談チェックシート!$R$10*mkrain!$G108*事前相談チェックシート!$L$28,5) ->  | C109: =ROUND(1/360*事前相談チェックシート!$R$12*mkrain!$G108*事前相談チェックシート!$M$28,5) -> 
A110: 17:40:00 | B110: =ROUND(1/360*事前相談チェックシート!$R$10*mkrain!$G109*事前相談チェックシート!$L$28,5) ->  | C110: =ROUND(1/360*事前相談チェックシート!$R$12*mkrain!$G109*事前相談チェックシート!$M$28,5) -> 
A111: 17:50:00 | B111: =ROUND(1/360*事前相談チェックシート!$R$10*mkrain!$G110*事前相談チェックシート!$L$28,5) ->  | C111: =ROUND(1/360*事前相談チェックシート!$R$12*mkrain!$G110*事前相談チェックシート!$M$28,5) -> 
A112: 18:00:00 | B112: =ROUND(1/360*事前相談チェックシート!$R$10*mkrain!$G111*事前相談チェックシート!$L$28,5) ->  | C112: =ROUND(1/360*事前相談チェックシート!$R$12*mkrain!$G111*事前相談チェックシート!$M$28,5) -> 
A113: 18:10:00 | B113: =ROUND(1/360*事前相談チェックシート!$R$10*mkrain!$G112*事前相談チェックシート!$L$28,5) ->  | C113: =ROUND(1/360*事前相談チェックシート!$R$12*mkrain!$G112*事前相談チェックシート!$M$28,5) -> 
A114: 18:20:00 | B114: =ROUND(1/360*事前相談チェックシート!$R$10*mkrain!$G113*事前相談チェックシート!$L$28,5) ->  | C114: =ROUND(1/360*事前相談チェックシート!$R$12*mkrain!$G113*事前相談チェックシート!$M$28,5) -> 
A115: 18:30:00 | B115: =ROUND(1/360*事前相談チェックシート!$R$10*mkrain!$G114*事前相談チェックシート!$L$28,5) ->  | C115: =ROUND(1/360*事前相談チェックシート!$R$12*mkrain!$G114*事前相談チェックシート!$M$28,5) -> 
A116: 18:40:00 | B116: =ROUND(1/360*事前相談チェックシート!$R$10*mkrain!$G115*事前相談チェックシート!$L$28,5) ->  | C116: =ROUND(1/360*事前相談チェックシート!$R$12*mkrain!$G115*事前相談チェックシート!$M$28,5) -> 
A117: 18:50:00 | B117: =ROUND(1/360*事前相談チェックシート!$R$10*mkrain!$G116*事前相談チェックシート!$L$28,5) ->  | C117: =ROUND(1/360*事前相談チェックシート!$R$12*mkrain!$G116*事前相談チェックシート!$M$28,5) -> 
A118: 19:00:00 | B118: =ROUND(1/360*事前相談チェックシート!$R$10*mkrain!$G117*事前相談チェックシート!$L$28,5) ->  | C118: =ROUND(1/360*事前相談チェックシート!$R$12*mkrain!$G117*事前相談チェックシート!$M$28,5) -> 
A119: 19:10:00 | B119: =ROUND(1/360*事前相談チェックシート!$R$10*mkrain!$G118*事前相談チェックシート!$L$28,5) ->  | C119: =ROUND(1/360*事前相談チェックシート!$R$12*mkrain!$G118*事前相談チェックシート!$M$28,5) -> 
A120: 19:20:00 | B120: =ROUND(1/360*事前相談チェックシート!$R$10*mkrain!$G119*事前相談チェックシート!$L$28,5) ->  | C120: =ROUND(1/360*事前相談チェックシート!$R$12*mkrain!$G119*事前相談チェックシート!$M$28,5) -> 
A121: 19:30:00 | B121: =ROUND(1/360*事前相談チェックシート!$R$10*mkrain!$G120*事前相談チェックシート!$L$28,5) ->  | C121: =ROUND(1/360*事前相談チェックシート!$R$12*mkrain!$G120*事前相談チェックシート!$M$28,5) -> 
A122: 19:40:00 | B122: =ROUND(1/360*事前相談チェックシート!$R$10*mkrain!$G121*事前相談チェックシート!$L$28,5) ->  | C122: =ROUND(1/360*事前相談チェックシート!$R$12*mkrain!$G121*事前相談チェックシート!$M$28,5) -> 
A123: 19:50:00 | B123: =ROUND(1/360*事前相談チェックシート!$R$10*mkrain!$G122*事前相談チェックシート!$L$28,5) ->  | C123: =ROUND(1/360*事前相談チェックシート!$R$12*mkrain!$G122*事前相談チェックシート!$M$28,5) -> 
A124: 20:00:00 | B124: =ROUND(1/360*事前相談チェックシート!$R$10*mkrain!$G123*事前相談チェックシート!$L$28,5) ->  | C124: =ROUND(1/360*事前相談チェックシート!$R$12*mkrain!$G123*事前相談チェックシート!$M$28,5) -> 
A125: 20:10:00 | B125: =ROUND(1/360*事前相談チェックシート!$R$10*mkrain!$G124*事前相談チェックシート!$L$28,5) ->  | C125: =ROUND(1/360*事前相談チェックシート!$R$12*mkrain!$G124*事前相談チェックシート!$M$28,5) -> 
A126: 20:20:00 | B126: =ROUND(1/360*事前相談チェックシート!$R$10*mkrain!$G125*事前相談チェックシート!$L$28,5) ->  | C126: =ROUND(1/360*事前相談チェックシート!$R$12*mkrain!$G125*事前相談チェックシート!$M$28,5) -> 
A127: 20:30:00 | B127: =ROUND(1/360*事前相談チェックシート!$R$10*mkrain!$G126*事前相談チェックシート!$L$28,5) ->  | C127: =ROUND(1/360*事前相談チェックシート!$R$12*mkrain!$G126*事前相談チェックシート!$M$28,5) -> 
A128: 20:40:00 | B128: =ROUND(1/360*事前相談チェックシート!$R$10*mkrain!$G127*事前相談チェックシート!$L$28,5) ->  | C128: =ROUND(1/360*事前相談チェックシート!$R$12*mkrain!$G127*事前相談チェックシート!$M$28,5) -> 
A129: 20:50:00 | B129: =ROUND(1/360*事前相談チェックシート!$R$10*mkrain!$G128*事前相談チェックシート!$L$28,5) ->  | C129: =ROUND(1/360*事前相談チェックシート!$R$12*mkrain!$G128*事前相談チェックシート!$M$28,5) -> 
A130: 21:00:00 | B130: =ROUND(1/360*事前相談チェックシート!$R$10*mkrain!$G129*事前相談チェックシート!$L$28,5) ->  | C130: =ROUND(1/360*事前相談チェックシート!$R$12*mkrain!$G129*事前相談チェックシート!$M$28,5) -> 
A131: 21:10:00 | B131: =ROUND(1/360*事前相談チェックシート!$R$10*mkrain!$G130*事前相談チェックシート!$L$28,5) ->  | C131: =ROUND(1/360*事前相談チェックシート!$R$12*mkrain!$G130*事前相談チェックシート!$M$28,5) -> 
A132: 21:20:00 | B132: =ROUND(1/360*事前相談チェックシート!$R$10*mkrain!$G131*事前相談チェックシート!$L$28,5) ->  | C132: =ROUND(1/360*事前相談チェックシート!$R$12*mkrain!$G131*事前相談チェックシート!$M$28,5) -> 
A133: 21:30:00 | B133: =ROUND(1/360*事前相談チェックシート!$R$10*mkrain!$G132*事前相談チェックシート!$L$28,5) ->  | C133: =ROUND(1/360*事前相談チェックシート!$R$12*mkrain!$G132*事前相談チェックシート!$M$28,5) -> 
A134: 21:40:00 | B134: =ROUND(1/360*事前相談チェックシート!$R$10*mkrain!$G133*事前相談チェックシート!$L$28,5) ->  | C134: =ROUND(1/360*事前相談チェックシート!$R$12*mkrain!$G133*事前相談チェックシート!$M$28,5) -> 
A135: 21:50:00 | B135: =ROUND(1/360*事前相談チェックシート!$R$10*mkrain!$G134*事前相談チェックシート!$L$28,5) ->  | C135: =ROUND(1/360*事前相談チェックシート!$R$12*mkrain!$G134*事前相談チェックシート!$M$28,5) -> 
A136: 22:00:00 | B136: =ROUND(1/360*事前相談チェックシート!$R$10*mkrain!$G135*事前相談チェックシート!$L$28,5) ->  | C136: =ROUND(1/360*事前相談チェックシート!$R$12*mkrain!$G135*事前相談チェックシート!$M$28,5) -> 
A137: 22:10:00 | B137: =ROUND(1/360*事前相談チェックシート!$R$10*mkrain!$G136*事前相談チェックシート!$L$28,5) ->  | C137: =ROUND(1/360*事前相談チェックシート!$R$12*mkrain!$G136*事前相談チェックシート!$M$28,5) -> 
A138: 22:20:00 | B138: =ROUND(1/360*事前相談チェックシート!$R$10*mkrain!$G137*事前相談チェックシート!$L$28,5) ->  | C138: =ROUND(1/360*事前相談チェックシート!$R$12*mkrain!$G137*事前相談チェックシート!$M$28,5) -> 
A139: 22:30:00 | B139: =ROUND(1/360*事前相談チェックシート!$R$10*mkrain!$G138*事前相談チェックシート!$L$28,5) ->  | C139: =ROUND(1/360*事前相談チェックシート!$R$12*mkrain!$G138*事前相談チェックシート!$M$28,5) -> 
A140: 22:40:00 | B140: =ROUND(1/360*事前相談チェックシート!$R$10*mkrain!$G139*事前相談チェックシート!$L$28,5) ->  | C140: =ROUND(1/360*事前相談チェックシート!$R$12*mkrain!$G139*事前相談チェックシート!$M$28,5) -> 
A141: 22:50:00 | B141: =ROUND(1/360*事前相談チェックシート!$R$10*mkrain!$G140*事前相談チェックシート!$L$28,5) ->  | C141: =ROUND(1/360*事前相談チェックシート!$R$12*mkrain!$G140*事前相談チェックシート!$M$28,5) -> 
A142: 23:00:00 | B142: =ROUND(1/360*事前相談チェックシート!$R$10*mkrain!$G141*事前相談チェックシート!$L$28,5) ->  | C142: =ROUND(1/360*事前相談チェックシート!$R$12*mkrain!$G141*事前相談チェックシート!$M$28,5) -> 
A143: 23:10:00 | B143: =ROUND(1/360*事前相談チェックシート!$R$10*mkrain!$G142*事前相談チェックシート!$L$28,5) ->  | C143: =ROUND(1/360*事前相談チェックシート!$R$12*mkrain!$G142*事前相談チェックシート!$M$28,5) -> 
A144: 23:20:00 | B144: =ROUND(1/360*事前相談チェックシート!$R$10*mkrain!$G143*事前相談チェックシート!$L$28,5) ->  | C144: =ROUND(1/360*事前相談チェックシート!$R$12*mkrain!$G143*事前相談チェックシート!$M$28,5) -> 
A145: 23:30:00 | B145: =ROUND(1/360*事前相談チェックシート!$R$10*mkrain!$G144*事前相談チェックシート!$L$28,5) ->  | C145: =ROUND(1/360*事前相談チェックシート!$R$12*mkrain!$G144*事前相談チェックシート!$M$28,5) -> 
A146: 23:40:00 | B146: =ROUND(1/360*事前相談チェックシート!$R$10*mkrain!$G145*事前相談チェックシート!$L$28,5) ->  | C146: =ROUND(1/360*事前相談チェックシート!$R$12*mkrain!$G145*事前相談チェックシート!$M$28,5) -> 
A147: 23:50:00 | B147: =ROUND(1/360*事前相談チェックシート!$R$10*mkrain!$G146*事前相談チェックシート!$L$28,5) ->  | C147: =ROUND(1/360*事前相談チェックシート!$R$12*mkrain!$G146*事前相談チェックシート!$M$28,5) -> 
A148: 1 | B148: =ROUND(1/360*事前相談チェックシート!$R$10*mkrain!$G147*事前相談チェックシート!$L$28,5) ->  | C148: =ROUND(1/360*事前相談チェックシート!$R$12*mkrain!$G147*事前相談チェックシート!$M$28,5) -> 

Sheet 逐次計算（概算） (hidden)
A1: 時刻 | B1: 行為後流入量 | C1: 許容放流量 | D1: 調整池水位 | E1: 調節後放流量
A3: =runoff!A4 -> 00:00:00 | B3: =runoff!C4 -> 0 | C3: =runoff!$B$1 ->  | D3: 0 | E3: 0
A4: =runoff!A5 -> 00:10:00 | B4: =runoff!C5 ->  | C4: =runoff!$B$1 ->  | D4: 0.00468342265 | E4: 0.0001025842578
A5: =runoff!A6 -> 00:20:00 | B5: =runoff!C6 ->  | C5: =runoff!$B$1 ->  | D5: 0.01385159448 | E5: 0.0005330434397
A6: =runoff!A7 -> 00:30:00 | B6: =runoff!C7 ->  | C6: =runoff!$B$1 ->  | D6: 0.0226697747 | E6: 0.001110899425
A7: =runoff!A8 -> 00:40:00 | B7: =runoff!C8 ->  | C7: =runoff!$B$1 ->  | D7: 0.03103115143 | E7: 0.001772784315
A8: =runoff!A9 -> 00:50:00 | B8: =runoff!C9 ->  | C8: =runoff!$B$1 ->  | D8: 0.03887445275 | E8: 0.002483396163
A9: =runoff!A10 -> 01:00:00 | B9: =runoff!C10 ->  | C9: =runoff!$B$1 ->  | D9: 0.04616592116 | E9: 0.003218422276
A10: =runoff!A11 -> 01:10:00 | B10: =runoff!C11 ->  | C10: =runoff!$B$1 ->  | D10: 0.05278873033 | E10: 0.003932157872
A11: =runoff!A12 -> 01:20:00 | B11: =runoff!C12 ->  | C11: =runoff!$B$1 ->  | D11: 0.05887348276 | E11: 0.004634211847
A12: =runoff!A13 -> 01:30:00 | B12: =runoff!C13 ->  | C12: =runoff!$B$1 ->  | D12: 0.0644362155 | E12: 0.005313200557
A13: =runoff!A14 -> 01:40:00 | B13: =runoff!C14 ->  | C13: =runoff!$B$1 ->  | D13: 0.06950261209 | E13: 0.00595960683
A14: =runoff!A15 -> 01:50:00 | B14: =runoff!C15 ->  | C14: =runoff!$B$1 ->  | D14: 0.07411393126 | E14: 0.006549201647
A15: =runoff!A16 -> 02:00:00 | B15: =runoff!C16 ->  | C15: =runoff!$B$1 ->  | D15: 0.07831102323 | E15: 0.00710709908
A16: =runoff!A17 -> 02:10:00 | B16: =runoff!C17 ->  | C16: =runoff!$B$1 ->  | D16: 0.08211733696 | E16: 0.007645887825
A17: =runoff!A18 -> 02:20:00 | B17: =runoff!C18 ->  | C17: =runoff!$B$1 ->  | D17: 0.08556786187 | E17: 0.008127974879
A18: =runoff!A19 -> 02:30:00 | B18: =runoff!C19 ->  | C18: =runoff!$B$1 ->  | D18: 0.08881602394 | E18: 0.008584340625
A19: =runoff!A20 -> 02:40:00 | B19: =runoff!C20 ->  | C19: =runoff!$B$1 ->  | D19: 0.09177113716 | E19: 0.009012914086
A20: =runoff!A21 -> 02:50:00 | B20: =runoff!C21 ->  | C20: =runoff!$B$1 ->  | D20: 0.09445971188 | E20: 0.009411840672
A21: =runoff!A22 -> 03:00:00 | B21: =runoff!C22 ->  | C21: =runoff!$B$1 ->  | D21: 0.096901338 | E21: 0.009797969413
A22: =runoff!A23 -> 03:10:00 | B22: =runoff!C23 ->  | C22: =runoff!$B$1 ->  | D22: 0.09912549167 | E22: 0.01013303096
A23: =runoff!A24 -> 03:20:00 | B23: =runoff!C24 ->  | C23: =runoff!$B$1 ->  | D23: 0.1012694033 | E23: 0.01047182713
A24: =runoff!A25 -> 03:30:00 | B24: =runoff!C25 ->  | C24: =runoff!$B$1 ->  | D24: 0.103231907 | E24: 0.01077608157
A25: =runoff!A26 -> 03:40:00 | B25: =runoff!C26 ->  | C25: =runoff!$B$1 ->  | D25: 0.1050454032 | E25: 0.01104467657
A26: =runoff!A27 -> 03:50:00 | B26: =runoff!C27 ->  | C26: =runoff!$B$1 ->  | D26: 0.106831756 | E26: 0.01133489249
A27: =runoff!A28 -> 04:00:00 | B27: =runoff!C28 ->  | C27: =runoff!$B$1 ->  | D27: 0.1084734909 | E27: 0.01160801518
A28: =runoff!A29 -> 04:10:00 | B28: =runoff!C29 ->  | C28: =runoff!$B$1 ->  | D28: 0.1099957118 | E28: 0.01184383947
A29: =runoff!A30 -> 04:20:00 | B29: =runoff!C30 ->  | C29: =runoff!$B$1 ->  | D29: 0.1115302908 | E29: 0.01208123945
A30: =runoff!A31 -> 04:30:00 | B30: =runoff!C31 ->  | C30: =runoff!$B$1 ->  | D30: 0.1130665547 | E30: 0.01234018884
A31: =runoff!A32 -> 04:40:00 | B31: =runoff!C32 ->  | C31: =runoff!$B$1 ->  | D31: 0.1145937157 | E31: 0.01260096236
A32: =runoff!A33 -> 04:50:00 | B32: =runoff!C33 ->  | C32: =runoff!$B$1 ->  | D32: 0.1161194479 | E32: 0.01284328444
A33: =runoff!A34 -> 05:00:00 | B33: =runoff!C34 ->  | C33: =runoff!$B$1 ->  | D33: 0.1176515596 | E33: 0.01308714024
A34: =runoff!A35 -> 05:10:00 | B34: =runoff!C35 ->  | C34: =runoff!$B$1 ->  | D34: 0.1191696959 | E34: 0.01337356434
A35: =runoff!A36 -> 05:20:00 | B35: =runoff!C36 ->  | C35: =runoff!$B$1 ->  | D35: 0.1206723383 | E35: 0.01362071052
A36: =runoff!A37 -> 05:30:00 | B36: =runoff!C37 ->  | C36: =runoff!$B$1 ->  | D36: 0.1221769208 | E36: 0.01386936067
A37: =runoff!A38 -> 05:40:00 | B37: =runoff!C38 ->  | C37: =runoff!$B$1 ->  | D37: 0.1236820594 | E37: 0.01411950572
A38: =runoff!A39 -> 05:50:00 | B38: =runoff!C39 ->  | C38: =runoff!$B$1 ->  | D38: 0.1251863782 | E38: 0.01437113681
A39: =runoff!A40 -> 06:00:00 | B39: =runoff!C40 ->  | C39: =runoff!$B$1 ->  | D39: 0.126678744 | E39: 0.01464540399
A40: =runoff!A41 -> 06:10:00 | B40: =runoff!C41 ->  | C40: =runoff!$B$1 ->  | D40: 0.1281577407 | E40: 0.01490010313
A41: =runoff!A42 -> 06:20:00 | B41: =runoff!C42 ->  | C41: =runoff!$B$1 ->  | D41: 0.1297372282 | E41: 0.01517767407
A42: =runoff!A43 -> 06:30:00 | B42: =runoff!C43 ->  | C42: =runoff!$B$1 ->  | D42: 0.1313959169 | E42: 0.01547850033
A43: =runoff!A44 -> 06:40:00 | B43: =runoff!C44 ->  | C43: =runoff!$B$1 ->  | D43: 0.1331221684 | E43: 0.01578128822
A44: =runoff!A45 -> 06:50:00 | B44: =runoff!C45 ->  | C44: =runoff!$B$1 ->  | D44: 0.1349141776 | E44: 0.01608602513
A45: =runoff!A46 -> 07:00:00 | B45: =runoff!C46 ->  | C45: =runoff!$B$1 ->  | D45: 0.1367498584 | E45: 0.01643666655
A46: =runoff!A47 -> 07:10:00 | B46: =runoff!C47 ->  | C46: =runoff!$B$1 ->  | D46: 0.1387222495 | E46: 0.01678981933
A47: =runoff!A48 -> 07:20:00 | B47: =runoff!C48 ->  | C47: =runoff!$B$1 ->  | D47: 0.1407136564 | E47: 0.01714546573
A48: =runoff!A49 -> 07:30:00 | B48: =runoff!C49 ->  | C48: =runoff!$B$1 ->  | D48: 0.1427217853 | E48: 0.01750358841
A49: =runoff!A50 -> 07:40:00 | B49: =runoff!C50 ->  | C49: =runoff!$B$1 ->  | D49: 0.1449542451 | E49: 0.01790941517
A50: =runoff!A51 -> 07:50:00 | B50: =runoff!C51 ->  | C50: =runoff!$B$1 ->  | D50: 0.1473665356 | E50: 0.01836395547
A51: =runoff!A52 -> 08:00:00 | B51: =runoff!C52 ->  | C51: =runoff!$B$1 ->  | D51: 0.1498190435 | E51: 0.01882227741
A52: =runoff!A53 -> 08:10:00 | B52: =runoff!C53 ->  | C52: =runoff!$B$1 ->  | D52: 0.1524022559 | E52: 0.01933076242
A53: =runoff!A54 -> 08:20:00 | B53: =runoff!C54 ->  | C53: =runoff!$B$1 ->  | D53: 0.1550909445 | E53: 0.01984374564
A54: =runoff!A55 -> 08:30:00 | B54: =runoff!C55 ->  | C54: =runoff!$B$1 ->  | D54: 0.1578809751 | E54: 0.02036118796
A55: =runoff!A56 -> 08:40:00 | B55: =runoff!C56 ->  | C55: =runoff!$B$1 ->  | D55: 0.160955008 | E55: 0.02097840759
A56: =runoff!A57 -> 08:50:00 | B56: =runoff!C57 ->  | C56: =runoff!$B$1 ->  | D56: 0.1642641702 | E56: 0.02160174088
A57: =runoff!A58 -> 09:00:00 | B57: =runoff!C58 ->  | C57: =runoff!$B$1 ->  | D57: 0.1677579094 | E57: 0.02232849097
A58: =runoff!A59 -> 09:10:00 | B58: =runoff!C59 ->  | C58: =runoff!$B$1 ->  | D58: 0.1715001998 | E58: 0.02306321311
A59: =runoff!A60 -> 09:20:00 | B59: =runoff!C60 ->  | C59: =runoff!$B$1 ->  | D59: 0.1755646338 | E59: 0.02388051315
A60: =runoff!A61 -> 09:30:00 | B60: =runoff!C61 ->  | C60: =runoff!$B$1 ->  | D60: 0.1799892275 | E60: 0.02478286727
A61: =runoff!A62 -> 09:40:00 | B61: =runoff!C62 ->  | C61: =runoff!$B$1 ->  | D61: 0.1847978359 | E61: 0.02579848116
A62: =runoff!A63 -> 09:50:00 | B62: =runoff!C63 ->  | C62: =runoff!$B$1 ->  | D62: 0.1900234251 | E62: 0.02687940894
A63: =runoff!A64 -> 10:00:00 | B63: =runoff!C64 ->  | C63: =runoff!$B$1 ->  | D63: 0.1957870534 | E63: 0.02813272958
A64: =runoff!A65 -> 10:10:00 | B64: =runoff!C65 ->  | C64: =runoff!$B$1 ->  | D64: 0.202181882 | E64: 0.02951180852
A65: =runoff!A66 -> 10:20:00 | B65: =runoff!C66 ->  | C65: =runoff!$B$1 ->  | D65: 0.2092953187 | E65: 0.03107574522
A66: =runoff!A67 -> 10:30:00 | B66: =runoff!C67 ->  | C66: =runoff!$B$1 ->  | D66: 0.2173762563 | E66: 0.03291555672
A67: =runoff!A68 -> 10:40:00 | B67: =runoff!C68 ->  | C67: =runoff!$B$1 ->  | D67: 0.2266253375 | E67: 0.03504476736
A68: =runoff!A69 -> 10:50:00 | B68: =runoff!C69 ->  | C68: =runoff!$B$1 ->  | D68: 0.2373187606 | E68: 0.03753614919
A69: =runoff!A70 -> 11:00:00 | B69: =runoff!C70 ->  | C69: =runoff!$B$1 ->  | D69: 0.2504238426 | E69: 0.03956950664
A70: =runoff!A71 -> 11:10:00 | B70: =runoff!C71 ->  | C70: =runoff!$B$1 ->  | D70: 0.2681313258 | E70: 0.04031427971
A71: =runoff!A72 -> 11:20:00 | B71: =runoff!C72 ->  | C71: =runoff!$B$1 ->  | D71: 0.2928566415 | E71: 0.04136420285
A72: =runoff!A73 -> 11:30:00 | B72: =runoff!C73 ->  | C72: =runoff!$B$1 ->  | D72: 0.3276117506 | E72: 0.04283306084
A73: =runoff!A74 -> 11:40:00 | B73: =runoff!C74 ->  | C73: =runoff!$B$1 ->  | D73: 0.378372093 | E73: 0.04543619735
A74: =runoff!A75 -> 11:50:00 | B74: =runoff!C75 ->  | C74: =runoff!$B$1 ->  | D74: 0.4593217858 | E74: 0.05167280144
A75: =runoff!A76 -> 12:00:00 | B75: =runoff!C76 ->  | C75: =runoff!$B$1 ->  | D75: 0.6596448558 | E75: 0.06454388026
A76: =runoff!A77 -> 12:10:00 | B76: =runoff!C77 ->  | C76: =runoff!$B$1 ->  | D76: 0.8747105701 | E76: 0.07598040544
A77: =runoff!A78 -> 12:20:00 | B77: =runoff!C78 ->  | C77: =runoff!$B$1 ->  | D77: 0.9633463536 | E77: 0.08022539691
A78: =runoff!A79 -> 12:30:00 | B78: =runoff!C79 ->  | C78: =runoff!$B$1 ->  | D78: 0.9938727071 | E78: 0.08163417051
A79: =runoff!A80 -> 12:40:00 | B79: =runoff!C80 ->  | C79: =runoff!$B$1 ->  | D79: 0.9997406828 | E79: 0.08190188218
A80: =runoff!A81 -> 12:50:00 | B80: =runoff!C81 ->  | C80: =runoff!$B$1 ->  | D80: 0.9918063625 | E80: 0.08153914519
A81: =runoff!A82 -> 13:00:00 | B81: =runoff!C82 ->  | C81: =runoff!$B$1 ->  | D81: 0.9751614101 | E81: 0.08077491827
A82: =runoff!A83 -> 13:10:00 | B82: =runoff!C83 ->  | C82: =runoff!$B$1 ->  | D82: 0.9526594607 | E82: 0.07972930538
A83: =runoff!A84 -> 13:20:00 | B83: =runoff!C84 ->  | C83: =runoff!$B$1 ->  | D83: 0.926030563 | E83: 0.0784666398
A84: =runoff!A85 -> 13:30:00 | B84: =runoff!C85 ->  | C84: =runoff!$B$1 ->  | D84: 0.8965983193 | E84: 0.07705322135
A85: =runoff!A86 -> 13:40:00 | B85: =runoff!C86 ->  | C85: =runoff!$B$1 ->  | D85: 0.8652939726 | E85: 0.07552286323
A86: =runoff!A87 -> 13:50:00 | B86: =runoff!C87 ->  | C86: =runoff!$B$1 ->  | D86: 0.8326818126 | E86: 0.07388681678
A87: =runoff!A88 -> 14:00:00 | B87: =runoff!C88 ->  | C87: =runoff!$B$1 ->  | D87: 0.7993038367 | E87: 0.07218213108
A88: =runoff!A89 -> 14:10:00 | B88: =runoff!C89 ->  | C88: =runoff!$B$1 ->  | D88: 0.7655658803 | E88: 0.07041677441
A89: =runoff!A90 -> 14:20:00 | B89: =runoff!C90 ->  | C89: =runoff!$B$1 ->  | D89: 0.7317538101 | E89: 0.06859271099
A90: =runoff!A91 -> 14:30:00 | B90: =runoff!C91 ->  | C90: =runoff!$B$1 ->  | D90: 0.6981390358 | E90: 0.06673930001
A91: =runoff!A92 -> 14:40:00 | B91: =runoff!C92 ->  | C91: =runoff!$B$1 ->  | D91: 0.6648651933 | E91: 0.06485402542
A92: =runoff!A93 -> 14:50:00 | B92: =runoff!C93 ->  | C92: =runoff!$B$1 ->  | D92: 0.6321904417 | E92: 0.06294126973
A93: =runoff!A94 -> 15:00:00 | B93: =runoff!C94 ->  | C93: =runoff!$B$1 ->  | D93: 0.6002498255 | E93: 0.06101339871
A94: =runoff!A95 -> 15:10:00 | B94: =runoff!C95 ->  | C94: =runoff!$B$1 ->  | D94: 0.5690579804 | E94: 0.05906893237
A95: =runoff!A96 -> 15:20:00 | B95: =runoff!C96 ->  | C95: =runoff!$B$1 ->  | D95: 0.5387390215 | E95: 0.05712214521
A96: =runoff!A97 -> 15:30:00 | B96: =runoff!C97 ->  | C96: =runoff!$B$1 ->  | D96: 0.5094105891 | E96: 0.05517279154
A97: =runoff!A98 -> 15:40:00 | B97: =runoff!C98 ->  | C97: =runoff!$B$1 ->  | D97: 0.4811866126 | E97: 0.05322915766
A98: =runoff!A99 -> 15:50:00 | B98: =runoff!C99 ->  | C98: =runoff!$B$1 ->  | D98: 0.4540615119 | E98: 0.0512918938
A99: =runoff!A100 -> 16:00:00 | B99: =runoff!C100 ->  | C99: =runoff!$B$1 ->  | D99: 0.4280333254 | E99: 0.04935251022
A100: =runoff!A101 -> 16:10:00 | B100: =runoff!C101 ->  | C100: =runoff!$B$1 ->  | D100: 0.4032061999 | E100: 0.04743959522
A101: =runoff!A102 -> 16:20:00 | B101: =runoff!C102 ->  | C101: =runoff!$B$1 ->  | D101: 0.3796695483 | E101: 0.04555648315
A102: =runoff!A103 -> 16:30:00 | B102: =runoff!C103 ->  | C102: =runoff!$B$1 ->  | D102: 0.3571043899 | E102: 0.04408469336
A103: =runoff!A104 -> 16:40:00 | B103: =runoff!C104 ->  | C103: =runoff!$B$1 ->  | D103: 0.3350712728 | E103: 0.04315372702
A104: =runoff!A105 -> 16:50:00 | B104: =runoff!C105 ->  | C104: =runoff!$B$1 ->  | D104: 0.313541807 | E104: 0.04224344883
A105: =runoff!A106 -> 17:00:00 | B105: =runoff!C106 ->  | C105: =runoff!$B$1 ->  | D105: 0.2924992829 | E105: 0.04134868674
A106: =runoff!A107 -> 17:10:00 | B106: =runoff!C107 ->  | C106: =runoff!$B$1 ->  | D106: 0.2718139933 | E106: 0.04046944076
A107: =runoff!A108 -> 17:20:00 | B107: =runoff!C108 ->  | C107: =runoff!$B$1 ->  | D107: 0.2514692285 | E107: 0.03961088292
A108: =runoff!A109 -> 17:30:00 | B108: =runoff!C109 ->  | C108: =runoff!$B$1 ->  | D108: 0.2326376141 | E108: 0.03644094831
A109: =runoff!A110 -> 17:40:00 | B109: =runoff!C110 ->  | C109: =runoff!$B$1 ->  | D109: 0.2166394726 | E109: 0.03272169174
A110: =runoff!A111 -> 17:50:00 | B110: =runoff!C111 ->  | C110: =runoff!$B$1 ->  | D110: 0.2033696785 | E110: 0.02977952878
A111: =runoff!A112 -> 18:00:00 | B111: =runoff!C112 ->  | C111: =runoff!$B$1 ->  | D111: 0.1923255985 | E111: 0.02739931122
A112: =runoff!A113 -> 18:10:00 | B112: =runoff!C113 ->  | C112: =runoff!$B$1 ->  | D112: 0.1830529299 | E112: 0.02544147077
A113: =runoff!A114 -> 18:20:00 | B113: =runoff!C114 ->  | C113: =runoff!$B$1 ->  | D113: 0.175104124 | E113: 0.02378094195
A114: =runoff!A115 -> 18:30:00 | B114: =runoff!C115 ->  | C114: =runoff!$B$1 ->  | D114: 0.1682121788 | E114: 0.02240160587
A115: =runoff!A116 -> 18:40:00 | B115: =runoff!C116 ->  | C115: =runoff!$B$1 ->  | D115: 0.1622615686 | E115: 0.02124138288
A116: =runoff!A117 -> 18:50:00 | B116: =runoff!C117 ->  | C116: =runoff!$B$1 ->  | D116: 0.1570872563 | E116: 0.0202196273
A117: =runoff!A118 -> 19:00:00 | B117: =runoff!C118 ->  | C117: =runoff!$B$1 ->  | D117: 0.1525532825 | E117: 0.01935398255
A118: =runoff!A119 -> 19:10:00 | B118: =runoff!C119 ->  | C118: =runoff!$B$1 ->  | D118: 0.1485394541 | E118: 0.01859264568
A119: =runoff!A120 -> 19:20:00 | B119: =runoff!C120 ->  | C119: =runoff!$B$1 ->  | D119: 0.1449511321 | E119: 0.01793205188
A120: =runoff!A121 -> 19:30:00 | B120: =runoff!C121 ->  | C120: =runoff!$B$1 ->  | D120: 0.1417174688 | E120: 0.01732421861
A121: =runoff!A122 -> 19:40:00 | B121: =runoff!C122 ->  | C121: =runoff!$B$1 ->  | D121: 0.1387802205 | E121: 0.01678981933
A122: =runoff!A123 -> 19:50:00 | B122: =runoff!C123 ->  | C122: =runoff!$B$1 ->  | D122: 0.1361879252 | E122: 0.01632682048
A123: =runoff!A124 -> 20:00:00 | B123: =runoff!C124 ->  | C123: =runoff!$B$1 ->  | D123: 0.1338855534 | E123: 0.01591165183
A124: =runoff!A125 -> 20:10:00 | B124: =runoff!C125 ->  | C124: =runoff!$B$1 ->  | D124: 0.131724036 | E124: 0.01552163594
A125: =runoff!A126 -> 20:20:00 | B125: =runoff!C126 ->  | C125: =runoff!$B$1 ->  | D125: 0.1296803908 | E125: 0.01515626189
A126: =runoff!A127 -> 20:30:00 | B126: =runoff!C127 ->  | C126: =runoff!$B$1 ->  | D126: 0.127837674 | E126: 0.01483629118
A127: =runoff!A128 -> 20:40:00 | B127: =runoff!C128 ->  | C127: =runoff!$B$1 ->  | D127: 0.1261543873 | E127: 0.01456083008
A128: =runoff!A129 -> 20:50:00 | B128: =runoff!C129 ->  | C128: =runoff!$B$1 ->  | D128: 0.1245034916 | E128: 0.01426611049
A129: =runoff!A130 -> 21:00:00 | B129: =runoff!C130 ->  | C129: =runoff!$B$1 ->  | D129: 0.1229890879 | E129: 0.01401509752
A130: =runoff!A131 -> 21:10:00 | B130: =runoff!C131 ->  | C130: =runoff!$B$1 ->  | D130: 0.1215903164 | E130: 0.01376557425
A131: =runoff!A132 -> 21:20:00 | B131: =runoff!C132 ->  | C131: =runoff!$B$1 ->  | D131: 0.120190413 | E131: 0.01351754965
A132: =runoff!A133 -> 21:30:00 | B132: =runoff!C133 ->  | C132: =runoff!$B$1 ->  | D132: 0.1188844606 | E132: 0.01331201386
A133: =runoff!A134 -> 21:40:00 | B133: =runoff!C134 ->  | C133: =runoff!$B$1 ->  | D133: 0.1176523632 | E133: 0.01310753049
A134: =runoff!A135 -> 21:50:00 | B134: =runoff!C135 ->  | C134: =runoff!$B$1 ->  | D134: 0.1164931469 | E134: 0.01290410499
A135: =runoff!A136 -> 22:00:00 | B135: =runoff!C136 ->  | C135: =runoff!$B$1 ->  | D135: 0.1153871923 | E135: 0.01274212996
A136: =runoff!A137 -> 22:10:00 | B136: =runoff!C137 ->  | C136: =runoff!$B$1 ->  | D136: 0.1143336142 | E136: 0.01254062262
A137: =runoff!A138 -> 22:20:00 | B137: =runoff!C138 ->  | C137: =runoff!$B$1 ->  | D137: 0.1133317009 | E137: 0.01238018943
A138: =runoff!A139 -> 22:30:00 | B138: =runoff!C139 ->  | C138: =runoff!$B$1 ->  | D138: 0.1123621767 | E138: 0.01222044629
A139: =runoff!A140 -> 22:40:00 | B139: =runoff!C140 ->  | C139: =runoff!$B$1 ->  | D139: 0.1114244033 | E139: 0.01206139619
A140: =runoff!A141 -> 22:50:00 | B140: =runoff!C141 ->  | C140: =runoff!$B$1 ->  | D140: 0.110499498 | E140: 0.01194256523
A141: =runoff!A142 -> 23:00:00 | B141: =runoff!C142 ->  | C141: =runoff!$B$1 ->  | D141: 0.1095868978 | E141: 0.01178473526
A142: =runoff!A143 -> 23:10:00 | B142: =runoff!C143 ->  | C142: =runoff!$B$1 ->  | D142: 0.1087042784 | E142: 0.01162760676
A143: =runoff!A144 -> 23:20:00 | B143: =runoff!C144 ->  | C143: =runoff!$B$1 ->  | D143: 0.1078329725 | E143: 0.01151022262
A144: =runoff!A145 -> 23:30:00 | B144: =runoff!C145 ->  | C144: =runoff!$B$1 ->  | D144: 0.1069724101 | E144: 0.01135432929
A145: =runoff!A146 -> 23:40:00 | B145: =runoff!C146 ->  | C145: =runoff!$B$1 ->  | D145: 0.1061221619 | E145: 0.0112378752
A146: =runoff!A147 -> 23:50:00 | B146: =runoff!C147 ->  | C146: =runoff!$B$1 ->  | D146: 0.1052816532 | E146: 0.0110832269
A147: =runoff!A148 -> 1 | B147: =runoff!C148 ->  | C147: =runoff!$B$1 ->  | D147: 0.104565836 | E147: 0.01096771036

Sheet 浸透計算 (hidden)
A1: 8 | B1: 9 | C1: 10
B2: =MAX(B5:B149) -> 0.389 | C2: =MAX(C5:C149) -> 0.384203
A4: 時刻 | B4: 浸透考慮前 | C4: 浸透考慮後 | D4: 許容放流量
A5: 00:00:00 | B5: 0 | C5: 0 | D5: =事前相談チェックシート!U25 -> 99999 | G5: 0
A6: 00:10:00 | B6: 0.01025 | C6: 0 | D6: =D5 -> 99999 | G6: =G5+1/6 -> 0.1666666667
A7: 00:20:00 | B7: 0.01025 | C7: 0 | D7: =D6 -> 99999 | G7: =G6+1/6 -> 0.3333333333
A8: 00:30:00 | B8: 0.0105 | C8: 0 | D8: 99999 | G8: 0.5
A9: 00:40:00 | B9: 0.0105 | C9: 0 | D9: 99999 | G9: 0.6666666667
A10: 00:50:00 | B10: 0.01075 | C10: 0 | D10: 99999 | G10: 0.8333333333
A11: 01:00:00 | B11: 0.01075 | C11: 0 | D11: 99999 | G11: 1
A12: 01:10:00 | B12: 0.01075 | C12: 0 | D12: 99999 | G12: 1.166666667
A13: 01:20:00 | B13: 0.011 | C13: 0 | D13: 99999 | G13: 1.333333333
A14: 01:30:00 | B14: 0.011 | C14: 0 | D14: 99999 | G14: 1.5
A15: 01:40:00 | B15: 0.01125 | C15: 0 | D15: 99999 | G15: 1.666666667
A16: 01:50:00 | B16: 0.01125 | C16: 0 | D16: 99999 | G16: 1.833333333
A17: 02:00:00 | B17: 0.0115 | C17: 0 | D17: 99999 | G17: 2
A18: 02:10:00 | B18: 0.0115 | C18: 0 | D18: 99999 | G18: 2.166666667
A19: 02:20:00 | B19: 0.01175 | C19: 0 | D19: 99999 | G19: 2.333333333
A20: 02:30:00 | B20: 0.012 | C20: 0 | D20: 99999 | G20: 2.5
A21: 02:40:00 | B21: 0.012 | C21: 0 | D21: 99999 | G21: 2.666666667
A22: 02:50:00 | B22: 0.01225 | C22: 0 | D22: 99999 | G22: 2.833333333
A23: 03:00:00 | B23: 0.01225 | C23: 0 | D23: 99999 | G23: 3
A24: 03:10:00 | B24: 0.0125 | C24: 0 | D24: 99999 | G24: 3.166666667
A25: 03:20:00 | B25: 0.01275 | C25: 0 | D25: 99999 | G25: 3.333333333
A26: 03:30:00 | B26: 0.01275 | C26: 0 | D26: 99999 | G26: 3.5
A27: 03:40:00 | B27: 0.013 | C27: 0 | D27: 99999 | G27: 3.666666667
A28: 03:50:00 | B28: 0.01325 | C28: 0 | D28: 99999 | G28: 3.833333333
A29: 04:00:00 | B29: 0.01325 | C29: 0 | D29: 99999 | G29: 4
A30: 04:10:00 | B30: 0.0135 | C30: 0 | D30: 99999 | G30: 4.166666667
A31: 04:20:00 | B31: 0.01375 | C31: 0 | D31: 99999 | G31: 4.333333333
A32: 04:30:00 | B32: 0.014 | C32: 0 | D32: 99999 | G32: 4.5
A33: 04:40:00 | B33: 0.01425 | C33: 0.000184 | D33: 99999 | G33: 4.666666667
A34: 04:50:00 | B34: 0.0145 | C34: 0.009703 | D34: 99999 | G34: 4.833333333
A35: 05:00:00 | B35: 0.01475 | C35: 0.009953 | D35: 99999 | G35: 5
A36: 05:10:00 | B36: 0.015 | C36: 0.010203 | D36: 99999 | G36: 5.166666667
A37: 05:20:00 | B37: 0.01525 | C37: 0.010453 | D37: 99999 | G37: 5.333333333
A38: 05:30:00 | B38: 0.0155 | C38: 0.010703 | D38: 99999 | G38: 5.5
A39: 05:40:00 | B39: 0.01575 | C39: 0.010953 | D39: 99999 | G39: 5.666666667
A40: 05:50:00 | B40: 0.016 | C40: 0.011203 | D40: 99999 | G40: 5.833333333
A41: 06:00:00 | B41: 0.01625 | C41: 0.011453 | D41: 99999 | G41: 6
A42: 06:10:00 | B42: 0.0165 | C42: 0.011703 | D42: 99999 | G42: 6.166666667
A43: 06:20:00 | B43: 0.017 | C43: 0.012203 | D43: 99999 | G43: 6.333333333
A44: 06:30:00 | B44: 0.01725 | C44: 0.012453 | D44: 99999 | G44: 6.5
A45: 06:40:00 | B45: 0.01775 | C45: 0.012953 | D45: 99999 | G45: 6.666666667
A46: 06:50:00 | B46: 0.018 | C46: 0.013203 | D46: 99999 | G46: 6.833333333
A47: 07:00:00 | B47: 0.0185 | C47: 0.013703 | D47: 99999 | G47: 7
A48: 07:10:00 | B48: 0.019 | C48: 0.014203 | D48: 99999 | G48: 7.166666667
A49: 07:20:00 | B49: 0.01925 | C49: 0.014453 | D49: 99999 | G49: 7.333333333
A50: 07:30:00 | B50: 0.01975 | C50: 0.014953 | D50: 99999 | G50: 7.5
A51: 07:40:00 | B51: 0.0205 | C51: 0.015703 | D51: 99999 | G51: 7.666666667
A52: 07:50:00 | B52: 0.021 | C52: 0.016203 | D52: 99999 | G52: 7.833333333
A53: 08:00:00 | B53: 0.0215 | C53: 0.016703 | D53: 99999 | G53: 8
A54: 08:10:00 | B54: 0.02225 | C54: 0.017453 | D54: 99999 | G54: 8.166666667
A55: 08:20:00 | B55: 0.02275 | C55: 0.017953 | D55: 99999 | G55: 8.333333333
A56: 08:30:00 | B56: 0.0235 | C56: 0.018703 | D56: 99999 | G56: 8.5
A57: 08:40:00 | B57: 0.0245 | C57: 0.019703 | D57: 99999 | G57: 8.666666667
A58: 08:50:00 | B58: 0.02525 | C58: 0.020453 | D58: 99999 | G58: 8.833333333
A59: 09:00:00 | B59: 0.02625 | C59: 0.021453 | D59: 99999 | G59: 9
A60: 09:10:00 | B60: 0.02725 | C60: 0.022453 | D60: 99999 | G60: 9.166666667
A61: 09:20:00 | B61: 0.0285 | C61: 0.023703 | D61: 99999 | G61: 9.333333333
A62: 09:30:00 | B62: 0.02975 | C62: 0.024953 | D62: 99999 | G62: 9.5
A63: 09:40:00 | B63: 0.03125 | C63: 0.026453 | D63: 99999 | G63: 9.666666667
A64: 09:50:00 | B64: 0.03275 | C64: 0.027953 | D64: 99999 | G64: 9.833333333
A65: 10:00:00 | B65: 0.03475 | C65: 0.029953 | D65: 99999 | G65: 10
A66: 10:10:00 | B66: 0.03675 | C66: 0.031953 | D66: 99999 | G66: 10.16666667
A67: 10:20:00 | B67: 0.03925 | C67: 0.034453 | D67: 99999 | G67: 10.33333333
A68: 10:30:00 | B68: 0.04225 | C68: 0.037453 | D68: 99999 | G68: 10.5
A69: 10:40:00 | B69: 0.04575 | C69: 0.040953 | D69: 99999 | G69: 10.66666667
A70: 10:50:00 | B70: 0.05 | C70: 0.045203 | D70: 99999 | G70: 10.83333333
A71: 11:00:00 | B71: 0.0555 | C71: 0.050703 | D71: =D70 -> 99999 | G71: =G70+1/6 -> 11
A72: 11:10:00 | B72: 0.06275 | C72: 0.057953 | D72: 99999 | G72: 11.16666667
A73: 11:20:00 | B73: 0.0725 | C73: 0.067703 | D73: 99999 | G73: 11.33333333
A74: 11:30:00 | B74: 0.087 | C74: 0.082203 | D74: 99999 | G74: 11.5
A75: 11:40:00 | B75: 0.11125 | C75: 0.106453 | D75: 99999 | G75: 11.66666667
A76: 11:50:00 | B76: 0.16125 | C76: 0.156453 | D76: 99999 | G76: 11.83333333
A77: 12:00:00 | B77: 0.389 | C77: 0.384203 | D77: 99999 | G77: 12
A78: 12:10:00 | B78: 0.2175 | C78: 0.212703 | D78: 99999 | G78: 12.16666667
A79: 12:20:00 | B79: 0.13075 | C79: 0.125953 | D79: 99999 | G79: 12.33333333
A80: 12:30:00 | B80: 0.09725 | C80: 0.092453 | D80: 99999 | G80: 12.5
A81: 12:40:00 | B81: 0.079 | C81: 0.074203 | D81: 99999 | G81: 12.66666667
A82: 12:50:00 | B82: 0.06725 | C82: 0.062453 | D82: 99999 | G82: 12.83333333
A83: 13:00:00 | B83: 0.059 | C83: 0.054203 | D83: 99999 | G83: 13
A84: 13:10:00 | B84: 0.05275 | C84: 0.047953 | D84: 99999 | G84: 13.16666667
A85: 13:20:00 | B85: 0.04775 | C85: 0.042953 | D85: 99999 | G85: 13.33333333
A86: 13:30:00 | B86: 0.044 | C86: 0.039203 | D86: 99999 | G86: 13.5
A87: 13:40:00 | B87: 0.04075 | C87: 0.035953 | D87: 99999 | G87: 13.66666667
A88: 13:50:00 | B88: 0.038 | C88: 0.033203 | D88: 99999 | G88: 13.83333333
A89: 14:00:00 | B89: 0.03575 | C89: 0.030953 | D89: 99999 | G89: 14
A90: 14:10:00 | B90: 0.03375 | C90: 0.028953 | D90: 99999 | G90: 14.16666667
A91: 14:20:00 | B91: 0.032 | C91: 0.027203 | D91: 99999 | G91: 14.33333333
A92: 14:30:00 | B92: 0.0305 | C92: 0.025703 | D92: 99999 | G92: 14.5
A93: 14:40:00 | B93: 0.029 | C93: 0.024203 | D93: 99999 | G93: 14.66666667
A94: 14:50:00 | B94: 0.028 | C94: 0.023203 | D94: 99999 | G94: 14.83333333
A95: 15:00:00 | B95: 0.02675 | C95: 0.021953 | D95: 99999 | G95: 15
A96: 15:10:00 | B96: 0.02575 | C96: 0.020953 | D96: 99999 | G96: 15.16666667
A97: 15:20:00 | B97: 0.02475 | C97: 0.019953 | D97: 99999 | G97: 15.33333333
A98: 15:30:00 | B98: 0.024 | C98: 0.019203 | D98: 99999 | G98: 15.5
A99: 15:40:00 | B99: 0.02325 | C99: 0.018453 | D99: 99999 | G99: 15.66666667
A100: 15:50:00 | B100: 0.0225 | C100: 0.017703 | D100: 99999 | G100: 15.83333333
A101: 16:00:00 | B101: 0.02175 | C101: 0.016953 | D101: 99999 | G101: 16
A102: 16:10:00 | B102: 0.02125 | C102: 0.016453 | D102: 99999 | G102: 16.16666667
A103: 16:20:00 | B103: 0.02075 | C103: 0.015953 | D103: 99999 | G103: 16.33333333
A104: 16:30:00 | B104: 0.02 | C104: 0.015203 | D104: 99999 | G104: 16.5
A105: 16:40:00 | B105: 0.0195 | C105: 0.014703 | D105: 99999 | G105: 16.66666667
A106: 16:50:00 | B106: 0.01925 | C106: 0.014453 | D106: 99999 | G106: 16.83333333
A107: 17:00:00 | B107: 0.01875 | C107: 0.013953 | D107: 99999 | G107: 17
A108: 17:10:00 | B108: 0.01825 | C108: 0.013453 | D108: 99999 | G108: 17.16666667
A109: 17:20:00 | B109: 0.01775 | C109: 0.012953 | D109: 99999 | G109: 17.33333333
A110: 17:30:00 | B110: 0.0175 | C110: 0.012703 | D110: 99999 | G110: 17.5
A111: 17:40:00 | B111: 0.017 | C111: 0.012203 | D111: 99999 | G111: 17.66666667
A112: 17:50:00 | B112: 0.01675 | C112: 0.011953 | D112: 99999 | G112: 17.83333333
A113: 18:00:00 | B113: 0.0165 | C113: 0.011703 | D113: 99999 | G113: 18
A114: 18:10:00 | B114: 0.01625 | C114: 0.011453 | D114: 99999 | G114: 18.16666667
A115: 18:20:00 | B115: 0.01575 | C115: 0.010953 | D115: 99999 | G115: 18.33333333
A116: 18:30:00 | B116: 0.0155 | C116: 0.010703 | D116: 99999 | G116: 18.5
A117: 18:40:00 | B117: 0.01525 | C117: 0.010453 | D117: 99999 | G117: 18.66666667
A118: 18:50:00 | B118: 0.015 | C118: 0.010203 | D118: 99999 | G118: 18.83333333
A119: 19:00:00 | B119: 0.01475 | C119: 0.009953 | D119: 99999 | G119: 19
A120: 19:10:00 | B120: 0.0145 | C120: 0.009703 | D120: 99999 | G120: 19.16666667
A121: 19:20:00 | B121: 0.01425 | C121: 0.009453 | D121: 99999 | G121: 19.33333333
A122: 19:30:00 | B122: 0.014 | C122: 0.009203 | D122: 99999 | G122: 19.5
A123: 19:40:00 | B123: 0.01375 | C123: 0.008953 | D123: 99999 | G123: 19.66666667
A124: 19:50:00 | B124: 0.01375 | C124: 0.008953 | D124: 99999 | G124: 19.83333333
A125: 20:00:00 | B125: 0.0135 | C125: 0.008703 | D125: 99999 | G125: 20
A126: 20:10:00 | B126: 0.01325 | C126: 0.008453 | D126: 99999 | G126: 20.16666667
A127: 20:20:00 | B127: 0.013 | C127: 0.008203 | D127: 99999 | G127: 20.33333333
A128: 20:30:00 | B128: 0.013 | C128: 0.008203 | D128: 99999 | G128: 20.5
A129: 20:40:00 | B129: 0.01275 | C129: 0.007953 | D129: 99999 | G129: 20.66666667
A130: 20:50:00 | B130: 0.0125 | C130: 0.007703 | D130: 99999 | G130: 20.83333333
A131: 21:00:00 | B131: 0.0125 | C131: 0.007703 | D131: 99999 | G131: 21
A132: 21:10:00 | B132: 0.01225 | C132: 0.007453 | D132: 99999 | G132: 21.16666667
A133: 21:20:00 | B133: 0.012 | C133: 0.007203 | D133: 99999 | G133: 21.33333333
A134: 21:30:00 | B134: 0.012 | C134: 0.007203 | D134: 99999 | G134: 21.5
A135: 21:40:00 | B135: 0.01175 | C135: 0.006953 | D135: =D134 -> 99999 | G135: =G134+1/6 -> 21.66666667
A136: 21:50:00 | B136: 0.01175 | C136: 0.006953 | D136: 99999 | G136: 21.83333333
A137: 22:00:00 | B137: 0.0115 | C137: 0.006703 | D137: 99999 | G137: 22
A138: 22:10:00 | B138: 0.0115 | C138: 0.006703 | D138: 99999 | G138: 22.16666667
A139: 22:20:00 | B139: 0.01125 | C139: 0.006453 | D139: 99999 | G139: 22.33333333
A140: 22:30:00 | B140: 0.01125 | C140: 0.006453 | D140: 99999 | G140: 22.5
A141: 22:40:00 | B141: 0.011 | C141: 0.006203 | D141: 99999 | G141: 22.66666667
A142: 22:50:00 | B142: 0.011 | C142: 0.006203 | D142: 99999 | G142: 22.83333333
A143: 23:00:00 | B143: 0.01075 | C143: 0.005953 | D143: 99999 | G143: 23
A144: 23:10:00 | B144: 0.01075 | C144: 0.005953 | D144: 99999 | G144: 23.16666667
A145: 23:20:00 | B145: 0.0105 | C145: 0.005703 | D145: 99999 | G145: 23.33333333
A146: 23:30:00 | B146: 0.0105 | C146: 0.005703 | D146: 99999 | G146: 23.5
A147: 23:40:00 | B147: 0.01025 | C147: 0.005453 | D147: 99999 | G147: 23.66666667
A148: 23:50:00 | B148: 0.01025 | C148: 0.005453 | D148: 99999 | G148: 23.83333333
A149: 1 | B149: 0.01025 | C149: 0.005453 | D149: 99999 | G149: 24
